Workbook

Sheet Adviesformulier
A1: Adviesformulier verantwoorde zorg thuis
K2: Versie 23 december 2021
A3: Om te beoordelen of de door u aangevraagde zorg thuis verantwoord is, ontvangen wij graag uw professionele advies. | O3: Woont zelfstandig
A4: CLIENTGEGEVENS | O4: Woont geclusterd
A5: Naam | F5: Klik hier om tekst in te voeren | O5: Woont met partner (beide Wlz geïndiceerd) | W5: =IF(F5="Klik hier om een tekst in te voeren",1,2) -> 2
A6: BSN | F6: Klik hier om tekst in te voeren | O6: Woont met partner (partner heeft geen Wlz indicatie)
A7: Woonsituatie | F7: Klik hier om een keuze te maken | O7: Woont bij ouder(s)/verzorger(s)
O8: Klik hier om een keuze te maken
A9: CONTACTGEGEVENS ZORGAANBIEDER
A10: Naam contactpersoon: | H10: klik hier om tekst in te voeren
A11: Organisatie contactpersoon | H11: klik hier om tekst in te voeren
A12: Telefoonnummer contactpersoon | H12: klik hier om tekst in te voeren
A13: Bereikbaarheid contactpersoon | H13: klik hier om tekst in te voeren
A15: ADVIES ZORGAANBIEDER VERANTWOORD THUIS VPT/MPT, EVENTUEEL IN COMBINATIE MET DTV
A16: 1. | B16: Wat is uw advies voor (overbruggings) zorg thuis als betrokken zorgprofessional?
D17: Regulier VPT of MPT, eventueel in combinatie met DTV is verantwoord | O17: =IF(B17="x",1,0) -> 0
D18: Regulier VPT of MPT, eventueel in combinatie met DTV is niet verantwoord | O18: =IF(B18="x",1,0) -> 0 | Q18: =SUM(O17:O21) -> 0 | R18: =IF(Q18=0,"X","") -> X
D19: Overbruggingszorg thuis, eventueel in combinatie met DTV tot opname is verantwoord | O19: =IF(B19="x",1,0) -> 0
D20: Overbruggingszorg thuis, eventueel in combinatie met DTV tot opname is niet verantwoord | O20: =IF(B20="x",1,0) -> 0
D21: Er is nog geen advies mogelijk, graag nader overleg met het zorgkantoor | O21: =IF(B21="x",1,0) -> 0
A23: Is zorg thuis verantwoord, maar is er sprake van hoge inzet behandeling, ga dan direct naar vraag 5
A25: 2. | B25: Kan de cliënt goed bepalen wat hij wil, zijn situatie goed inschatten en daarvoor zijn verantwoordelijkheid nemen (mate van zelfregie)?
D26: Er is afdoende zelfregie | O26: =IF(B26="x",1,0) -> 0 | Q26: =SUM(O25:O28) -> 0 | R26: =IF(Q26=0,"X","") -> X
D27: Er is verminderde zelfregie | O27: =IF(B27="x",1,0) -> 0
D28: Er is geen sprake van zelfregie | O28: =IF(B28="X",1,0) -> 0
D29: Toelichting:
A32: 3. | B32: Is er sprake van een gevaarscriterium als gevolg van ernstig verminderde zelfregie?
D33: Nee | O33: =IF(B33="x",1,0) -> 0 | Q33: =SUM(O32:O35) -> 0 | R33: =IF(Q33=0,"X","") -> X
D34: Ja, er is sprake van een gevaarscriterium omdat de cliënt: | O34: =IF(B34="x",1,0) -> 0
F35: een ernstig gevaar voor zichzelf vormt (is gedesoriënteerd in tijd en/of plaats en/of persoon en/of kan gevaar niet inschatten). | R35: =IF(B34="X",1,0) -> 0 | S35: =IF(D35="X",0,1) -> 1 | U35: =IF(R35+S44=7,"X","") -> 
F37: zichzelf ernstig verwaarloost (ernstig tekort aan voeding/vocht/medicatie inname, lichamelijke verzorging en/of hygiene van de omgeving). | S37: =IF(D37="X",0,1) -> 1
F39: met zijn gedrag een risico vormt voor mensen in zijn omgeving (door bijvoorbeeld gedragsproblematiek naar andere mensen). | S39: =IF(D39="X",0,1) -> 1
F41: spullen in zijn omgeving kapot maakt en daardoor een risico vormt voor de algemene veiligheid. | S41: =IF(D41="X",0,1) -> 1
S42: =IF(D43="X",0,1) -> 1
F43: zelf niet adequaat kan alarmeren en er geen permanent 24 uurs toezicht is geborgd. Daardoor is er risico op acuut levensgevaar (bijvoorbeeld bij ernstige ademhalingsproblematiek en/of continue risico op verslikking). | S43: =IF(D45="X",0,1) -> 1
S44: =SUM(S35:S43) -> 6
F45: er niet zeker van is dat bij acuut levensgevaar een (bekwame) zorgverlener of mantelzorger binnen 10 minuten aanwezig is of omdat medische zorg niet geborgd is binnen 30 minuten.
D47: Toelichting:
A50: 4. | B50: Is noodzakelijke achterwacht (mantelzorg) ingeregeld?
D51: Ja, noodzakelijke achterwacht is 24 uur per dag beschikbaar | O51: =IF(B51="x",1,0) -> 0
D52: Ja, noodzakelijke achterwacht is 24 uur per dag beschikbaar, maar overbelasting dreigt | O52: =IF(B52="x",1,0) -> 0
D53: Nee, noodzakelijke achterwacht is niet 24 uur per dag in te regelen | O53: =IF(B53="x",1,0) -> 0 | Q53: =SUM(O51:O55) -> 0 | R53: =IF(Q53=0,"X","") -> X
D54: Nee, de cliënt weigert noodzakelijke achterwacht | O54: =IF(B54="x",1,0) -> 0
D55: Nee, het is niet noodzakelijk om achterwacht in te regelen | O55: =IF(B55="X",1,0) -> 0
D56: Toelichting:
A59: 5. | B59: Is er noodzaak tot specifieke Wlz behandeling?
D60: Nee, er is geen noodzaak tot Wlz behandeling | O60: =IF(B60="x",1,0) -> 0
D61: Ja, maar de cliënt ontvangt passende Wlz behandeling | O61: =IF(B61="x",1,0) -> 0 | Q61: =SUM(O60:O64) -> 0 | R61: =IF(Q61=0,"X","") -> X
D62: Ja, Wlz behandeling is noodzakelijk maar de cliënt weigert dit | O62: =IF(B62="X",1,0) -> 0
D63: Ja, thuiswonend kind met ontwikkelperspectief | O63: =IF(B63="X",1,0) -> 0
D64: Ja er is extra behandeling noodzakelijk op de (al) geleverde WLZ behandeling. Deze behandeling | O64: =IF(B64="x",1,0) -> 0
D65: wordt niet vergoed vanuit de Zvw. Licht de volgende vragen altijd toe:
D66: * | E66: Welke diagnose maakt inzet van (extra) behandeling noodzakelijk?
D67: * | E67: Wie is eindverantwoordelijkheid voor de behandeling (arts/behandelaar)?
D68: * | E68: Welke methodiek wordt toegepast voor de behandeling?
D69: * | E69: Wat is het te behalen resultaat van de behandeling?
D70: * | E70: Hoe wordt het te behalen resultaat (verbeterdoel) getoetst?
D71: * | E71: Wat is het aantal benodigde (extra) uren behandeling (individueel) of dagdelen (groep) per week?
D72: Toelichting:
A79: 6. | B79: Is de medische en/of gedragskundige zorg in de thuissituatie verantwoord (meerdere antwoorden mogelijk)?
D81: Ja, de huisarts is van mening dat medische zorg thuis verantwoord is | O81: =IF(B81="x",1,0) -> 0
D82: Nee, de huisarts is van mening dat medische zorg thuis niet verantwoord is maar er is geen sprake van een spoedsituatie voor opname (toelichten) | O82: =IF(B82="x",1,0) -> 0 | Q82: =SUM(O81:O89) -> 0 | R82: X
D84: Nee, de huisarts is van mening dat de medische zorg thuis niet verantwoord is, er is sprake van een spoedsituatie voor opname (toelichten) | O84: =IF(B84="X",1,0) -> 0
D86: Nee, de huisarts is niet bereid mee te werken aan een advies | O86: =IF(B86="X",1,0) -> 0
D87: De betrokken AVG arts en/of gedragsdeskundige deelt de mening van de huisarts | O87: =IF(B87="X",1,0) -> 0
D88: De betrokken AVG arts en/of gedragsdeskundige deelt de mening v/d huisarts niet (toelichten) | O88: =IF(B88="X",1,0) -> 0
D89: Er is geen AVG arts of gedragsdeskundige bij deze cliënt betrokken | O89: =IF(B89="X",1,0) -> 0
A94: 7. | B94: Zijn de noodzakelijke mobiliteitshulpmiddelen en woningaanpassingen thuis (en bij deeltijd verblijf ook in een instelling) georganiseerd?
D96: Er zijn geen mobiliteitshulmiddelen of woningaanpassingen nodig | O96: =IF(B96="X",1,0) -> 0
D97: Ja, dit is georganiseerd | O97: =IF(B97="X",1,0) -> 0 | Q97: =SUM(O96:O98) -> 0 | R97: =IF(Q97=0,"X","") -> X
D98: Nee, dit is nog niet georganiseerd. (toelichten) | O98: =IF(B98="X",1,0) -> 0
D99: Toelichting
A101: 8. | B101: Is er sprake van onvrijwillige zorg in het kader van de Wet zorg en dwang?
D102: Nee, er is geen sprake van onvrijwillige zorg | O102: =IF(B102="X",1,0) -> 0
D103: Ja , er is sprake van onvrijwillige zorg (toelichten) | O103: =IF(B103="X",1,0) -> 0 | Q103: =SUM(O102:O103) -> 0 | R103: =IF(Q103=0,"X","") -> X
D104: Toelichting:
A107: 9. | B107: Is de cliënt en/of zijn mantelzorg het eens met uw advies?
D108: Ja, ons advies wordt gedeeld | O108: =IF(B108="x",1,0) -> 0
D109: Nee, ons advies wordt niet gedeeld (altijd toelichten) | O109: =IF(B109="x",1,0) -> 0 | Q109: =SUM(O108:O112) -> 0 | R109: =IF(Q109=0,"X","") -> X
D110: Toelichting:

Sheet Rekenblad
H1: 0.96 | M1: versie: 23-12-2021 | T1: =IF($I$33>0,$M$6+$FS$8+$T$20,$M$6+$FS$8) -> 0 | U1: =IFERROR(BR10,0) -> 0 | V1: =M8/M6 ->  | AZ1: HH*Gunnings% | BA1: =BA11*H1 -> 33.71409865 | DP1: =VLOOKUP(DQ1,$DS$2:$DT$50,2,FALSE) ->  | DQ1: =G10 -> 0 | DR1: Etmalen deeltijd verblijf | DU1: meerzorg | DV1: ZZP | DW1: Dagbesteding | DX1: Meerzorg | DY1: Max uren +25% | DZ1: Uren geleverd | EE1: =G10 -> 0 | EF1: =IFERROR(VLOOKUP(EE1,DV2:DX83,3,0),0) -> 0 | EG1: =IF(EF1="nee",1,2) -> 2 | EH1: =IF(Q24="Meerzorg",3,4) -> 4 | EI1: =SUM(EG1:EH1) -> 6 | EJ1: =IF(EI1=4,"Meerzorg is niet toegestaan bij dit ZZP tenzij client Wlz indiceerbaar is en recht op het vangnet heeft"," ") ->  | EL1: Te kiezen leveringsvormen | EO1: MPT | EP1: Deelrijd verblijf icm MPT | EQ1: Logeren icm MPT | ER1: Overbruggingszorg | ES1: VPT | ET1: Opname | EU1: Opname2 | EW1: Z015 ZZP 1vv incl.db | EX1: V015 VPT 1vv excl.bh incl.db | FB1: ZZP | FC1: 100% prestatie | FF1: 100% per dag | FG1: 100% per week | FH1: DTV | FL1: ZZP's | FM1: Dagbesteding apart? | FQ1: Etmalen | FR1: Deeltijd verblijf icm zorg thuis | FS1: ='Deeltijd verblijf'!M9 ->  | FX1: AGB | FY1: DTV | FZ1: VBL
B2: Naam: | D2: "vul hier de naam van cliënt in" | N2: =IFERROR(IF(OR($F$5="opname",$F$5="VPT"),$FI$7*$H$1,$BR$10),0) -> 0 | T2: Koppeling tijdseenheid aan functie | V2: Koppeling grondslag aan ZZP's | AB2: Gunningsperceptage | AC2: Koppeling prestaties bij bijbehorende functies | AO2: Koppeling uren aan klasse | AR2: =IF(OR(F5="Deeltijd verblijf icm MPT",F5="logeren icm MPT"),"MPT",F5) -> 0 | AY2: Koppeling prestatie aan tarief | BC2: Berekening totaalbedragen: | BE2: Berekening ZZP waarde | BL2: Ruimte behandeling bepalen | BN2: Keuzelijst EKT | BO2: Berekening EKT | BP2: Extramurale ruimte en beademing | BR2: =IFERROR(VLOOKUP(Q23,BO12:BQ14,3,FALSE),0) -> 0 | BS2: Aanvraag akkoord? | BW2: Logeren | BZ2: Omrekening naar huidige rekenmodule | CJ2: Dagbesteding | CM2: PGBbedrag bepalen | CZ2: Opslag bepaling | DR2: 3.5 | DS2: 1vg | DT2: Licht | DU2: =IF(D42="meerzorg","ja","nee") -> nee | DV2: 1GGZ B | DW2: ja | DX2: Nee | DY2: 0 | DZ2: 10 | EL2: MPT | EO2: Bgind | EP2: Bgind | EQ2: Bgind | ER2: Bgind | ES2: VPTprestatie | ET2: Verblijfsprestatie | EU2: Verblijfsprestatie | EW2: Z025 ZZP 2vv incl.db | EX2: V025 VPT 2vv excl.bh incl.db | FB2: 1vv | FC2: Z015 ZZP 1vv incl.db | FD2: Opname | FE2: =CONCATENATE(FB2,FD2) -> 1vvOpname | FF2: =VLOOKUP(FC2,Tarieven_ZZP1,7,FALSE) -> 108.4323353 | FG2: =FF2*7 -> 759.0263473 | FL2: 1GGZ-W | FM2: 1 | FQ2: 1 | FR2: Logeren icm MPT | FS2: ='Deeltijd verblijf'!M17 ->  | FX2: =E18 -> 0 | FY2: =IF(B18="Deeltijd_verblijf",1,0) -> 0 | FZ2: =IF(B18="Verblijfsprestatie",1,0) -> 0 | GA2: =SUM(FY2:FZ2) -> 0 | GB2: =IFERROR(IF(FX2=0,"",(IF(GA2=0,"Nee","Ja"))),0) ->  | GC2: =E18 -> 0 | GD2: =IFERROR(VLOOKUP(GC2,$GA$18:$GB$18,2,0),0) -> 0 | GE2: =IF(GD2="ja","ja","Nee") -> Nee
B3: BSN | D3: "vul hier het BSN van cliënt in" | DR3: 4 | EL3: VPT | EO3: PV | EP3: PV | EQ3: PV | ER3: PV | ES3: Dagbesteding | ET3: Dagbesteding | EU3: BHind | EW3: Z031 ZZP 3vv excl.bh incl.db | EX3: V031 VPT 3vv excl.bh incl.db | FB3: 2vv | FC3: Z025 ZZP 2vv incl.db | FD3: Opname | FE3: 2vvOpname | FF3: 138.995567 | FG3: =FF3*7 -> 972.9689693 | FL3: 2GGZ-W | FM3: 1 | FQ3: 2 | FR3: MPT | FS3: =IFERROR(IF(OR($F$5="opname",$F$5="VPT"),$FI$7*$H$1,$BR$10),0) -> 0 | FX3: 0 | FY3: =IF(B19="Deeltijd_verblijf",1,0) -> 0 | FZ3: =IF(B19="Verblijfsprestatie",1,0) -> 0 | GA3: =SUM(FY3:FZ3) -> 0 | GB3: =IFERROR(IF(FX3=0,"",(IF(GA3=0,"Nee","Ja"))),0) ->  | GC3: =E19 -> 0 | GD3: =IFERROR(VLOOKUP(GC3,$GA$18:$GB$18,2,0),0) -> 0 | GE3: =IF(GD3="ja","ja","Nee") -> Nee
B4: Datum aanvraag | D4: "vul hier de dagtekening van verzending in" | DR4: 4.5 | EL4: Opname | EO4: VP | EP4: VP | EQ4: VP | ER4: VP | ES4: Bhind | ET4: Bhind | EW4: Z033 ZZP 3vv incl.bh incl.db | EX4: V033 VPT 3vv incl.bh incl.db | FB4: 3vv | FC4: Z033 ZZP 3vv incl.bh incl.db | FD4: Opname | FE4: 3vvOpname | FF4: 198.1308526 | FG4: 1386.915968 | FL4: 3GGZ-W | FM4: 1 | FQ4: 3 | FR4: VPT | FS4: =IFERROR(IF(OR($F$5="opname",$F$5="VPT"),$FI$7*$H$1,$BR$10),0) -> 0 | FX4: 0 | FY4: =IF(B20="Deeltijd_verblijf",1,0) -> 0 | FZ4: =IF(B20="Verblijfsprestatie",1,0) -> 0 | GA4: 0 | GC4: 0 | GD4: 0 | GE4: Nee
B5: Datum ingang ZTW | D5: "vul hier de gewenste ingangsdatum zorgtoewijzing in" | I5: Aantal etmalen verblijf p/w | M5: =IF(F5="MPT","Ruimte",IF(OR(F5="logeren icm MPT",F5="deeltijd verblijf icm zorg thuis"),"Ruimte","Financiële ruimte")) -> Financiële ruimte | BN5: Ja; Extra kosten thuis | BO5: =$M$6*25% -> 0 | EL5: Deeltijd verblijf icm zorg thuis | EO5: Logeren | EP5: BGgrp | EQ5: BGgrp | ER5: BGgrp | ES5: BHgrp | ET5: BHgrp | EU5: VPT2 | EW5: Z041 ZZP 4vv excl.bh incl.db | EX5: V041 VPT 4vv excl.bh incl.db | FB5: 4vv | FC5: Z043 ZZP 4vv incl.bh incl.db | FD5: Opname | FE5: 4vvOpname | FF5: 191.6374882 | FG5: 1341.462417 | FL5: 4GGZ-W | FM5: 1 | FQ5: 3.5 | FR5: Opname | FS5: =IFERROR(IF(OR($F$5="opname",$F$5="VPT"),$FI$7*$H$1,$BR$10),0) -> 0 | FX5: 0 | FY5: 0 | FZ5: 0 | GA5: 0 | GC5: 0 | GD5: 0 | GE5: Nee
B6: Aan te vragen zorg: | M6: =IFERROR(VLOOKUP(F5,FR1:FS5,2,FALSE),0) -> 0 | N6: Doelmatigheidsbedrag DTV en zorg thuis samen | BF6: code | BG6: groep | BN6: Ja; opgroeiend kind thuis jonger dan 23 jaar | BO6: =$M$6*25% -> 0 | BP6: Tarief beademing | BR6: 0 | BS6: Totale ruimte | BU6: =$M$10+$FS$8+$BX$14 -> 0 | BW6: Totaal ingezet | BX6: =BD9 -> 0 | CK6: code | CL6: groep | CM6: ZZP | CN6: ZZP | CO6: PV | CQ6: VP | CS6: Bgind | CU6: BGgrp | CW6: ZZP- | CX6: Totaal | CY6: Totaal minus ophoging | CZ6: 25 | DA6: K8 | DC6: KD09 | DL6: =IFERROR(VLOOKUP(B18,$T$7:$U$19,2,FALSE),0) -> 0 | DM6: =IF(D18="F125 Dagactiviteit LZA","Minuten",0) -> 0 | DN6: =IF(DM6="minuten",DM6,DL6) -> 0 | DO6: =E18 -> 0 | DP6: Dagbesteding koppelen aan ZZP | DS6: 2vg | DT6: Licht | DV6: 2GGZ-W | DW6: ja | DX6: Nee | DY6: 0 | DZ6: 12.5 | EB6: Grensuren | EC6: =IFERROR(IF(DU2="ja",VLOOKUP($G$10,$DV$2:$DZ$35,4,FALSE),VLOOKUP($G$10,$DV$36:$DZ$83,4,FALSE)),0) -> 0 | EL6: Logeren icm MPT | EO6: BGgrp | EP6: Bhgrp | EQ6: Bhgrp | ER6: Bhgrp | EU6: VPTprestatie | EW6: Z043 ZZP 4vv incl.bh incl.db | EX6: V043 VPT 4vv incl.bh incl.db | FB6: 5vv | FC6: Z053 ZZP 5vv incl.bh incl.db | FD6: Opname | FE6: 5vvOpname | FF6: 315.5865642 | FG6: 2209.105949 | FL6: 5GGZ-W | FM6: 1 | FQ6: 4 | FX6: 0 | FY6: 0 | FZ6: 0 | GA6: 0 | GC6: 0 | GD6: 0 | GE6: Nee
M7: =FS3 -> 0 | N7: 100%, hiermee worden toewijspercentages berekend | T7: Bgind | U7: Minuten | V7: SOM | W7: PG | X7: GGZ | Y7: VG | Z7: LG | AA7: ZG | AB7: 0.7 | AC7: BH-IND | AD7: BH-GRP | AE7: BG-GRP | AF7: Deeltijd_verblijf | AG7: Schoonmaak | AH7: Logeren | AI7: VP | AJ7: PV | AK7: Verblijf | AL7: VPT | AM7: Vervoer | AN7: BG-IND | AO7: omvang uren | AP7: Klasse | AQ7: Functie | AR7: Totaal uren per functie | AS7: Gedeeld door 60 | AT7: Afronding | AU7: Om 0 te compenceren | AW7: Klasse | AX7: Compensatie K0 bij VP | AY7: F125 Dagactiviteit LZA | AZ7: F125 | BA7: =VLOOKUP(AZ7,Tarieven_ZIN1,2,0) -> 12.86429862 | BC7: Bedrag aan Behandeling ind: | BD7: =SUMIF($B$18:$G$31,"Bhind",$I$18:$I$31) -> 0 | BE7: 1GGZ B | BF7: 860 | BG7: ja | BH7: 1 | BI7: =BH7/365*7 -> 0.01917808219 | BJ7: JA | BK7: =VLOOKUP(G10,BE7:BI54,5,FALSE) ->  | BL7: 1VV | BM7: =VLOOKUP(BL7,'Ruimte behandeling basis MPT'!$A$2:$H$46,8,FALSE) -> 0 | BN7: Ja; ouder met kind jonger dan 18 die thuis woont | BO7: =$M$6*25% -> 0 | BR7: =BK7 ->  | BS7: Totale omvang ZIN | BU7: =I32 -> 0 | BZ7: Klasse | CA7: Omvang oud | CB7: Functie | CC7: Bedrag | CD7: prestatie | CJ7: 1GGZ B | CK7: wel | CL7: nvt | CN7: code | CW7: ophoging | DA7: Totaal minuten/dagdelen | DB7: Uren/dagdelen | DC7: Max klasse | DF7: =VLOOKUP(G$10,$CJ$7:$CL$54,2,FALSE) ->  | DI7: =IF(G10="10VV",DH9,DI9) -> Lijst4 | DL7: 0 | DM7: 0 | DN7: =IF(DM7="minuten",DM7,DL7) -> 0 | DO7: =E19 -> 0 | DP7: Licht | DQ7: Midden | DR7: Zwaar | DS7: 3vg | DT7: Licht | DV7: 3GGZ-W | DW7: ja | DX7: Nee | DY7: 0 | DZ7: 16 | EL7: Verblijf2 | EO7: Bhgrp | EP7: Deeltijd_verblijf | EQ7: Logeren | ER7: Bhind | EU7: BHind | EW7: Z051 ZZP 5vv excl.bh incl.db | EX7: V051 VPT 5vv excl.bh incl.db | FB7: 6vv | FC7: Z063 ZZP 6vv incl.bh incl.db | FD7: Opname | FE7: 6vvOpname | FF7: 293.9547202 | FG7: 2057.683041 | FH7: =IF(F5="Deeltijd verblijf icm zorg thuis",CONCATENATE(G10,FH1),CONCATENATE(G10,F5)) ->  | FI7: =IFERROR(VLOOKUP(FH7,FE2:FG136,3,FALSE),0) -> 0 | FL7: 6GGZ B | FM7: 2 | FQ7: 4.5 | FX7: 0 | FY7: 0 | FZ7: 0 | GA7: 0 | GC7: 0 | GD7: 0 | GE7: Nee
B8: Wlz sector (Som, PG, VG,LG of ZG) | I8: Vul weekbedrag PGB in: | N8: =IFERROR(IF(F5="MPT",M8/M6,M8/U1)," ") ->  | O8: Let op: percentage van MPT | T8: PV | U8: Minuten | V8: 1VV | W8: 4VV | X8: 1GGZ-W | Y8: 1LVG | Z8: 1LG | AA8: 1ZGvis | AB8: 0.9 | AC8: H325 Behandeling lvg | AD8: H802 Dagbehandeling ouderen som en pg | AE8: F125 Dagactiviteit LZA | AF8: D031 DTV 3VV | AG8: H117 Huishoudelijke hulp | AH8: Z999 Logeren GHZ-VG | AI8: H104 Verpleging | AJ8: H126 Persoonlijke verzorging | AK8: Z015 ZZP 1vv incl.db | AL8: V015 VPT 1vv excl.bh incl.db | AM8: H803 Vervoer dagbesteding/dagbehandeling V&V | AN8: H150 Begeleiding incl. beschikbaarheid | AO8: 0 | AP8: Nvt | AQ8: Bgind | AR8: =SUMIF($B$18:$B$31,"bgind",$F$18:$F$31) -> 0 | AS8: =AR8/60 -> 0 | AT8: =FLOOR(AS8,1) -> 0 | AU8: =IF(AR8>0,1,0) -> 0 | AV8: =IF(AT8+AU8<=1,AU8,AT8) -> 0 | AW8: =IFERROR(VLOOKUP(AV8,$AO$8:$AP$33,2,FALSE),"K8") -> Nvt | AY8: H104 Verpleging | AZ8: H104 | BA8: 77.49755872 | BC8: Bedrag aan behandeling grp | BD8: =SUMIF($B$18:$G$31,"Bhgrp",$I$18:$I$31) -> 0 | BE8: 2GGZ B | BF8: 862 | BG8: ja | BH8: 1 | BI8: =BH8/365*7 -> 0.01917808219 | BL8: 2VV | BM8: =VLOOKUP(BL8,'Ruimte behandeling basis MPT'!$A$2:$H$46,8,FALSE) -> 0 | BN8: ja; sprake van betaalde arbeid | BO8: =$M$6*25% -> 0 | BR8: =IFERROR(VLOOKUP(G10,BN16:BR31,5,FALSE),0) -> 0 | BU8: =(2+BU6)-BU7 -> 2 | BZ8: K0 | CA8: 0.5 | CB8: Bgind | CC8: 0 | CD8: H302 | CJ8: 2GGZ B | CK8: wel | CL8: nvt | CM8: weg | CN8: 860 | CO8: 0 | CP8: =CO8/52 -> 0 | CQ8: 0 | CR8: =CQ8/52 -> 0 | CS8: 0 | CT8: =CS8/52 -> 0 | CU8: 0 | CV8: =CU8/52 -> 0 | CW8: 0 | CX8: 0 | CY8: 0 | CZ8: Bgind | DA8: =SUMIF($B$18:$B$31,"bgind",$F$18:$F$31) -> 0 | DB8: =DA8/60 -> 0 | DC8: 25 | DD8: =DB8-DC8 -> -25 | DE8: =IF(DD8>0,DD8,0) -> 0 | DL8: 0 | DM8: 0 | DN8: 0 | DO8: 0 | DP8: F125 Dagactiviteit LZA | DQ8: F125 Dagactiviteit LZA | DR8: F125 Dagactiviteit LZA | DS8: 4vg | DT8: Licht | DV8: 4GGZ-W | DW8: ja | DX8: ja | DY8: 0 | DZ8: 18.5 | EL8: VolPT2 | EO8: Bhind | EP8: Schoonmaak | EQ8: Schoonmaak | ER8: Schoonmaak | EW8: Z053 ZZP 5vv incl.bh incl.db | EX8: V053 VPT 5vv incl.bh incl.db | FB8: 7vv | FC8: Z073 ZZP 7vv incl.bh incl.db | FD8: Opname | FE8: 7vvOpname | FF8: 382.2597364 | FG8: 2675.818155 | FL8: 7GGZ B | FM8: 2 | FR8: Ruimte EKT | FS8: =IF(OR($Q$22="",$Q$22="Nee",$BN$12<0),0,FS3/100*25) -> 0 | FX8: 0 | FY8: 0 | FZ8: 0 | GA8: 0 | GC8: 0 | GD8: 0 | GE8: Nee
M9: Ruimte voor zorg in natura | T9: VP | U9: Minuten | V9: 2VV | W9: 5VV | X9: 2GGZ-W | Y9: 2LVG | Z9: 2LG | AA9: 2ZGvis | AB9: 0.905 | AC9: H329 Behandeling gedragswetenschapper | AD9: H804 Gespecialiseerde dagbehandeling Huntington lg of som | AE9: H132 Nachtverzorging | AF9: D041 DTV 4VV | AH9: Z1000 Logeren GHZ-LG | AI9: H106 Verpleging speciaal | AJ9: H120 Persoonlijke verzorging speciaal | AK9: Z025 ZZP 2vv incl.db | AL9: V025 VPT 2vv excl.bh incl.db | AM9: H881 Vervoer dagbesteding/dagbehandeling ghz - categorie 1 | AN9: H152 Begeleiding speciaal 1 (nah) | AO9: 1 | AP9: K1 | AQ9: PV | AR9: =SUMIF($B$18:$B$31,"PV",$F$18:$F$31) -> 0 | AS9: =AR9/60 -> 0 | AT9: =FLOOR(AS9,1) -> 0 | AU9: =IF(AR9>0,1,0) -> 0 | AV9: =IF(AT9+AU9<=1,AU9,AT9) -> 0 | AW9: =IFERROR(VLOOKUP(AV9,AO8:AP33,2,FALSE),"k8") -> Nvt | AY9: H106 Verpleging speciaal | AZ9: H106 | BA9: 97.20278154 | BC9: Bedrag aan logeren | BD9: =SUMIF($B$18:$G$31,"logeren",$I$18:$I$31) -> 0 | BE9: 1GGZ-W | BF9: 864 | BG9: ja | BH9: =VLOOKUP(BE9,Tarieven_PGB0,13,FALSE) -> 47229 | BI9: 905.7616438 | BL9: 3VV | BM9: =VLOOKUP(BL9,'Ruimte behandeling basis MPT'!$A$2:$H$46,8,FALSE) -> 165.0021213 | BN9: Ja; Cliënt is Wlz indiceerbaar | BO9: =$M$6*25% -> 0 | BP9: =BR7-BR8 ->  | BS9: =IF(BU8>=0,1,0) -> 1 | BZ9: K1 | CA9: 1 | CB9: PV | CC9: 0 | CD9: H128 | CJ9: 3GGZ B | CK9: wel | CL9: nvt | CM9: weg | CN9: 862 | CO9: 0 | CP9: =CO9/52 -> 0 | CQ9: 0 | CR9: =CQ9/52 -> 0 | CS9: 0 | CT9: =CS9/52 -> 0 | CU9: 0 | CV9: =CU9/52 -> 0 | CW9: 0 | CX9: 0 | CY9: 0 | CZ9: PV | DA9: =SUMIF($B$18:$B$31,"PV",$F$18:$F$31) -> 0 | DB9: =DA9/60 -> 0 | DC9: 25 | DD9: =DB9-DC9 -> -25 | DE9: 0 | DF9: 1 | DG9: 2 | DH9: lijst4 | DI9: Lijst4 | DJ9: Lijst 3 | DL9: 0 | DM9: 0 | DN9: 0 | DO9: 0 | DP9: H132 Nachtverzorging | DQ9: H132 Nachtverzorging | DR9: H132 Nachtverzorging | DS9: 5vg | DT9: Midden | DV9: 5GGZ-W | DW9: ja | DX9: ja | DY9: 0 | DZ9: 20 | EO9: Schoonmaak | EP9: Bhind | EQ9: Bhind | EW9: Z061 ZZP 6vv excl.bh incl.db | EX9: V061 VPT 6vv excl.bh incl.db | FB9: 8vv | FC9: Z083 ZZP 8vv incl.bh incl.db | FD9: Opname | FE9: 8vvOpname | FF9: 474.4210974 | FG9: 3320.947682 | FL9: 1VG | FM9: 1 | FR9: EKT bij DTV | FS9: =IF(OR($Q$22="",$Q$22="Nee",$BN$12<0),0,IF(F5="Deeltijd verblijf icm zorg thuis",FS8/7*'Deeltijd verblijf'!L7,0)+'Deeltijd verblijf'!M6*25%) -> 0 | FX9: 0 | FY9: 0 | FZ9: 0 | GA9: 0 | GC9: 0 | GD9: 0 | GE9: Nee
B10: Geïndiceerd profiel | M10: =IF(M8>=0,M6-M8,"fout, PGB bedrag") -> 0 | T10: BGgrp | U10: Dagdelen | V10: 3VV | W10: 7VV | X10: 3GGZ-W | Y10: 3LVG | Z10: 3LG | AA10: 3ZGvis | AB10: 0.91 | AC10: H330 Behandeling paramedisch | AD10: H817 Dagbehandeling VG kind emg | AE10: H180 Nachtverpleging | AF10: D051 DTV 5VV | AH10: Z1001 Logeren GHZ-LVG | AI10: H118 Verpleging speciaal aan kinderen tot 18 jaar incl. beschikbaarheid | AJ10: H127 Persoonlijke verzorging incl. beschikbaarheid | AK10: Z031 ZZP 3vv excl.bh incl.db | AL10: V031 VPT 3vv excl.bh incl.db | AM10: H882 Vervoer dagbesteding/dagbehandeling ghz - categorie 2 | AN10: H153 Begeleiding speciaal 2 (psy) | AO10: 2 | AP10: K2 | AQ10: VP | AR10: =SUMIF($B$18:$B$31,"VP",$F$18:$F$31) -> 0 | AS10: =AR10/60 -> 0 | AT10: =FLOOR(AS10,1) -> 0 | AU10: =IF(AR10>0,1,0) -> 0 | AV10: =IF(AT10+AU10<=1,AU10,AT10) -> 0 | AW10: =IF(IFERROR(VLOOKUP(AV10,AO8:AP33,2,FALSE),"K8")="k8","K7",VLOOKUP(AV10,AO8:AP33,2,FALSE)) -> Nvt | AX10: =IF(AND(AS10<1,AU10=1),"K0",AW10) -> Nvt | AY10: H118 Verpleging speciaal aan kinderen tot 18 jaar incl. beschikbaarheid | AZ10: H118 | BA10: 126.9254499 | BE10: 2GGZ-W | BF10: 766 | BG10: ja | BH10: 51214 | BI10: 982.1863014 | BL10: 4VV | BM10: =VLOOKUP(BL10,'Ruimte behandeling basis MPT'!$A$2:$H$46,8,FALSE) -> 83.76334147 | BN10: Nee | BO10: 0 | BR10: =IF(BR7=BR8,BR7,SUM(BR6:BR9)) ->  | BZ10: K2 | CA10: 3 | CB10: VP | CC10: 0 | CD10: H106 | CJ10: 4GGZ B | CK10: wel | CL10: nvt | CM10: 1GGZ-W | CN10: 864 | CO10: 0 | CP10: 0 | CQ10: 0 | CR10: 0 | CS10: 0 | CT10: 0 | CU10: 0 | CV10: 0 | CW10: 0 | CX10: 0 | CY10: 0 | CZ10: VP | DA10: =SUMIF($B$18:$B$31,"VP",$F$18:$F$31) -> 0 | DB10: =DA10/60 -> 0 | DC10: 20 | DD10: =DB10-DC10 -> -20 | DE10: 0 | DF10: Ja | DG10: Nvt | DL10: 0 | DM10: 0 | DN10: 0 | DO10: 0 | DP10: H180 Nachtverpleging | DQ10: H180 Nachtverpleging | DR10: H180 Nachtverpleging | DS10: 6vg | DT10: Midden | DV10: 6GGZ B | DW10: ja | DX10: Nee | DY10: 0 | DZ10: 27 | EL10: =IFERROR(VLOOKUP(G10,FL2:FM49,2,FALSE),0) -> 0 | ES10: V015 VPT 1vv excl.bh incl.db | EW10: Z063 ZZP 6vv incl.bh incl.db | EX10: V063 VPT 6vv incl.bh incl.db | FB10: 9vvb | FC10: Z097 ZZP 9bvv incl.bh incl.db | FD10: Opname | FE10: 9vvbOpname | FF10: 339.1092023 | FG10: 2373.764416 | FL10: 2VG | FM10: 1 | FR10: EKT bij Logeren | FS10: 0 | FX10: 0 | FY10: 0 | FZ10: 0 | GA10: 0 | GC10: 0 | GD10: 0 | GE10: Nee
M11: Maximale ruimte Extra kosten thuis | T11: Vervoer | U11: Dag | V11: 4VV | W11: 9VVb | X11: 4GGZ-W | Y11: 4LVG | Z11: 4LG | AA11: 4ZGvis | AB11: 0.915 | AC11: H331 Behandeling Families First lvg | AD11: H819 Dagbehandeling VG EMG volwassenen | AE11: H531 Dagbesteding basis | AF11: D061 DTV 6VV | AH11: Z1002 Logeren GHZ-ZG | AI11: H119 Verpleging speciaal aan kinderen tot 18 jaar exclusief beschikbaarheid | AJ11: H138 Thuiszorgtechnologie ten behoeve van persoonlijke verzorging | AK11: Z041 ZZP 4vv excl.bh incl.db | AL11: V041 VPT 4vv excl.bh incl.db | AM11: H883 Vervoer dagbesteding/dagbehandeling ghz - categorie 3 | AN11: H300 Begeleiding | AO11: 3 | AP11: K2 | AQ11: Bhind | AR11: =SUMIF($B$18:$B$31,"bhind",$F$18:$F$31) -> 0 | AS11: =AR11/60 -> 0 | AT11: =FLOOR(AS11,1) -> 0 | AU11: =IF(AR11>0,1,0) -> 0 | AV11: =IF(AT11+AU11<=1,AU11,AT11) -> 0 | AW11: =IF(AV11>0,99,"Nvt") -> Nvt | AY11: H117 Schoonmaak | AZ11: H117 | BA11: 35.11885276 | BC11: Totaal behandeling | BD11: =SUM(BD7:BD8) -> 0 | BE11: 3GGZ-W | BF11: 768 | BG11: ja | BH11: 57063 | BI11: 1094.358904 | BL11: 5VV | BM11: =VLOOKUP(BL11,'Ruimte behandeling basis MPT'!$A$2:$H$46,8,FALSE) -> 102.5809473 | BN11: =IF(R21="ja",BO6,BO10) -> 0 | BO11: =IFERROR(VLOOKUP(Q22,BN5:BO10,2,0),0) -> 0 | BR11: =SUM(BR7:BR9) ->  | BS11: Behandeling ruimte | BU11: =T20 -> 0 | BW11: Toegestaan logeren | BX11: 0 | BZ11: K3 | CA11: 5.5 | CB11: Bhind | CC11: 0 | CD11: H332 | CJ11: 5GGZ B | CK11: wel | CL11: nvt | CM11: 2GGZ-W | CN11: 766 | CO11: 0 | CP11: 0 | CQ11: 0 | CR11: 0 | CS11: 0 | CT11: 0 | CU11: 0 | CV11: 0 | CW11: 0 | CX11: 0 | CY11: 0 | CZ11: Bhind | DA11: =SUMIF($B$18:$B$31,"bhind",$F$18:$F$31) -> 0 | DB11: =DA11/60 -> 0 | DC11: nvt | DD11: =IFERROR(DB11-DC11,0) -> 0 | DE11: 0 | DF11: Nee | DH11: Ja; opgroeiend kind thuis jonger dan 23 jaar | DI11: Ja; opgroeiend kind thuis jonger dan 23 jaar | DJ11: Extra overbruggingszorg (urgent of actief plaatsen) | DL11: 0 | DM11: 0 | DN11: 0 | DO11: 0 | DP11: H531 Dagbesteding basis | DQ11: H531 Dagbesteding basis | DR11: H531 Dagbesteding basis | DS11: 7vg | DT11: Zwaar | DV11: 7GGZ B | DW11: ja | DX11: Nee | DY11: 0 | DZ11: 33 | EL11: =IF(F5="opname",6,IF(F5="VPT",10,IF(F5="deeltijd verblijf icm MPT",20,IF(F5="logeren icm MPT",30,0)))) -> 0 | ES11: V025 VPT 2vv excl.bh incl.db | EW11: Z071 ZZP 7vv excl.bh incl.db | EX11: V071 VPT 7vv excl.bh incl.db | FB11: 10vv | FC11: Z103 ZZP 10vv incl.bh incl.db | FD11: Opname | FE11: 10vvOpname | FF11: 528.4923676 | FG11: 3699.446573 | FL11: 3VG | FM11: 1 | FX11: 0 | FY11: 0 | FZ11: 0 | GA11: 0 | GC11: 0 | GD11: 0 | GE11: Nee
B12: Is er sprake van PGB naast ZIN? | M12: =IF(F5="MPT",FS8,IF(F5="deeltijd verblijf icm zorg thuis",FS9,FS10)) -> 0 | O12: LET OP: Meerzorg gekozen, klik hier voor onderbouwing! | T12: Bhgrp | U12: Dagdelen | V12: 6VV | W12: 10VV | X12: 5GGZ-W | Y12: 5LVG | Z12: 5LG | AA12: 5ZGvis | AB12: 0.92 | AC12: H332 Behandeling ZG visueel | AD12: H820 Dagbehandeling VG kind midden | AE12: H533 Dagbesteding psychogeriatrisch | AF12: D071 DTV 7VV | AH12: Z1003 Logeren VV | AI12: H139 Thuiszorgtechnologie ten behoeve van verpleging | AK12: Z051 ZZP 5vv excl.bh incl.db | AL12: V051 VPT 5vv excl.bh incl.db | AM12: H884 Vervoer dagbesteding/dagbehandeling ghz - categorie 4 | AN12: H301 Begeleiding ZG visueel | AO12: 4 | AP12: K3 | AQ12: BGgrp | AR12: =AW16+AW19 -> 0 | AS12: nvt | AT12: =AR12 -> 0 | AU12: nvt | AV12: =IF(AT12<=9,AT12,9) -> 0 | AW12: =VLOOKUP(AV12,AQ16:AR25,2,FALSE) -> Nvt | AY12: H120 Persoonlijke verzorging speciaal | AZ12: H120 | BA12: 77.49755872 | BE12: 4GGZ-W | BF12: 770 | BG12: ja | BH12: 68093 | BI12: 1305.893151 | BL12: 6VV | BM12: =VLOOKUP(BL12,'Ruimte behandeling basis MPT'!$A$2:$H$46,8,FALSE) -> 111.4271263 | BN12: =BO11-BN15 -> 0 | BO12: ja invasieve beademing | BP12: 0 | BQ12: =BP12*7 -> 0 | BS12: Aanvraag BH | BU12: =I33 -> 0 | BW12: per week | BX12: =BX11/365*7 -> 0 | BZ12: K4 | CA12: 8.5 | CB12: BGgrp | CC12: 0 | CD12: H822 | CJ12: 6GGZ B | CK12: wel | CL12: nvt | CM12: 3GGZ-W | CN12: 768 | CO12: 0 | CP12: 0 | CQ12: 0 | CR12: 0 | CS12: 0 | CT12: 0 | CU12: 0 | CV12: 0 | CW12: 0 | CX12: 0 | CY12: 0 | CZ12: BGgrp | DA12: =DB19+DA20 -> 0 | DB12: =CEILING(DA12,1) -> 0 | DC12: 9 | DD12: =DB12-DC12 -> -9 | DE12: 0 | DH12: Ja; ouder met kind jonger dan 18 die thuis woont | DI12: Ja; ouder met kind jonger dan 18 die thuis woont | DJ12: Palliatief terminale zorg | DL12: 0 | DM12: 0 | DN12: 0 | DO12: 0 | DP12: H533 Dagbesteding psychogeriatrisch | DQ12: H533 Dagbesteding psychogeriatrisch | DR12: H533 Dagbesteding psychogeriatrisch | DS12: 8vg | DT12: Midden | DV12: 1VG | DW12: ja | DX12: Nee | DY12: 0 | DZ12: 11.5 | EL12: =SUM(EL10:EL11) -> 0 | ER12: Z015 ZZP 1vv incl.db | ES12: V031 VPT 3vv excl.bh incl.db | EW12: Z073 ZZP 7vv incl.bh incl.db | EX12: V073 VPT 7vv incl.bh incl.db | FB12: 1vg | FC12: Z415 ZZP 1vg incl.db | FD12: Opname | FE12: 1vgOpname | FF12: 139.7168755 | FG12: 978.0181288 | FL12: 4VG | FM12: 1 | FR12: Ruimte BH | FS12: =IF(AND($I$33>0,$F$5="MPT"),$T$20,0) -> 0 | FX12: 0 | FY12: 0 | FZ12: 0 | GA12: 0 | GC12: 0 | GD12: 0 | GE12: Nee
B13: =IFERROR(VLOOKUP("verblijfsprestatie",B18:G31,5,0),0) -> 0 | C13: =IF(B13=7,0,1) -> 1 | D13: =IF(AND(F5="opname",C13=1),1,2) -> 2 | O13: LET OP: inzet uren past binnen reguliere ZZP uren. Meerzorg niet toegestaan | T13: Schoonmaak | U13: Minuten | V13: 7VV | Y13: 1SGLVG | Z13: 6LG | AA13: 1ZGaud | AB13: 0.925 | AC13: H333 Behandeling ZG auditief | AD13: H821 Dagbehandeling VG kind zwaar | AE13: H800 Dagbesteding somatisch ondersteunend | AF13: D081 DTV 8VV | AH13: Z1004 Logeren GGZ wonen | AI13: H128 Verpleging extra | AK13: Z061 ZZP 6vv excl.bh incl.db | AL13: V061 VPT 6vv excl.bh incl.db | AM13: H885 Vervoer dagbesteding/dagbehandeling ghz - categorie 5 | AN13: H302 Begeleiding speciaal 2 (visueel) | AO13: 5 | AP13: K3 | AQ13: BHgrp | AR13: =SUMIF($B$18:$B$31,"BHgrp",$F$18:$F$31) -> 0 | AS13: nvt | AT13: =AR13 -> 0 | AU13: nvt | AV13: =IF(AT13<=9,AT13,9) -> 0 | AW13: =VLOOKUP(AV13,AQ16:AR25,2,FALSE) -> Nvt | AY13: H126 Persoonlijke verzorging | AZ13: H126 | BA13: 59.59443524 | BC13: Totale omvang zorg thuis: | BD13: =SUM(I18:I31)-I33 -> 0 | BE13: 5GGZ-W | BF13: 772 | BG13: ja | BH13: 95041 | BI13: 1822.70411 | BL13: 7VV | BM13: =VLOOKUP(BL13,'Ruimte behandeling basis MPT'!$A$2:$H$46,8,FALSE) -> 137.7979308 | BN13: =IF(R21="ja",0,BR2) -> 0 | BO13: ja non-invasieve beademing | BP13: 0 | BQ13: =BP13*7 -> 0 | BU13: =BU11-BU12 -> 0 | BZ13: K5 | CA13: 11.5 | CB13: BHgrp | CC13: 0 | CD13: H822 | CJ13: 7GGZ B | CK13: wel | CL13: nvt | CM13: 4GGZ-W | CN13: 770 | CO13: 0 | CP13: 0 | CQ13: 0 | CR13: 0 | CS13: 0 | CT13: 0 | CU13: 0 | CV13: 0 | CW13: 0 | CX13: 0 | CY13: 0 | CZ13: BHgrp | DA13: =SUMIF($B$18:$B$31,"BHgrp",$F$18:$F$31) -> 0 | DB13: =DA13 -> 0 | DC13: 9 | DD13: =DB13-DC13 -> -9 | DE13: 0 | DH13: ja; sprake van betaalde arbeid | DI13: ja; sprake van betaalde arbeid | DJ13: Meerzorg | DL13: 0 | DM13: 0 | DN13: 0 | DO13: 0 | DP13: H800 Dagbesteding somatisch ondersteunend | DQ13: H800 Dagbesteding somatisch ondersteunend | DR13: H800 Dagbesteding somatisch ondersteunend | DS13: 1vv | DT13: BGgrp | DV13: 2VG | DW13: ja | DX13: Nee | DY13: 0 | DZ13: 14.5 | ER13: Z025 ZZP 2vv incl.db | ES13: V033 VPT 3vv incl.bh incl.db | EW13: Z081 ZZP 8vv excl.bh incl.db | EX13: V081 VPT 8vv excl.bh incl.db | FB13: 2vg | FC13: Z425 ZZP 2vg incl.db | FD13: Opname | FE13: 2vgOpname | FF13: 155.3539774 | FG13: 1087.477842 | FL13: 5VG | FM13: 1 | FR13: BH bij DTV | FS13: =IF(AND($I$33>0,$F$5="Deeltijd verblijf icm zorg thuis"),$T$20,0) -> 0 | FX13: 0 | FY13: 0 | FZ13: 0 | GA13: 0 | GC13: 0 | GD13: 0 | GE13: Nee
D14: LET OP: Verblijf moet 7 etmalen bevatten of keuze DTV! | F14: De rekenmodule is afgestemd met de cliënt: | M14: Ruimte voor behandeling | P14: "Vul hier onderbouwing bijzondere situatie in" | T14: Deeltijd_verblijf | U14: Etmalen | V14: 8VV | Y14: 1VG | Z14: 7LG | AA14: 2ZGaud | AB14: 0.93 | AC14: H334 Behandeling IOG lvg | AD14: H822 Dagbehandeling VG kind gedrag | AE14: H811 Dagbesteding VG licht | AF14: D430 DTV 3VG | AH14: Z1006 Logeren GHZ-ZEVMB | AK14: Z071 ZZP 7vv excl.bh incl.db | AL14: V071 VPT 7vv excl.bh incl.db | AM14: H321 Reiskosten prestaties behandeling (H325 t/m H331 en H334 t/m H336) | AN14: H303 Begeleiding ZG auditief | AO14: 6 | AP14: K3 | AQ14: Logeren | AR14: =SUMIF($B$18:$B$31,"logeren",$F$18:$F$31) -> 0 | AS14: nvt | AT14: =AR14 -> 0 | AU14: nvt | AV14: =IF(AT14<=7,AT14,7) -> 0 | AW14: =VLOOKUP(AV14,AS16:AT23,2,FALSE) -> Nvt | AY14: H127 Persoonlijke verzorging incl. beschikbaarheid | AZ14: H127 | BA14: 63.82606213 | BC14: MPT bedrag | BD14: =BD13-BD11 -> 0 | BE14: 1VG | BF14: 800 | BG14: ja | BH14: 38446 | BI14: 737.3205479 | BL14: 8VV | BM14: =VLOOKUP(BL14,'Ruimte behandeling basis MPT'!$A$2:$H$46,8,FALSE) -> 104.6187637 | BO14: Nee | BP14: 0 | BQ14: 0 | BS14: =IF(BU13<0,3,0) -> 0 | BW14: Toeslag op te tellen | BX14: =IF(BX12>=BX6,BX6,BX12) -> 0 | BZ14: K6 | CA14: 14.5 | CJ14: 1VG | CK14: wel | CL14: nvt | CM14: 5GGZ-W | CN14: 772 | CO14: 0 | CP14: 0 | CQ14: 0 | CR14: 0 | CS14: 0 | CT14: 0 | CU14: 0 | CV14: 0 | CW14: 0 | CX14: 0 | CY14: 0 | CZ14: HV | DA14: =SUMIF($B$18:$B$31,"schoonmaak",$F$18:$F$31) -> 0 | DB14: =DA14/60 -> 0 | DC14: 25 | DD14: =DB14-DC14 -> -25 | DE14: 0 | DH14: Ja; Extra kosten thuis | DI14: Ja; Cliënt is Wlz indiceerbaar | DJ14: Extra budget voor behandeling | DL14: 0 | DM14: 0 | DN14: 0 | DO14: 0 | DP14: H811 Dagbesteding VG licht | DQ14: H811 Dagbesteding VG licht | DR14: H811 Dagbesteding VG licht | DS14: 2vv | DT14: BGgrp | DV14: 3VG | DW14: ja | DX14: Nee | DY14: 0 | DZ14: 17.5 | ER14: Z031 ZZP 3vv excl.bh incl.db | ES14: V041 VPT 4vv excl.bh incl.db | EW14: Z083 ZZP 8vv incl.bh incl.db | EX14: V083 VPT 8vv incl.bh incl.db | FB14: 3vg | FC14: Z433 ZZP 3vg incl.bh incl.db | FD14: Opname | FE14: 3vgOpname | FF14: 201.7044835 | FG14: 1411.931385 | FL14: 6VG | FM14: 1 | FR14: BH bij Logeren | FS14: =IF(AND($I$33>0,$F$5="Logeren icm MPT"),$T$20,0) -> 0 | FX14: 0 | FY14: 0 | FZ14: 0 | GA14: 0 | GC14: 0 | GD14: 0 | GE14: Nee
K15: bedrag incl EKT: | M15: =IF(F5="MPT",FS12,IF(F5="deeltijd verblijf icm zorg thuis",FS13,FS14)) -> 0 | N15: =IFERROR(M15/M17,0) -> 0 | T15: Bhind | U15: Minuten | V15: 9VVb | Y15: 2VG | AA15: 3ZGaud | AB15: 0.935 | AC15: H335 Behandeling som, pg, vg, lg, zg (SO) | AD15: H840 Dagbehandeling LG/NAH | AE15: H812 Dagbesteding VG midden | AF15: D440 DTV 4VG | AK15: Z081 ZZP 8vv excl.bh incl.db | AL15: V081 VPT 8vv excl.bh incl.db | AM15: H337 Reiskosten prestatie behandeling (H332 en H333) | AN15: H304 Begeleiding speciaal 2 (auditief) | AO15: 7 | AP15: K4 | AQ15: Schoonmaak | AR15: =SUMIF($B$18:$B$31,"Schoonmaak",$F$18:$F$31) -> 0 | AS15: =AR15/60 -> 0 | AT15: =FLOOR(AS15,1) -> 0 | AU15: =IF(AR15>0,1,0) -> 0 | AV15: =IF(AT15+AU15<=1,AU15,AT15) -> 0 | AW15: =IFERROR(VLOOKUP(AV15,$AO$8:$AP$33,2,FALSE),"K8") -> Nvt | AY15: H128 Verpleging extra | AZ15: H128 | BA15: 83.01765061 | BE15: 2VG | BF15: 802 | BG15: ja | BH15: 45500 | BI15: 872.6027397 | BL15: 9VVb | BM15: =VLOOKUP(BL15,'Ruimte behandeling basis MPT'!$A$2:$H$46,8,FALSE) -> 437.2745991 | BN15: =IF(R25="ja",BO10,0) -> 0 | BS15: incl beh | BU15: =BU6+BU11 -> 0 | BZ15: K7 | CA15: 18 | CJ15: 2VG | CK15: wel | CL15: nvt | CM15: 1LVG | CN15: 780 | CO15: 0 | CP15: 0 | CQ15: 0 | CR15: 0 | CS15: 0 | CT15: 0 | CU15: 0 | CV15: 0 | CW15: 0 | CX15: 0 | CY15: 0 | DH15: Nee | DI15: Ja; Extra kosten thuis | DJ15: Gespecialiseerde verpleging | DL15: 0 | DM15: 0 | DN15: 0 | DO15: 0 | DP15: H814 Dagbesteding VG kind licht | DQ15: H812 Dagbesteding VG midden | DR15: H812 Dagbesteding VG midden | DS15: 3vv | DT15: BGgrp | DV15: 4VG | DW15: ja | DX15: Nee | DY15: 0 | DZ15: 20 | ER15: Z033 ZZP 3vv incl.bh incl.db | ES15: V043 VPT 4vv incl.bh incl.db | EW15: Z095 ZZP 9bvv excl.bh incl.db | EX15: V095 VPT 9bvv excl.bh incl.db | FB15: 4vg | FC15: Z443 ZZP 4vg incl.bh incl.db | FD15: Opname | FE15: 4vgOpname | FF15: 237.8007916 | FG15: 1664.605541 | FL15: 7VG | FM15: 1 | FX15: 0 | FY15: 0 | FZ15: 0 | GA15: 0 | GC15: 0 | GD15: 0 | GE15: Nee
B16: Aangevraagde zorg op weekbasis | G16: Eenheid | K16: =IF(AND(Q22="Ja; Extra kosten thuis",M15>0),1,0) -> 0 | M16: =IF(M5="financiële ruimte","Bedrag ZIN","Bedrag ZIN") -> Bedrag ZIN | T16: Logeren | U16: Etmalen | V16: 10VV | Y16: 3VG | AA16: 4ZGaud | AB16: 0.94 | AC16: H336 Behandeling som, pg, vg, lg, zg (AVG) | AD16: H891 Dagbehandeling LVG | AE16: H813 Dagbesteding VG zwaar | AF16: D454 DTV 5VG | AK16: Z095 ZZP 9bvv excl.bh incl.db | AL16: V095 VPT 9bvv excl.bh incl.db | AN16: H306 Thuiszorgtechnologie ten behoeve van begeleiding | AO16: 8 | AP16: K4 | AQ16: 0 | AR16: Nvt | AS16: 0 | AT16: Nvt | AW16: =SUMIFS(F18:F31,B18:B31,"BGgrp",G18:G31,"Dagdelen") -> 0 | AY16: H132 Nachtverzorging | AZ16: H132 | BA16: 55.88366045 | BE16: 3VG | BF16: 804 | BG16: ja | BH16: 51865 | BI16: 994.6712329 | BL16: 10VV | BM16: =VLOOKUP(BL16,'Ruimte behandeling basis MPT'!$A$2:$H$46,8,FALSE) -> 0 | BN16: 1VV | BO16: 750 | BP16: nvt | BQ16: =VLOOKUP(BN16,Tarieven_PGB0,13,FALSE) -> 17352 | BR16: =BQ16/365*7 -> 332.7780822 | BS16: omvang | BU16: =BU7+BU12 -> 0 | BZ16: K8 | CA16: 22.5 | CJ16: 3VG | CK16: wel | CL16: nvt | CM16: 2LVG | CN16: 781 | CO16: 0 | CP16: 0 | CQ16: 0 | CR16: 0 | CS16: 0 | CT16: 0 | CU16: 0 | CV16: 0 | CW16: 0 | CX16: 0 | CY16: 0 | DB16: Voor voorwaardelijke opmaak "opslag" | DI16: Nee | DJ16: Toeslag thuiswonend kind <18 | DL16: 0 | DM16: 0 | DN16: 0 | DO16: 0 | DP16: H818 Dagactiviteit (begeleiding) VG kind gedrag | DQ16: H814 Dagbesteding VG kind licht | DR16: H813 Dagbesteding VG zwaar | DS16: 4vv | DT16: BGgrp | DV16: 5VG | DW16: ja | DX16: Ja | DY16: =DZ16*1.25 -> 31.875 | DZ16: 25.5 | EM16: =IF(F5="deeltijd verblijf icm zorg thuis","Deeltijd",IF(F5="logeren icm MPT","LOG",F5)) -> 0 | ER16: Z041 ZZP 4vv excl.bh incl.db | ES16: V051 VPT 5vv excl.bh incl.db | EW16: Z097 ZZP 9bvv incl.bh incl.db | EX16: V097 VPT 9bvv incl.bhincl.db | FB16: 5vg | FC16: Z457 ZZP 5vg incl.bh incl.db | FD16: Opname | FE16: 5vgOpname | FF16: 306.9447054 | FG16: 2148.612938 | FL16: 8VG | FM16: 1 | GA16: =SUM(GA2:GA15) -> 0
B17: Soort zorg | D17: Prestatie | E17: Leverende AGBcode | F17: Aantal | H17: Tarief | I17: Bedrag per week | K17: Percentage | M17: =M10+M12+M15 -> 0 | N17: =IFERROR(IF(F5="deeltijd verblijf icm zorg thuis",(M17/'Deeltijd verblijf'!P2),(M17/M6)),0) -> 0 | T17: verblijfsprestatie | U17: Etmalen | Y17: 4VG | AB17: 0.945 | AC17: H338 Behandeling sglvg | AE17: H814 Dagbesteding VG kind licht | AF17: D460 DTV 6VG | AK17: Z101 ZZP 10vv excl.bh incl.db | AL17: V101 VPT 10vv excl.bh incl.db | AO17: 9 | AP17: K4 | AQ17: 1 | AR17: KD01 | AS17: 1 | AT17: KE1 | AW17: =SUMIFS(F18:F31,B18:B31,"BGgrp",G18:G31,"Minuten") -> 0 | AY17: H138 Thuiszorgtechnologie ten behoeve van persoonlijke verzorging | AZ17: H138 | BA17: 59.59443524 | BE17: 4VG | BF17: 806 | BG17: ja | BH17: 56926 | BI17: 1091.731507 | BL17: 1VG | BM17: =VLOOKUP(BL17,'Ruimte behandeling basis MPT'!$A$2:$H$46,8,FALSE) -> 0 | BN17: 2VV | BO17: 751 | BP17: nvt | BQ17: 25160 | BR17: =BQ17/365*7 -> 482.5205479 | BU17: =BU15-BU16 -> 0 | BZ17: KD01 | CA17: 1 | CJ17: 4VG | CK17: wel | CL17: nvt | CM17: 3LVG | CN17: 782 | CO17: 0 | CP17: 0 | CQ17: 0 | CR17: 0 | CS17: 0 | CT17: 0 | CU17: 0 | CV17: 0 | CW17: 0 | CX17: 0 | CY17: 0 | DB17: =SUM(DE8:DE14) -> 0 | DJ17: Toeslag maatwerk thuis | DL17: 0 | DM17: 0 | DN17: 0 | DP17: H831 Dagbesteding LG licht | DQ17: H815 Dagbesteding VG kind midden | DR17: H814 Dagbesteding VG kind licht | DS17: 5vv | DT17: BGgrp | DV17: 6VG | DW17: ja | DX17: Nee | DY17: =DZ17*1.25 -> 31.25 | DZ17: 25 | ER17: Z043 ZZP 4vv incl.bh incl.db | ES17: V053 VPT 5vv incl.bh incl.db | EW17: Z101 ZZP 10vv excl.bh incl.db | EX17: V101 VPT 10vv excl.bh incl.db | FB17: 6vg | FC17: Z463 ZZP 6vg incl.bh incl.db | FD17: Opname | FE17: 6vgOpname | FF17: 274.9097092 | FG17: 1924.367964 | FL17: 1LG | FM17: 1
C18: =IF(B18="onklaar",$DP$1,B18) -> 0 | G18: =DN6 -> 0 | H18: =IFERROR(IF(OR(COUNTIF(B18:B31,"VPTprestatie")>1,(COUNTIF(B18:B31,"verblijfsprestatie")>1)),"fout splitsing",U30),U30) -> 0 | I18: =IF(G18="minuten",(H18/60)*F18,F18*H18) -> 0 | K18: =IFERROR(IF($F$5="deeltijd verblijf icm zorg thuis",(I18/'Deeltijd verblijf'!$P$2)*100%,I18/($T$28+$M$8)*100%),0) -> 0 | T18: Dagbesteding | U18: Dagdelen | Y18: 5VG | AB18: 0.95 | AE18: H815 Dagbesteding VG kind midden | AF18: D470 DTV 7VG | AK18: Z033 ZZP 3vv incl.bh incl.db | AL18: V414 VPT 1vg excl.bh excl.db | AO18: 10 | AP18: K5 | AQ18: 2 | AR18: KD02 | AS18: 2 | AT18: KE2 | AW18: =AW17/60 -> 0 | AY18: H139 Thuiszorgtechnologie ten behoeve van verpleging | AZ18: H139 | BA18: 77.49755872 | BE18: 5VG | BF18: 808 | BG18: ja | BH18: 72596 | BI18: 1392.252055 | BL18: 2VG | BM18: =VLOOKUP(BL18,'Ruimte behandeling basis MPT'!$A$2:$H$46,8,FALSE) -> 0 | BN18: 3VV | BO18: 752 | BP18: nvt | BQ18: 30628 | BR18: 587.3863014 | BS18: =IF(BU17<0,0,4) -> 4 | BZ18: KD02 | CA18: 2 | CJ18: 5VG | CK18: wel | CL18: nvt | CM18: 4LVG | CN18: 783 | CO18: 0 | CP18: 0 | CQ18: 0 | CR18: 0 | CS18: 0 | CT18: 0 | CU18: 0 | CV18: 0 | CW18: 0 | CX18: 0 | CY18: 0 | DJ18: Overig | DL18: 0 | DM18: 0 | DN18: 0 | DP18: H834 Dagbesteding LG kind licht | DQ18: H818 Dagactiviteit (begeleiding) VG kind gedrag | DR18: H815 Dagbesteding VG kind midden | DS18: 6vv | DT18: BGgrp | DV18: 7VG | DW18: ja | DX18: Ja | DY18: 45 | DZ18: 36 | ER18: Z051 ZZP 5vv excl.bh incl.db | ES18: V061 VPT 6vv excl.bh incl.db | EW18: Z103 ZZP 10vv incl.bh incl.db | EX18: V103 VPT 10vv incl.bhincl.db | FB18: 7vg | FC18: Z473 ZZP 7vg incl.bh incl.db | FD18: Opname | FE18: 7vgOpname | FF18: 385.9136894 | FG18: 2701.395826 | FL18: 2LG | FM18: 1 | FZ18: Ja | GA18: =VLOOKUP(FZ18,GB2:GC15,2,0) ->  | GB18: ja
C19: =IF(B19="onklaar",$DP$1,B19) -> 0 | G19: 0 | H19: =U31 -> 0 | I19: 0 | K19: =IFERROR(IF($F$5="deeltijd verblijf icm zorg thuis",(I19/'Deeltijd verblijf'!$P$2)*100%,I19/($T$28+$M$8)*100%),0) -> 0 | M19: Vervolgactie na rekenmodule | T19: VPTprestatie | U19: Etmalen | Y19: 6VG | AB19: 0.955 | AE19: H816 Dagbesteding VG kind zwaar | AF19: D480 DTV 8VG | AK19: Z043 ZZP 4vv incl.bh incl.db | AL19: V424 VPT 2vg excl.bh excl.db | AO19: 11 | AP19: K5 | AQ19: 3 | AR19: KD03 | AS19: 3 | AT19: KE3 | AW19: =CEILING(AW18,1) -> 0 | AY19: H150 Begeleiding incl. beschikbaarheid | AZ19: H150 | BA19: 71.51515612 | BE19: 6VG | BF19: 810 | BG19: ja | BH19: 68270 | BI19: 1309.287671 | BL19: 3VG | BM19: =VLOOKUP(BL19,'Ruimte behandeling basis MPT'!$A$2:$H$46,8,FALSE) -> 167.1961227 | BN19: 4VV | BO19: 753 | BP19: nvt | BQ19: 41037 | BR19: 787.0109589 | BS19: =IF(BU8=0,8,0) -> 0 | BZ19: KD03 | CA19: 3 | CJ19: 6VG | CK19: wel | CL19: nvt | CM19: 5LVG | CN19: 784 | CO19: 0 | CP19: 0 | CQ19: 0 | CR19: 0 | CS19: 0 | CT19: 0 | CU19: 0 | CV19: 0 | CW19: 0 | CX19: 0 | CY19: 0 | DA19: =SUMIFS(F18:F31,B18:B31,"BGgrp",G18:G31,"minuten") -> 0 | DB19: =DA19/60 -> 0 | DJ19: Nee | DL19: 0 | DM19: 0 | DN19: 0 | DP19: H851 Dagbesteding ZG auditief licht | DQ19: H831 Dagbesteding LG licht | DR19: H816 Dagbesteding VG kind zwaar | DS19: 7vv | DT19: BGgrp | DV19: 8VG | DW19: ja | DX19: Ja | DY19: 37.5 | DZ19: 30 | ER19: Z053 ZZP 5vv incl.bh incl.db | ES19: V063 VPT 6vv incl.bh incl.db | EW19: Z414 ZZP 1vg excl.db | EX19: V414 VPT 1vg excl.bh excl.db | FB19: 8vg | FC19: Z483 ZZP 8vg incl.bh incl.db | FD19: Opname | FE19: 8vgOpname | FF19: 376.0973332 | FG19: 2632.681333 | FL19: 3LG | FM19: 1 | FZ19: Nee
C20: 0 | G20: 0 | H20: 0 | I20: 0 | K20: =IFERROR(IF($F$5="deeltijd verblijf icm zorg thuis",(I20/'Deeltijd verblijf'!$P$2)*100%,I20/($T$28+$M$8)*100%),0) -> 0 | M20: =IFERROR(IF(Q24="gespecialiseerde verpleging",BT22,VLOOKUP(BS20,BS22:BT276,2,FALSE))," ") -> Eerst zorgvraag invullen | T20: =IF(FS8>0,U20*125%,U20) -> 0 | U20: =IFERROR(VLOOKUP($G$10,$BL$7:$BM$88,2,FALSE),0) -> 0 | Y20: 7VG | AB20: 0.96 | AE20: H818 Dagactiviteit (begeleiding) VG kind gedrag | AF20: D624 DTV 2LG | AK20: Z053 ZZP 5vv incl.bh incl.db | AL20: V430 VPT 3vg excl.bh excl.db | AO20: 12 | AP20: K5 | AQ20: 4 | AR20: KD04 | AS20: 4 | AT20: KE4 | AY20: H152 Begeleiding speciaal 1 (nah) | AZ20: H152 | BA20: 106.2394757 | BE20: 7VG | BF20: 812 | BG20: ja | BH20: 90626 | BI20: 1738.032877 | BL20: 4VG | BM20: =VLOOKUP(BL20,'Ruimte behandeling basis MPT'!$A$2:$H$46,8,FALSE) -> 286.8838894 | BN20: 5VV | BO20: 754 | BP20: nvt | BQ20: 55678 | BR20: 1067.79726 | BS20: =IF(AND(BS21=2085,M17<I35),2,BS21) -> 1105 | BT20: =IF(E45=0,100,0) -> 100 | BU20: =IF(R21="ja",80,0) -> 0 | BV20: =IF(G12="ja",500,0) -> 0 | BW20: =IF(R21="ja",1000,0) -> 0 | BX20: =IF(Q24="palliatief terminale zorg",1000,0) -> 0 | BZ20: KD04 | CA20: 4 | CJ20: 7VG | CK20: wel | CL20: nvt | CM20: 1SGLVG | CN20: 790 | CO20: 0 | CP20: 0 | CQ20: 0 | CR20: 0 | CS20: 0 | CT20: 0 | CU20: 0 | CV20: 0 | CW20: 0 | CX20: 0 | CY20: 0 | DA20: =SUMIFS(F18:F31,B18:B31,"BGgrp",G18:G31,"Dagdelen") -> 0 | DH20: =IF($F$5="opname","Verblijf",IF($F$5="MPT","MPT",IF($F$5="VPT","VPT","DTV"))) -> DTV | DP20: H854 Dagbesteding ZG kind auditief licht | DQ20: H832 Dagbesteding LG midden | DR20: H818 Dagactiviteit (begeleiding) VG kind gedrag | DS20: 8vv | DT20: BGgrp | DV20: 1LG | DW20: ja | DX20: Nee | DY20: 18.125 | DZ20: 14.5 | ER20: Z061 ZZP 6vv excl.bh incl.db | ES20: V071 VPT 7vv excl.bh incl.db | EW20: Z415 ZZP 1vg incl.db | EX20: V415 VPT 1vg excl.bh incl.db | FB20: 1lvg | FC20: Z513 ZZP 1lvg incl.bh incl.db | FD20: Opname | FE20: 1lvgOpname | FF20: 236.0054211 | FG20: 1652.037947 | FL20: 4LG | FM20: 1
C21: 0 | G21: 0 | H21: 0 | I21: 0 | K21: =IFERROR(IF($F$5="deeltijd verblijf icm zorg thuis",(I21/'Deeltijd verblijf'!$P$2)*100%,I21/($T$28+$M$8)*100%),0) -> 0 | M21: Aanvraag past niet. Is er sprake van een bijzondere situatie? | T21: =BX14 -> 0 | U21: F125 | Y21: 8VG | AB21: 0.965 | AE21: H831 Dagbesteding LG licht | AF21: D640 DTV 4LG | AK21: Z063 ZZP 6vv incl.bh incl.db | AL21: V440 VPT 4vg excl.bh excl.db | AO21: 13 | AP21: K6 | AQ21: 5 | AR21: KD05 | AS21: 5 | AT21: KE5 | AY21: H153 Begeleiding speciaal 2 (psy) | AZ21: H153 | BA21: 114.1442198 | BE21: 8VG | BF21: 814 | BG21: ja | BH21: 79872 | BI21: 1531.791781 | BL21: 5VG | BM21: =VLOOKUP(BL21,'Ruimte behandeling basis MPT'!$A$2:$H$46,8,FALSE) -> 238.0097192 | BN21: 6VV | BO21: 755 | BP21: nvt | BQ21: 55678 | BR21: 1067.79726 | BS21: =IF(AND(F5="opname",SUM(F18:F20)=16),1,IF(AND(F5="VPT",SUM(F18:F20)=16),1,$BS$14+$BS$18+$BS$9+$BS$19+$BT$20+$BU$20+$BV$20+$BW$20+$BX$21)) -> 1105 | BX21: =IF(OR(BX20=1000,K35<126%),1000,0) -> 1000 | BZ21: KD05 | CA21: 5 | CJ21: 8VG | CK21: wel | CL21: nvt | CM21: 1VG | CN21: 800 | CO21: 0 | CP21: 0 | CQ21: 0 | CR21: 0 | CS21: 0 | CT21: 0 | CU21: 0 | CV21: 0 | CW21: 0 | CX21: 0 | CY21: 0 | DH21: =IF($F$5="opname","Verblijf",IF($F$5="MPT","MPT",IF($F$5="VPT","VPT","DTV"))) -> DTV | DP21: H871 Dagbesteding ZG visueel licht | DQ21: H834 Dagbesteding LG kind licht | DR21: H831 Dagbesteding LG licht | DS21: 9vv | DT21: BGgrp | DV21: 2LG | DW21: ja | DX21: Nee | DY21: 25 | DZ21: 20 | ER21: Z063 ZZP 6vv incl.bh incl.db | ES21: V073 VPT 7vv incl.bh incl.db | EW21: Z424 ZZP 2vg excl.db | EX21: V424 VPT 2vg excl.bh excl.db | FB21: 2lvg | FC21: Z523 ZZP 2lvg incl.bh incl.db | FD21: Opname | FE21: 2lvgOpname | FF21: 282.7639726 | FG21: 1979.347808 | FL21: 5LG | FM21: 1
C22: 0 | G22: 0 | H22: 0 | I22: 0 | K22: =IFERROR(IF($F$5="deeltijd verblijf icm zorg thuis",(I22/'Deeltijd verblijf'!$P$2)*100%,I22/($T$28+$M$8)*100%),0) -> 0 | M22: Is er sprake van extra kosten thuis? | T22: =IF(M20="PGB: rekenmodule voorleggen aan zorgkantoor",1,0) -> 0 | AB22: 0.97 | AE22: H832 Dagbesteding LG midden | AF22: D650 DTV 5LG | AK22: Z073 ZZP 7vv incl.bh incl.db | AL22: V454 VPT 5vg excl.bh excl.db | AO22: 14 | AP22: K6 | AQ22: 6 | AR22: KD06 | AS22: 6 | AT22: KE6 | AY22: H180 Nachtverpleging | AZ22: H180 | BA22: 105.3811686 | BE22: 1LG | BF22: 820 | BG22: ja | BH22: 49915 | BI22: 957.2739726 | BL22: 6VG | BM22: =VLOOKUP(BL22,'Ruimte behandeling basis MPT'!$A$2:$H$46,8,FALSE) -> 318.8385284 | BN22: 7VV | BO22: 756 | BP22: nvt | BQ22: 69744 | BR22: 1337.556164 | BS22: 1 | BT22: Zorg aanvragen via iWLZ, geen extra toestemming vereist | BZ22: KD06 | CA22: 6 | CJ22: 1LG | CK22: wel | CL22: nvt | CM22: 2VG | CN22: 802 | CO22: 0 | CP22: 0 | CQ22: 0 | CR22: 0 | CS22: 0 | CT22: 0 | CU22: 0 | CV22: 0 | CW22: 0 | CX22: 0 | CY22: 0 | DH22: DTV | DP22: H874 Dagbesteding ZG kind visueel licht | DQ22: H835 Dagbesteding LG kind midden | DR22: H832 Dagbesteding LG midden | DS22: 10vv | DT22: BGgrp | DV22: 3LG | DW22: ja | DX22: Nee | DY22: 25 | DZ22: 20 | ER22: Z071 ZZP 7vv excl.bh incl.db | ES22: V081 VPT 8vv excl.bh incl.db | EW22: Z425 ZZP 2vg incl.db | EX22: V425 VPT 2vg excl.bh incl.db | FB22: 3lvg | FC22: Z533 ZZP 3lvg incl.bh incl.db | FD22: Opname | FE22: 3lvgOpname | FF22: 369.0921102 | FG22: 2583.644771 | FL22: 6LG | FM22: 1
C23: 0 | G23: =DN11 -> 0 | H23: 0 | I23: 0 | K23: =IFERROR(IF($F$5="deeltijd verblijf icm zorg thuis",(I23/'Deeltijd verblijf'!$P$2)*100%,I23/($T$28+$M$8)*100%),0) -> 0 | M23: Is er spake van een toeslag in verband met beademing? | T23: =IF(I32>T1,2,0) -> 0 | X23: EKT | Y23: Beademing | Z23: Extra overbruggingszorg (urgent of actief plaatsen) | AB23: 0.975 | AE23: H833 Dagbesteding LG zwaar | AF23: D660 DTV 6LG | AK23: Z083 ZZP 8vv incl.bh incl.db | AL23: V460 VPT 6vg excl.bh excl.db | AO23: 15 | AP23: K6 | AQ23: 7 | AR23: KD07 | AS23: 7 | AT23: KE7 | AY23: H300 Begeleiding | AZ23: H300 | BA23: 66.77621956 | BE23: 2LG | BF23: 822 | BG23: ja | BH23: 59646 | BI23: 1143.89589 | BL23: 7VG | BM23: =VLOOKUP(BL23,'Ruimte behandeling basis MPT'!$A$2:$H$46,8,FALSE) -> 555.0540484 | BN23: 8VV | BO23: 757 | BP23: nvt | BQ23: 83238 | BR23: 1596.345205 | BS23: 2 | BT23: Rekenmodule voorleggen aan Zorgkantoor | BZ23: KD07 | CA23: 7 | CJ23: 2LG | CK23: wel | CL23: nvt | CM23: 3VG | CN23: 804 | CO23: 0 | CP23: 0 | CQ23: 0 | CR23: 0 | CS23: 0 | CT23: 0 | CU23: 0 | CV23: 0 | CW23: 0 | CX23: 0 | CY23: 0 | DH23: DTV | DQ23: H851 Dagbesteding ZG auditief licht | DR23: H833 Dagbesteding LG zwaar | DS23: 1lg | DT23: Zwaar | DV23: 4LG | DW23: ja | DX23: Nee | DY23: 28.75 | DZ23: 23 | ER23: Z073 ZZP 7vv incl.bh incl.db | ES23: V083 VPT 8vv incl.bh incl.db | EW23: Z430 ZZP 3vg excl.bh excl.db | EX23: V430 VPT 3vg excl.bh excl.db | FB23: 4lvg | FC23: Z543 ZZP 4lvg incl.bh incl.db | FD23: Opname | FE23: 4lvgOpname | FF23: 424.175176 | FG23: 2969.226232 | FL23: 7LG | FM23: 1
C24: 0 | G24: 0 | H24: 0 | I24: 0 | K24: =IFERROR(IF($F$5="deeltijd verblijf icm zorg thuis",(I24/'Deeltijd verblijf'!$P$2)*100%,I24/($T$28+$M$8)*100%),0) -> 0 | M24: Is er sprake van een overige reden? | T24: =SUM(T22:T23) -> 0 | V24: Ja; sprake van thuiswonend kind | W24: Ja; sprake van thuiswonend kind | X24: =IF(Q22="Ja; extra kosten thuis",X26,IF(Q22="Ja; ouder met kind jonger dan 18 die thuis woont",X27,IF(Q22="Ja; sprake van betaalde arbeid",X28,""))) ->  | Y24: =IF(Q23="ja invasieve beademing","invasieve beademing",IF(Q23="ja non-invasieve beademing","non-invasieve beademing","")) ->  | Z24: Palliatief terminale zorg (PTZ) | AB24: 0.98 | AE24: H834 Dagbesteding LG kind licht | AF24: D670 DTV 7LG | AK24: Z097 ZZP 9bvv incl.bh incl.db | AL24: V470 VPT 7vg excl.bh excl.db | AO24: 16 | AP24: K7 | AQ24: 8 | AR24: KD08 | AY24: H301 Begeleiding ZG visueel | AZ24: H301 | BA24: 118.3101118 | BE24: 3LG | BF24: 824 | BG24: ja | BH24: 55495 | BI24: 1064.287671 | BL24: 8VG | BM24: =VLOOKUP(BL24,'Ruimte behandeling basis MPT'!$A$2:$H$46,8,FALSE) -> 331.1054174 | BN24: 9vvb | BO24: 191 | BP24: nvt | BQ24: 53377 | BR24: 1023.668493 | BS24: 3 | BT24: Rekenmodule voorleggen aan Zorgkantoor | BV24: 3357 | BZ24: KD08 | CA24: 8 | CJ24: 3LG | CK24: wel | CL24: nvt | CM24: 4VG | CN24: 806 | CO24: 0 | CP24: 0 | CQ24: 0 | CR24: 0 | CS24: 0 | CT24: 0 | CU24: 0 | CV24: 0 | CW24: 0 | CX24: 0 | CY24: 0 | DH24: DTV | DQ24: H852 Dagbesteding ZG auditief midden | DR24: H834 Dagbesteding LG kind licht | DS24: 2lg | DT24: Midden | DV24: 5LG | DW24: ja | DX24: Ja | DY24: 35.625 | DZ24: 28.5 | ER24: Z081 ZZP 8vv excl.bh incl.db | ES24: V095 VPT 9bvv excl.bh incl.db | EW24: Z431 ZZP 3vg excl.bh incl.db | EX24: V431 VPT 3vg excl.bh incl.db | FB24: 5lvg | FC24: Z553 ZZP 5lvg incl.bh incl.db | FD24: Opname | FE24: 5lvgOpname | FF24: 404.9147964 | FG24: 2834.403575 | FL24: 1ZGvis | FM24: 1
C25: 0 | G25: 0 | H25: 0 | I25: 0 | K25: =IFERROR(IF($F$5="deeltijd verblijf icm zorg thuis",(I25/'Deeltijd verblijf'!$P$2)*100%,I25/($T$28+$M$8)*100%),0) -> 0 | M25: Is er sprake van een kleinschalige woonvoorziening? | V25: ja; sprake van betaalde arbeid | W25: ja; sprake van betaalde arbeid | X25: Overig | Y25: =IF(Q24="extra overbruggingszorg (urgent of actief actief plaatsen)",Z23,IF(Q24="palliatief terminale zorg",Z24,IF(Q24="meerzorg",Z25,IF(Q24="extra budget voor behandeling",Z26,IF(Q24="overig",Z27,IF(Q24="Gespecialiseerde verpleging",Z28,"")))))) ->  | Z25: Meerzorg | AB25: 0.985 | AE25: H835 Dagbesteding LG kind midden | AF25: H401 DTV 1GGZ-W | AK25: Z103 ZZP 10vv incl.bh incl.db | AL25: V480 VPT 8vg excl.bh excl.db | AO25: 17 | AP25: K7 | AQ25: 9 | AR25: KD09 | AY25: H302 Begeleiding speciaal 2 (visueel) | AZ25: H302 | BA25: 145.3955146 | BE25: 4LG | BF25: 826 | BG25: ja | BH25: 59646 | BI25: 1143.89589 | BL25: 1LVG | BM25: =VLOOKUP(BL25,'Ruimte behandeling basis MPT'!$A$2:$H$46,8,FALSE) -> 0 | BN25: 10VV | BO25: 759 | BP25: nvt | BQ25: 90677 | BR25: 1739.010959 | BS25: 4 | BT25: Rekenmodule voorleggen aan Zorgkantoor | BV25: =BV24/365 -> 9.197260274 | BZ25: KD09 | CA25: 9 | CC25: Bedrag | CJ25: 4LG | CK25: wel | CL25: nvt | CM25: 5VG | CN25: 808 | CO25: 0 | CP25: 0 | CQ25: 0 | CR25: 0 | CS25: 0 | CT25: 0 | CU25: 0 | CV25: 0 | CW25: 0 | CX25: 0 | CY25: 0 | DH25: DTV | DQ25: H854 Dagbesteding ZG kind auditief licht | DR25: H835 Dagbesteding LG kind midden | DS25: 3lg | DT25: Zwaar | DV25: 6LG | DW25: ja | DX25: Ja | DY25: 35.625 | DZ25: 28.5 | ER25: Z083 ZZP 8vv incl.bh incl.db | EW25: Z432 ZZP 3vg incl.bh excl.db | EX25: V432 VPT 3vg incl.bh excl.db | FB25: 1sglvg | FC25: Z573 ZZP 1sglvg incl.bh incl.db | FD25: Opname | FE25: 1sglvgOpname | FF25: 473.5166335 | FG25: 3314.616434 | FL25: 2ZGvis | FM25: 1
C26: 0 | G26: 0 | H26: 0 | I26: 0 | K26: =IFERROR(IF($F$5="deeltijd verblijf icm zorg thuis",(I26/'Deeltijd verblijf'!$P$2)*100%,I26/($T$28+$M$8)*100%),0) -> 0 | L26: Zorg aan te vragen conform iWLZ | T26: =IF(I33<M15,I33,M15) -> 0 | V26: Ja; sprake van terminale zorg | W26: Nee | X26: Extra kosten thuis | Z26: Extra budget voor behandeling | AB26: 0.99 | AE26: H836 Dagbesteding LG kind zwaar | AF26: H402 DTV 2GGZ-W | AK26: Z212 ZZP 1ggz-b incl.bh excl.db | AL26: V513 VPT 1lvg incl.bh incl.db | AO26: 18 | AP26: K7 | AY26: H303 Begeleiding ZG auditief | AZ26: H303 | BA26: 98.79671289 | BE26: 5LG | BF26: 828 | BG26: ja | BH26: 70870 | BI26: 1359.150685 | BL26: 2LVG | BM26: =VLOOKUP(BL26,'Ruimte behandeling basis MPT'!$A$2:$H$46,8,FALSE) -> 0 | BN26: 1LVG | BO26: 780 | BP26: nvt | BQ26: 32506 | BR26: 623.4027397 | BS26: 5 | BT26: Zorg aanvragen via iWLZ, geen extra toestemming vereist | BV26: =BV25*7 -> 64.38082192 | CA26: BG-IND | CB26: =IFERROR(VLOOKUP(N28,$BZ$8:$CA$25,2,FALSE),0) -> 0 | CC26: 0 | CD26: H302 | CE26: =CB26*CC26 -> 0 | CJ26: 5LG | CK26: wel | CL26: nvt | CM26: 6VG | CN26: 810 | CO26: 0 | CP26: 0 | CQ26: 0 | CR26: 0 | CS26: 0 | CT26: 0 | CU26: 0 | CV26: 0 | CW26: 0 | CX26: 0 | CY26: 0 | DH26: DTV | DQ26: H855 Dagbesteding ZG kind auditief midden | DR26: H836 Dagbesteding LG kind zwaar | DS26: 4lg | DT26: Midden | DV26: 7LG | DW26: ja | DX26: Ja | DY26: 38.125 | DZ26: 30.5 | EC26: 26 | ED26: 32 | EE26: =EC26+ED26 -> 58 | ER26: Z095 ZZP 9bvv excl.bh incl.db | EW26: Z433 ZZP 3vg incl.bh incl.db | EX26: V433 VPT 3vg incl.bh incl.db | FB26: 1lg | FC26: Z615 ZZP 1lg incl.db | FD26: Opname | FE26: 1lgOpname | FF26: 186.9968015 | FG26: 1308.97761 | FL26: 3ZGvis | FM26: 1
C27: 0 | G27: 0 | H27: =U39 -> 0 | I27: 0 | K27: =IFERROR(IF($F$5="deeltijd verblijf icm zorg thuis",(I27/'Deeltijd verblijf'!$P$2)*100%,I27/($T$28+$M$8)*100%),0) -> 0 | L27: AGBcode | N27: Percentage | O27: Opname | P27: Leveringsvorm | Q27: Doelmatig | R27: =IFERROR(IF((SUM(N28:N38)+N8)<101%,"Ja","Nee"),0) -> 0 | V27: Nee | X27: Extra kosten thuis | Z27: Overig | AB27: 0.995 | AE27: H001G Dagbesteding ggz wonen-1 | AF27: H403 DTV 3GGZ-W | AK27: Z222 ZZP 2ggz-b incl.bh excl.db | AL27: V523 VPT 2lvg incl.bh incl.db | AO27: 19 | AP27: K7 | AY27: H304 Begeleiding speciaal 2 (auditief) | AZ27: H304 | BA27: 125.9245012 | BE27: 6LG | BF27: 830 | BG27: ja | BH27: 77836 | BI27: 1492.745205 | BL27: 3LVG | BM27: =VLOOKUP(BL27,'Ruimte behandeling basis MPT'!$A$2:$H$46,8,FALSE) -> 0 | BN27: 2LVG | BO27: 781 | BP27: nvt | BQ27: 46572 | BR27: 893.1616438 | BS27: 6 | BT27: Rekenmodule voorleggen aan Zorgkantoor | CA27: BG-GRP | CB27: =IFERROR(VLOOKUP(N29,$BZ$8:$CA$25,2,FALSE),0) -> 0 | CC27: 0 | CD27: H822 | CE27: 0 | CJ27: 6LG | CK27: wel | CL27: nvt | CM27: 7VG | CN27: 812 | CO27: 0 | CP27: 0 | CQ27: 0 | CR27: 0 | CS27: 0 | CT27: 0 | CU27: 0 | CV27: 0 | CW27: 0 | CX27: 0 | CY27: 0 | DH27: DTV | DQ27: H871 Dagbesteding ZG visueel licht | DR27: H851 Dagbesteding ZG auditief licht | DS27: 5lg | DT27: Zwaar | DV27: 1ZGvis | DW27: ja | DX27: Nee | DY27: 15.625 | DZ27: 12.5 | EE27: =EE26/2 -> 29 | ER27: Z097 ZZP 9bvv incl.bh incl.db | EW27: Z440 ZZP 4vg excl.bh excl.db | EX27: V440 VPT 4vg excl.bh excl.db | FB27: 2lg | FC27: Z625 ZZP 2lg incl.db | FD27: Opname | FE27: 2lgOpname | FF27: 216.4875305 | FG27: 1515.412714 | FL27: 4ZGvis | FM27: 1
C28: =IF(B28="onklaar",$DP$1,B28) -> 0 | G28: 0 | H28: =U41 -> 0 | I28: 0 | K28: =IFERROR(IF($F$5="deeltijd verblijf icm zorg thuis",(I28/'Deeltijd verblijf'!$P$2)*100%,I28/($T$28+$M$8)*100%),0) -> 0 | L28: =IFERROR(VLOOKUP(M93,E93:F106,2,0)," ") -> 0 | N28: =IFERROR(SUMIF($E$18:$E$31,L28,$K$18:$K$31),0) -> 0 | O28: =IFERROR(VLOOKUP(L28,$GC$2:$GE$15,3,0),"") -> Nee | P28: =IF($N28>0,$DH20,"") ->  | Q28: EKT | R28: =IF(B43="restant",X24,"") ->  | T28: =M10 -> 0 | X28: Persoon met SOM, LG en/of ZG beperking met betaalde arbeid of die opleiding/studie volgt | Z28: Gespecialiseerd Verpleegkundig Handelen (GVP) | AB28: 1 | AE28: H002G Dagbesteding ggz wonen-2 | AF28: H404 DTV 4GGZ-W | AK28: Z232 ZZP 3ggz-b incl.bh excl.db | AL28: V533 VPT 3lvg incl.bh incl.db | AO28: 20 | AP28: K8 | AY28: H306 Thuiszorgtechnologie ten behoeve van begeleiding | AZ28: H306 | BA28: 66.74558546 | BE28: 7LG | BF28: 832 | BG28: ja | BH28: 81948 | BI28: 1571.605479 | BL28: 4LVG | BM28: =VLOOKUP(BL28,'Ruimte behandeling basis MPT'!$A$2:$H$46,8,FALSE) -> 0 | BN28: 3LVG | BO28: 782 | BP28: nvt | BQ28: 55296 | BR28: 1060.471233 | BS28: 7 | BT28: Rekenmodule voorleggen aan Zorgkantoor | CA28: VP | CB28: =IFERROR(VLOOKUP(N30,$BZ$8:$CA$25,2,FALSE),0) -> 0 | CC28: 0 | CD28: H106 | CE28: 0 | CJ28: 7LG | CK28: wel | CL28: nvt | CM28: 8VG | CN28: 814 | CO28: 0 | CP28: 0 | CQ28: 0 | CR28: 0 | CS28: 0 | CT28: 0 | CU28: 0 | CV28: 0 | CW28: 0 | CX28: 0 | CY28: 0 | DH28: DTV | DQ28: H872 Dagbesteding ZG visueel midden | DR28: H852 Dagbesteding ZG auditief midden | DS28: 6lg | DT28: Midden | DV28: 2ZGvis | DW28: ja | DX28: Nee | DY28: 20.625 | DZ28: 16.5 | ER28: Z101 ZZP 10vv excl.bh incl.db | ES28: =IF(OR(B18="verblijfsprestatie",B18="vptprestatie"),1,0) -> 0 | EW28: Z441 ZZP 4vg excl.bh incl.db | EX28: V441 VPT 4vg excl.bh incl.db | FB28: 3lg | FC28: Z633 ZZP 3lg incl.bh incl.db | FD28: Opname | FE28: 3lgOpname | FF28: 215.1840241 | FG28: 1506.288168 | FL28: 5ZGvis | FM28: 1
C29: 0 | G29: 0 | H29: =U42 -> 0 | I29: 0 | K29: =IFERROR(IF($F$5="deeltijd verblijf icm zorg thuis",(I29/'Deeltijd verblijf'!$P$2)*100%,I29/($T$28+$M$8)*100%),0) -> 0 | L29: =IFERROR(VLOOKUP(M94,E94:F107,2,0)," ") ->  | N29: 0 | O29: =IFERROR(VLOOKUP(L29,$GC$2:$GE$15,3,0),"") ->  | P29: =IF($N29>0,$DH21,"") ->  | Q29: Beademing | R29: =IF(B43="Restant",Y24,"") ->  | X29: =IF(Y25="","",1) ->  | AB29: =VLOOKUP($D24,$A$62:$H$170,5,FALSE) ->  | AE29: H003G Dagbesteding ggz wonen-3 | AF29: H405 DTV 5GGZ-W | AK29: Z242 ZZP 4ggz-b incl.bh excl.db | AL29: V543 VPT 4lvg incl.bh incl.db | AO29: 21 | AP29: K8 | BA29: =IFERROR(VLOOKUP(AZ29,Tarieven_ZIN1,2,0),0) -> 0 | BE29: 1ZGvis | BF29: 840 | BG29: ja | BH29: 41345 | BI29: 792.9178082 | BL29: 5LVG | BM29: =VLOOKUP(BL29,'Ruimte behandeling basis MPT'!$A$2:$H$46,8,FALSE) -> 0 | BN29: 4LVG | BO29: 783 | BP29: nvt | BQ29: 71738 | BR29: 1375.79726 | BS29: 8 | BT29: Zorg aanvragen via iWLZ, geen extra toestemming vereist | CA29: PV | CB29: =IFERROR(VLOOKUP(N31,$BZ$8:$CA$25,2,FALSE),0) -> 0 | CC29: 0 | CD29: H128 | CE29: 0 | CJ29: 1ZGvis | CK29: wel | CL29: nvt | CM29: 1LG | CN29: 820 | CO29: 0 | CP29: 0 | CQ29: 0 | CR29: 0 | CS29: 0 | CT29: 0 | CU29: 0 | CV29: 0 | CW29: 0 | CX29: 0 | CY29: 0 | DH29: DTV | DQ29: H874 Dagbesteding ZG kind visueel licht | DR29: H853 Dagbesteding ZG auditief zwaar | DS29: 7lg | DT29: Licht | DV29: 3ZGvis | DW29: ja | DX29: Nee | DY29: 26.25 | DZ29: 21 | ER29: Z103 ZZP 10vv incl.bh incl.db | ES29: 0 | EW29: Z442 ZZP 4vg incl.bh excl.db | EX29: V442 VPT 4vg incl.bh excl.db | FB29: 4lg | FC29: Z643 ZZP 4lg incl.bh incl.db | FD29: Opname | FE29: 4lgOpname | FF29: 275.8103369 | FG29: 1930.672358 | FL29: 1ZGaud | FM29: 1
C30: 0 | G30: 0 | H30: =U43 -> 0 | I30: 0 | K30: =IFERROR(IF($F$5="deeltijd verblijf icm zorg thuis",(I30/'Deeltijd verblijf'!$P$2)*100%,I30/($T$28+$M$8)*100%),0) -> 0 | L30: =IFERROR(VLOOKUP(M95,E95:F108,2,0)," ") ->  | N30: 0 | Q30: Overig | R30: =IFERROR(IF(AND(R28="",R29="",R27="Nee",X29=""),Z27,IF(AND(R28="",R29="",R27="Nee",X29=1),Y25)),0) -> FALSE | U30: =IFERROR(IF($B18="schoonmaak",$BA$1,IF($B18="Logeren",X30,IF($B18="BGgrp",VLOOKUP(D18,$AY$12:$BA$401,3,0)*$H$1,$V30))),0) -> 0 | V30: =IFERROR(IF(B18="BGgrp",U30,(VLOOKUP(LEFT(D18,4),$AZ$7:$BA$633,2,FALSE)*$H$1+IF($B18="Logeren",VLOOKUP(LEFT(D18,5),$AZ$7:$BB$628,3,FALSE),0))),0) -> 0 | W30: =W64 -> 0 | X30: =W30*$H$1 -> 0 | AE30: H004G Dagbesteding ggz wonen-4 | AF30: D710 DTV ZGaud1 | AK30: Z252 ZZP 5ggz-b incl.bh excl.db | AL30: V553 VPT 5lvg incl.bh incl.db | AO30: 22 | AP30: K8 | AY30: H325 Behandeling lvg | AZ30: H325 | BA30: =IFERROR(VLOOKUP(AZ30,Tarieven_ZIN1,2,0),0) -> 138.6603745 | BE30: 2ZGvis | BF30: 842 | BG30: ja | BH30: 52511 | BI30: 1007.060274 | BL30: 1SGLVG | BM30: =VLOOKUP(BL30,'Ruimte behandeling basis MPT'!$A$2:$H$46,8,FALSE) -> 0 | BN30: 5LVG | BO30: 784 | BP30: nvt | BQ30: 71738 | BR30: 1375.79726 | BS30: 0 | BT30: Rekenmodule voorleggen aan Zorgkantoor | CA30: BH-GRP | CB30: =IFERROR(VLOOKUP(N32,$BZ$8:$CA$25,2,FALSE),0) -> 0 | CC30: 0 | CD30: H822 | CE30: 0 | CJ30: 2ZGvis | CK30: wel | CL30: nvt | CM30: 2LG | CN30: 822 | CO30: 0 | CP30: 0 | CQ30: 0 | CR30: 0 | CS30: 0 | CT30: 0 | CU30: 0 | CV30: 0 | CW30: 0 | CX30: 0 | CY30: 0 | DH30: DTV | DQ30: H875 Dagbesteding ZG kind visueel midden | DR30: H854 Dagbesteding ZG kind auditief licht | DS30: 1ggzb | DT30: BGgrp | DV30: 4ZGvis | DW30: ja | DX30: Nee | DY30: 37.5 | DZ30: 30 | ES30: 0 | EW30: Z443 ZZP 4vg incl.bh incl.db | EX30: V443 VPT 4vg incl.bh incl.db | FB30: 5lg | FC30: Z653 ZZP 5lg incl.bh incl.db | FD30: Opname | FE30: 5lgOpname | FF30: 297.0977676 | FG30: 2079.684373 | FL30: 2ZGaud | FM30: 1
C31: 0 | G31: 0 | H31: =U44 -> 0 | I31: 0 | K31: =IFERROR(IF($F$5="deeltijd verblijf icm zorg thuis",(I31/'Deeltijd verblijf'!$P$2)*100%,I31/($T$28+$M$8)*100%),0) -> 0 | L31: =IFERROR(IFERROR(VLOOKUP(M96,E96:F109,2,0)," ")," ") ->  | N31: 0 | U31: 0 | V31: 0 | W31: =W65 -> 0 | X31: =W31*$H$1 -> 0 | AE31: H005G Dagbesteding ggz wonen-5 | AF31: D720 DTV ZGaud2 | AK31: Z262 ZZP 6ggz-b incl.bh excl.db | AL31: V573 VPT 1sglvg incl.bh incl.db | AO31: 23 | AP31: K8 | BA31: =IFERROR(VLOOKUP(AZ31,Tarieven_ZIN1,2,0),0) -> 0 | BE31: 3ZGvis | BF31: 844 | BG31: ja | BH31: 61477 | BI31: 1179.010959 | BL31: 1LG | BM31: =VLOOKUP(BL31,'Ruimte behandeling basis MPT'!$A$2:$H$46,8,FALSE) -> 0 | BN31: 1SGLVG | BO31: 790 | BP31: nvt | BQ31: 64517 | BR31: 1237.312329 | BS31: 2085 | BT31: Zorg aanvragen via iWLZ, geen extra toestemming vereist | CA31: BH-IND | CB31: =IFERROR(VLOOKUP(N33,$BZ$8:$CA$25,2,FALSE),0) -> 0 | CC31: 0 | CD31: H332 | CE31: 0 | CJ31: 3ZGvis | CK31: wel | CL31: nvt | CM31: 3LG | CN31: 824 | CO31: 0 | CP31: 0 | CQ31: 0 | CR31: 0 | CS31: 0 | CT31: 0 | CU31: 0 | CV31: 0 | CW31: 0 | CX31: 0 | CY31: 0 | DR31: H855 Dagbesteding ZG kind auditief midden | DS31: 2ggzb | DT31: BGgrp | DV31: 5ZGvis | DW31: ja | DX31: Ja | DY31: 41.25 | DZ31: 33 | EP31: =IF(F5="deeltijd verblijf icm MPT","Opname",F5) -> 0 | ER31: =CONCATENATE($EP$31,$G$8,B18) -> 0 | ES31: 0 | EW31: Z454 ZZP 5vg excl.bh excl.db | EX31: V454 VPT 5vg excl.bh excl.db | FB31: 6lg | FC31: Z663 ZZP 6lg incl.bh incl.db | FD31: Opname | FE31: 6lgOpname | FF31: 368.5776943 | FG31: 2580.04386 | FL31: 3ZGaud | FM31: 1
B32: =IF(M5="extramurale ruimte","Totale omvang ZIN thuis excl. Behandeling","Totale omvang ZIN") -> Totale omvang ZIN | I32: =IF(M6="extramurale ruimte",BD14,BD14+BD11) -> 0 | K32: =IFERROR(IF($F$5="deeltijd verblijf icm zorg thuis",(I32/'Deeltijd verblijf'!P2),(I32/M6)),0) -> 0 | L32: =IFERROR(IFERROR(VLOOKUP(M97,E97:F110,2,0)," ")," ") ->  | N32: 0 | U32: 0 | V32: 0 | W32: 0 | X32: 0 | AE32: H851 Dagbesteding ZG auditief licht | AF32: D730 DTV ZGaud3 | AK32: Z272 ZZP 7ggz-b incl.bh excl.db | AL32: V614 VPT 1lg excl.bh excl.db | AO32: 24 | AP32: K8 | BA32: =IFERROR(VLOOKUP(AZ32,Tarieven_ZIN1,2,0),0) -> 0 | BE32: 4ZGvis | BF32: 846 | BG32: ja | BH32: 83199 | BI32: 1595.59726 | BL32: 2LG | BM32: =VLOOKUP(BL32,'Ruimte behandeling basis MPT'!$A$2:$H$46,8,FALSE) -> 0 | BS32: 85 | BT32: Rekenmodule voorleggen aan Zorgkantoor | CD32: totaal EM | CE32: =SUM(CE26:CE31) -> 0 | CJ32: 4ZGvis | CK32: wel | CL32: nvt | CM32: 4LG | CN32: 826 | CO32: 0 | CP32: 0 | CQ32: 0 | CR32: 0 | CS32: 0 | CT32: 0 | CU32: 0 | CV32: 0 | CW32: 0 | CX32: 0 | CY32: 0 | DR32: H856 Dagbesteding ZG kind auditief zwaar | DS32: 3ggzb | DT32: BGgrp | DV32: 1ZGaud | DW32: ja | DX32: Nee | DY32: 24.375 | DZ32: 19.5 | ER32: 0 | ES32: 0 | EW32: Z455 ZZP 5vg excl.bh incl.db | EX32: V455 VPT 5vg excl.bh incl.db | FB32: 7lg | FC32: Z673 ZZP 7lg incl.bh incl.db | FD32: Opname | FE32: 7lgOpname | FF32: 380.7344474 | FG32: 2665.141132 | FL32: 4ZGaud | FM32: 1
B33: =IF(M5="ruimte","Totale omvang behandeling"," ") ->  | I33: =IF(M5="ruimte",BD11,0) -> 0 | K33: =IFERROR(IF($F$5="deeltijd verblijf icm zorg thuis",(I33/'Deeltijd verblijf'!$P$2),(I33/$M$6)),0) -> 0 | L33: =IFERROR(VLOOKUP(M98,E98:F111,2,0)," ") ->  | N33: 0 | U33: 0 | V33: 0 | W33: 0 | X33: 0 | Z33: =IFERROR(VLOOKUP($Q$22,$T$46:$V$50,2,FALSE),0) -> 0 | AA33: =IF(Z33=0,1,2) -> 1 | AB33: =IF(AA36="ja",4,2) -> 2 | AE33: H852 Dagbesteding ZG auditief midden | AF33: D740 DTV Zgaud4 | AK33: Z213 ZZP 1ggz-b incl.bh incl.db | AL33: V624 VPT 2lg excl.bh excl.db | AO33: 25 | AP33: K8 | AY33: H329 Behandeling gedragswetenschapper | AZ33: H329 | BA33: 136.7324551 | BE33: 5ZGvis | BF33: 848 | BG33: ja | BH33: 90254 | BI33: 1730.89863 | BL33: 3LG | BM33: =VLOOKUP(BL33,'Ruimte behandeling basis MPT'!$A$2:$H$46,8,FALSE) -> 176.1657923 | BS33: 84 | BT33: Rekenmodule voorleggen aan Zorgkantoor | CJ33: 5ZGvis | CK33: wel | CL33: nvt | CM33: 5LG | CN33: 828 | CO33: 0 | CP33: 0 | CQ33: 0 | CR33: 0 | CS33: 0 | CT33: 0 | CU33: 0 | CV33: 0 | CW33: 0 | CX33: 0 | CY33: 0 | DR33: H871 Dagbesteding ZG visueel licht | DS33: 4ggzb | DT33: BGgrp | DV33: 2ZGaud | DW33: ja | DX33: Nee | DY33: 48.125 | DZ33: 38.5 | ER33: 0 | ES33: 0 | EW33: Z456 ZZP 5vg incl.bh excl.db | EX33: V456 VPT 5vg incl.bh excl.db | FB33: 1zgaud | FC33: Z713 ZZP 1zg-auditief incl.bh incl.db | FD33: Opname | FE33: 1zgaudOpname | FF33: 233.5695147 | FG33: 1634.986603 | FL33: 10VV | FM33: 2
B34: PGB bedrag | I34: =M8 -> 0 | K34: =IFERROR(IF($F$5="deeltijd verblijf icm zorg thuis",(I34/'Deeltijd verblijf'!$P$2),(I34/$M$6)),0) -> 0 | N34: 0 | T34: =IF(OR(F5="MPT",F5="VPT"),1,IF(F5="",0,2)) -> 0 | U34: 0 | V34: 0 | W34: 0 | X34: 0 | Z34: =IFERROR(VLOOKUP(Q24,U53:U56,1,FALSE),0) -> 0 | AA34: =IF(Z34=0,1,2) -> 1 | AB34: =SUM(AA33:AB33) -> 3 | AE34: H853 Dagbesteding ZG auditief zwaar | AF34: D814 DTV ZGvis1 | AK34: Z223 ZZP 2ggz-b incl.bh incl.db | AL34: V630 VPT 3lg excl.bh excl.db | AO34: 5 | AP34: K3 | AY34: H330 Behandeling paramedisch | AZ34: H330 | BA34: 97.12515804 | BE34: 1ZGaud | BF34: 850 | BG34: ja | BH34: 57670 | BI34: 1106 | BL34: 4LG | BM34: =VLOOKUP(BL34,'Ruimte behandeling basis MPT'!$A$2:$H$46,8,FALSE) -> 276.053171 | BS34: 83 | BT34: Rekenmodule voorleggen aan Zorgkantoor | CF34: ZZP waarde-PGB | CH34: =M10 -> 0 | CJ34: 1ZGaud | CK34: wel | CL34: nvt | CM34: 6LG | CN34: 830 | CO34: 0 | CP34: 0 | CQ34: 0 | CR34: 0 | CS34: 0 | CT34: 0 | CU34: 0 | CV34: 0 | CW34: 0 | CX34: 0 | CY34: 0 | DR34: H872 Dagbesteding ZG visueel midden | DS34: 5ggzb | DT34: BGgrp | DV34: 3ZGaud | DW34: ja | DX34: Ja | DY34: 58.75 | DZ34: 47 | ER34: 0 | ES34: 0 | EW34: Z457 ZZP 5vg incl.bh incl.db | EX34: V457 VPT 5vg incl.bh incl.db | FB34: 2zgaud | FC34: Z723 ZZP 2zg-auditief incl.bh incl.db | FD34: Opname | FE34: 2zgaudOpname | FF34: 426.0886936 | FG34: 2982.620855 | FL34: 1VV | FM34: 2
B35: Totale zorg | I35: =SUM(I32:I34) -> 0 | K35: =SUM(K32:K34) -> 0 | N35: 0 | T35: =T34+N28 -> 0 | U35: 0 | V35: 0 | W35: 0 | X35: 0 | AE35: H854 Dagbesteding ZG kind auditief licht | AF35: D824 DTV ZGvis2 | AK35: Z233 ZZP 3ggz-b incl.bh incl.db | AL35: V640 VPT 4lg excl.bh excl.db | AO35: 6 | AP35: K3 | AY35: H331 Behandeling Families First lvg | AZ35: H331 | BA35: 143.5420335 | BE35: 2ZGaud | BF35: 852 | BG35: ja | BH35: 103498 | BI35: 1984.893151 | BL35: 5LG | BM35: =VLOOKUP(BL35,'Ruimte behandeling basis MPT'!$A$2:$H$46,8,FALSE) -> 283.34707 | BS35: 80 | BT35: Rekenmodule voorleggen aan Zorgkantoor | CF35: Totaal EM ZIN | CH35: =CE32 -> 0 | CJ35: 2ZGaud | CK35: wel | CL35: nvt | CM35: 7LG | CN35: 832 | CO35: 0 | CP35: 0 | CQ35: 0 | CR35: 0 | CS35: 0 | CT35: 0 | CU35: 0 | CV35: 0 | CW35: 0 | CX35: 0 | CY35: 0 | DR35: H873 Dagbesteding ZG visueel zwaar | DS35: 1zgvis | DT35: Midden | DV35: 4ZGaud | DW35: ja | DX35: Nee | DY35: 35 | DZ35: 28 | ER35: 0 | ES35: 0 | EW35: Z460 ZZP 6vg excl.bh excl.db | EX35: V460 VPT 6vg excl.bh excl.db | FB35: 3zgaud | FC35: Z733 ZZP 3zg-auditief incl.bh incl.db | FD35: Opname | FE35: 3zgaudOpname | FF35: 499.4763634 | FG35: 3496.334544 | FL35: 2VV | FM35: 2
B36: Let op: Overschrijding ivm duurdere dagbesteding: | I36: =D38 -> 0 | N36: 0 | U36: 0 | V36: 0 | W36: 0 | X36: 0 | Z36: =IFERROR(IF(AA36="ja","toeslag beademing",VLOOKUP(Q24,U52:U56,1,0)),0) -> 0 | AA36: =LEFT(Q23,2) ->  | AE36: H855 Dagbesteding ZG kind auditief midden | AF36: D830 DTV ZGvis3 | AK36: Z243 ZZP 4ggz-b incl.bh incl.db | AL36: V650 VPT 5lg excl.bh excl.db | AO36: 7 | AP36: K4 | AY36: H332 Behandeling ZG visueel | AZ36: H332 | BA36: 157.0959127 | BE36: 3ZGaud | BF36: 854 | BG36: ja | BH36: 122590 | BI36: 2351.041096 | BL36: 6LG | BM36: =VLOOKUP(BL36,'Ruimte behandeling basis MPT'!$A$2:$H$46,8,FALSE) -> 384.8606146 | BS36: 88 | BT36: Rekenmodule voorleggen aan Zorgkantoor | CH36: =CH34-CH35 -> 0 | CJ36: 3ZGaud | CK36: wel | CL36: nvt | CM36: 1ZGvis | CN36: 840 | CO36: 0 | CP36: 0 | CQ36: 0 | CR36: 0 | CS36: 0 | CT36: 0 | CU36: 0 | CV36: 0 | CW36: 0 | CX36: 0 | CY36: 0 | DR36: H874 Dagbesteding ZG kind visueel licht | DS36: 2zgvis | DT36: Licht | DV36: 1GGZ B | DW36: nee | DX36: Nee | DY36: 8.75 | DZ36: 7 | ER36: 0 | ES36: 0 | EW36: Z461 ZZP 6vg excl.bh incl.db | EX36: V461 VPT 6vg excl.bh incl.db | FB36: 4zgaud | FC36: Z743 ZZP 4zg-auditief incl.bh incl.db | FD36: Opname | FE36: 4zgaudOpname | FF36: 321.4439953 | FG36: 2250.107967 | FL36: 3VV | FM36: 2
B37: Let op: Overschrijding ivm duurdere behandeling | I37: =D43 -> 0 | N37: 0 | U37: 0 | V37: 0 | W37: 0 | X37: 0 | AB37: =IF(SUM($I$32:$I$33)-($M$10+$T$20)<=0,SUM($I$32:$I$33),$M$10+$T$20) -> 0 | AE37: H856 Dagbesteding ZG kind auditief zwaar | AF37: D840 DTV ZGvis4 | AK37: Z253 ZZP 5ggz-b incl.bh incl.db | AL37: V660 VPT 6lg excl.bh excl.db | AO37: 8 | AP37: K4 | AY37: H333 Behandeling ZG auditief | AZ37: H333 | BA37: 139.2354808 | BE37: 4ZGaud | BF37: 856 | BG37: ja | BH37: 77991 | BI37: 1495.717808 | BL37: 7LG | BM37: =VLOOKUP(BL37,'Ruimte behandeling basis MPT'!$A$2:$H$46,8,FALSE) -> 410.8113812 | BS37: 101 | BT37: Eerst zorgvraag invullen | CJ37: 4ZGaud | CK37: wel | CL37: nvt | CM37: 2ZGvis | CN37: 842 | CO37: 0 | CP37: 0 | CQ37: 0 | CR37: 0 | CS37: 0 | CT37: 0 | CU37: 0 | CV37: 0 | CW37: 0 | CX37: 0 | CY37: 0 | DR37: H875 Dagbesteding ZG kind visueel midden | DS37: 3zgvis | DT37: Licht | DV37: 2GGZ B | DW37: nee | DX37: Nee | DY37: 12.5 | DZ37: 10 | ER37: 0 | ES37: 0 | EW37: Z462 ZZP 6vg incl.bh excl.db | EX37: V462 VPT 6vg incl.bh excl.db | FB37: 1zgvis | FC37: Z815 ZZP 1zg-visueel incl.db | FD37: Opname | FE37: 1zgvisOpname | FF37: 172.3319466 | FG37: 1206.323626 | FL37: 4VV | FM37: 2
B38: =SUMIF(B18:B31,"bggrp",I18:I31) -> 0 | C38: =IFERROR('Deeltijd verblijf'!M6*125%,0) -> 0 | D38: =IF(C38>0,B38-C38,0) -> 0 | K38: =IFERROR(I38/M6,0) -> 0 | N38: 0 | U38: 0 | V38: 0 | W38: 0 | X38: 0 | AB38: =IF(BR6>0,BR8+T20,AB37) -> 0 | AE38: H871 Dagbesteding ZG visueel licht | AF38: D850 DTV ZGvis5 | AK38: Z263 ZZP 6ggz-b incl.bh incl.db | AL38: V670 VPT 7lg excl.bh excl.db | AO38: 9 | AP38: K4 | AY38: H334 Behandeling IOG lvg | AZ38: H334 | BA38: 124.7584864 | BE38: 10VV | BF38: 759 | BG38: nvt | BH38: 90677 | BI38: 1739.010959 | BL38: 1GGZ-W | BM38: =VLOOKUP(BL38,'Ruimte behandeling basis MPT'!$A$2:$H$46,8,FALSE) -> 0 | BS38: 102 | BT38: Eerst zorgvraag invullen | CJ38: 1VV | CK38: Niet | CL38: nvt | CM38: 3ZGvis | CN38: 844 | CO38: 0 | CP38: 0 | CQ38: 0 | CR38: 0 | CS38: 0 | CT38: 0 | CU38: 0 | CV38: 0 | CW38: 0 | CX38: 0 | CY38: 0 | DR38: H876 Dagbesteding ZG kind visueel zwaar | DS38: 4zgvis | DT38: Zwaar | DV38: 3GGZ B | DW38: nee | DX38: Nee | DY38: 16.25 | DZ38: 13 | ER38: 0 | ES38: 0 | EW38: Z463 ZZP 6vg incl.bh incl.db | EX38: V463 VPT 6vg incl.bh incl.db | FB38: 2zgvis | FC38: Z825 ZZP 2zg-visueel incl.db | FD38: Opname | FE38: 2zgvisOpname | FF38: 212.6909779 | FG38: 1488.836845 | FL38: 5VV | FM38: 2
I39: =N8+N17 ->  | U39: 0 | V39: 0 | W39: 0 | X39: 0 | AE39: H872 Dagbesteding ZG visueel midden | AK39: Z273 ZZP 7ggz-b incl.bh incl.db | AL39: V210G VPT 1 ggz wonen excl. BH excl. DB | AY39: H119 Verpleging speciaal aan kinderen tot 18 jaar exclusief beschikbaarheid | AZ39: H119 | BA39: =VLOOKUP(AZ39,Tarieven_ZIN1,2,0) -> 97.23340657 | BL39: 2GGZ-W | BM39: =VLOOKUP(BL39,'Ruimte behandeling basis MPT'!$A$2:$H$46,8,FALSE) -> 0 | ER39: 0 | EW39: Z470 ZZP 7vg excl.bh excl.db | EX39: V470 VPT 7vg excl.bh excl.db | FB39: 3zgvis | FC39: Z833 ZZP 3zg-visueel incl.bh incl.db | FD39: Opname | FE39: 3zgvisOpname | FF39: 262.2481978 | FG39: 1835.737385
U40: 0 | V40: 0 | W40: 0 | X40: 0 | AE40: H873 Dagbesteding ZG visueel zwaar | AK40: Z212G ZZP 1 ggz wonen incl. BH excl. DB | AL40: V220G VPT 2 ggz wonen excl. BH excl. DB | AO40: 10 | AP40: K5 | AY40: H335 Behandeling som, pg, vg, lg, zg (SO) | AZ40: H335 | BA40: 170.5591538 | BE40: 1VV | BF40: 750 | BG40: nvt | BH40: =VLOOKUP(BE40,Tarieven_PGB0,13,FALSE) -> 17352 | BI40: 332.7780822 | BL40: 3GGZ-W | BM40: =VLOOKUP(BL40,'Ruimte behandeling basis MPT'!$A$2:$H$46,8,FALSE) -> 0 | BS40: 103 | BT40: Eerst zorgvraag invullen | CJ40: 2VV | CK40: Niet | CL40: nvt | CM40: 4ZGvis | CN40: 846 | CO40: 0 | CP40: 0 | CQ40: 0 | CR40: 0 | CS40: 0 | CT40: 0 | CU40: 0 | CV40: 0 | CW40: 0 | CX40: 0 | CY40: 0 | DS40: 5zgvis | DT40: Zwaar | DV40: 4GGZ B | DW40: nee | DX40: Nee | DY40: 19.375 | DZ40: 15.5 | ER40: 0 | ES40: =IF(OR(B29="verblijfsprestatie",B29="vptprestatie"),1,0) -> 0 | EW40: Z471 ZZP 7vg excl.bh incl.db | EX40: V471 VPT 7vg excl.bh incl.db | FB40: 4zgvis | FC40: Z843 ZZP 4zg-visueel incl.bh incl.db | FD40: Opname | FE40: 4zgvisOpname | FF40: 339.0359839 | FG40: 2373.251887 | FL40: 6VV | FM40: 2
N41: =D46/7 -> 0 | U41: 0 | V41: 0 | W41: 0 | X41: 0 | AE41: H874 Dagbesteding ZG kind visueel licht | AK41: Z222G ZZP 2 ggz wonen incl. BH excl. DB | AL41: V230G VPT 3 ggz wonen excl. BH excl. DB | AO41: 11 | AP41: K5 | AY41: H336 Behandeling som, pg, vg, lg, zg (AVG) | AZ41: H336 | BA41: 170.5591538 | BE41: 2VV | BF41: 751 | BG41: nvt | BH41: 25160 | BI41: 482.5205479 | BL41: 4GGZ-W | BM41: =VLOOKUP(BL41,'Ruimte behandeling basis MPT'!$A$2:$H$46,8,FALSE) -> 0 | BS41: 104 | BT41: Eerst zorgvraag invullen | CJ41: 3VV | CK41: Niet | CL41: nvt | CM41: 5ZGvis | CN41: 848 | CO41: 0 | CP41: 0 | CQ41: 0 | CR41: 0 | CS41: 0 | CT41: 0 | CU41: 0 | CV41: 0 | CW41: 0 | CX41: 0 | CY41: 0 | DS41: 1zgaud | DT41: Licht | DV41: 5GGZ B | DW41: nee | DX41: Nee | DY41: 20 | DZ41: 16 | ER41: 0 | ES41: =IF(OR(B30="verblijfsprestatie",B30="vptprestatie"),1,0) -> 0 | EW41: Z472 ZZP 7vg incl.bh excl.db | EX41: V472 VPT 7vg incl.bh excl.db | FB41: 5zgvis | FC41: Z853 ZZP 5zg-visueel incl.bh incl.db | FD41: Opname | FE41: 5zgvisOpname | FF41: 374.7764111 | FG41: 2623.434878 | FL41: 7VV | FM41: 2
B42: =SUMIF(B18:B31,"BHgrp",I18:I31) -> 0 | D42: =SUM(B42:B43) -> 0 | N42: =N41*7 -> 0 | U42: 0 | V42: 0 | W42: 0 | X42: 0 | AE42: H875 Dagbesteding ZG kind visueel midden | AK42: Z232G ZZP 3 ggz wonen incl. BH excl. DB | AL42: V240G VPT 4 ggz wonen excl. BH excl. DB | AO42: 12 | AP42: K5 | AY42: H338 Behandeling sglvg | AZ42: H338 | BA42: 314.2821498 | BE42: 3VV | BF42: 752 | BG42: nvt | BH42: 30628 | BI42: =BH42/365*7 -> 587.3863014 | BL42: 5GGZ-W | BM42: =VLOOKUP(BL42,'Ruimte behandeling basis MPT'!$A$2:$H$46,8,FALSE) -> 0 | BS42: 105 | BT42: Eerst zorgvraag invullen | CJ42: 4VV | CK42: Niet | CL42: nvt | CM42: 1ZGaud | CN42: 850 | CO42: 0 | CP42: 0 | CQ42: 0 | CR42: 0 | CS42: 0 | CT42: 0 | CU42: 0 | CV42: 0 | CW42: 0 | CX42: 0 | CY42: 0 | DS42: 2zgaud | DT42: Midden | DV42: 6GGZ B | DW42: nee | DX42: Nee | DY42: 28.75 | DZ42: 23 | ER42: 0 | ES42: =IF(OR(B31="verblijfsprestatie",B31="vptprestatie"),1,0) -> 0 | EW42: Z473 ZZP 7vg incl.bh incl.db | EX42: V473 VPT 7vg incl.bh incl.db | FB42: 1GGZ-W | FC42: Z213G ZZP 1 ggz wonen incl. BH incl. DB | FD42: Opname | FE42: =CONCATENATE(FB42,FD42) -> 1GGZ-WOpname | FF42: 227.1575103 | FG42: 1590.102572 | FL42: 8VV | FM42: 2
B43: =SUMIF(B18:B31,"Bhind",I18:I31) -> 0 | D43: =D42-M15 -> 0 | U43: 0 | V43: 0 | W43: 0 | X43: 0 | AE43: H876 Dagbesteding ZG kind visueel zwaar | AK43: Z242G ZZP 4 ggz wonen incl. BH excl. DB | AL43: V250G VPT 5 ggz beveiligd wonen excl. BH excl. DB | AO43: 13 | AP43: K6 | AY43: H531 Dagbesteding basis | AZ43: H531 | BA43: 42.6576454 | BE43: 4VV | BF43: 753 | BG43: nvt | BH43: 41037 | BI43: 787.0109589 | BL43: 1ZGaud | BM43: =VLOOKUP(BL43,'Ruimte behandeling basis MPT'!$A$2:$H$46,8,FALSE) -> 0 | BS43: 106 | BT43: Eerst zorgvraag invullen | CJ43: 5VV | CK43: Niet | CL43: nvt | CM43: 2ZGaud | CN43: 852 | CO43: 0 | CP43: 0 | CQ43: 0 | CR43: 0 | CS43: 0 | CT43: 0 | CU43: 0 | CV43: 0 | CW43: 0 | CX43: 0 | CY43: 0 | DS43: 3zgaud | DT43: Zwaar | DV43: 7GGZ B | DW43: nee | DX43: Nee | DY43: 33.125 | DZ43: 26.5 | ER43: 0 | EW43: Z480 ZZP 8vg excl.bh excl.db | EX43: V480 VPT 8vg excl.bh excl.db | FB43: 2GGZ-W | FC43: Z223G ZZP 2 ggz wonen incl. BH incl. DB | FD43: Opname | FE43: =CONCATENATE(FB43,FD43) -> 2GGZ-WOpname | FF43: 240.3721397 | FG43: 1682.604978 | FL43: 9vvb | FM43: 2
D44: =IFERROR(IF($B$43="restant",$G$44,$E$45-$I$56-$I$40-$I$42),0) -> 0 | G44: =IF(I33=0,I45,I44)-I39 ->  | I44: =I45+IF(M44<0,0,M44) -> 0 | M44: =T20-I33 -> 0 | N44: =IF(SUM($I$32:$I$33)-($BR$11+IF($I$33>0,$T$20,0))<=0,SUM($I$32:$I$33),$BR$11+IF($I$33>0,$T$20,0)) ->  | O44: =SUM(M44:N44) ->  | U44: 0 | V44: 0 | W44: 0 | X44: 0 | AK44: Z252G ZZP 5 ggz beveiligd wonen incl. BH excl. DB | AL44: V211G VPT 1 ggz wonen excl. BH incl. DB | AO44: 14 | AP44: K6 | AY44: H533 Dagbesteding psychogeriatrisch | AZ44: H533 | BA44: 61.27477191 | BE44: 5VV | BF44: 754 | BG44: nvt | BH44: 55678 | BI44: 1067.79726 | BL44: 2ZGaud | BM44: =VLOOKUP(BL44,'Ruimte behandeling basis MPT'!$A$2:$H$46,8,FALSE) -> 38.25062777 | BS44: 107 | BT44: Eerst zorgvraag invullen | CJ44: 6VV | CK44: Niet | CL44: nvt | CM44: 3ZGaud | CN44: 854 | CO44: 0 | CP44: 0 | CQ44: 0 | CR44: 0 | CS44: 0 | CT44: 0 | CU44: 0 | CV44: 0 | CW44: 0 | CX44: 0 | CY44: 0 | DS44: 4zgaud | DT44: Licht | DV44: 1VG | DW44: nee | DX44: Nee | DY44: 8.125 | DZ44: 6.5 | ER44: 0 | EW44: Z481 ZZP 8vg excl.bh incl.db | EX44: V481 VPT 8vg excl.bh incl.db | FB44: 3GGZ-W | FC44: Z233G ZZP 3 ggz wonen incl. BH incl. DB | FD44: Opname | FE44: 3GGZ-WOpname | FF44: 252.0125984 | FG44: 1764.088189 | FL44: 1LVG | FM44: 2
E45: =I35 -> 0 | I45: =IF(AND(G53=1,I33=0),M6-E45,IF(AND(G53=1,I33>0),M6-E45-G46,T1-E45)) -> 0 | Q45: =IF(D42=0,1,0) -> 1 | R45: =I35-I40-I41 -> 0 | AB45: =IF(BN12=0,0,IF(BN12<0,0,SUM($I$32:$I$33)-$I$38)) -> 0 | AK45: Z213G ZZP 1 ggz wonen incl. BH incl. DB | AL45: V221G VPT 2 ggz wonen excl. BH incl. DB | AO45: 15 | AP45: K6 | AY45: H800 Dagbesteding somatisch ondersteunend | AZ45: H800 | BA45: 59.06905572 | BE45: 6VV | BF45: 755 | BG45: nvt | BH45: 55678 | BI45: 1067.79726 | BL45: 3ZGaud | BM45: =VLOOKUP(BL45,'Ruimte behandeling basis MPT'!$A$2:$H$46,8,FALSE) -> 53.62168752 | BS45: 108 | BT45: Eerst zorgvraag invullen | CJ45: 7VV | CK45: Niet | CL45: nvt | CM45: 4ZGaud | CN45: 856 | CO45: 0 | CP45: 0 | CQ45: 0 | CR45: 0 | CS45: 0 | CT45: 0 | CU45: 0 | CV45: 0 | CW45: 0 | CX45: 0 | CY45: 0 | DS45: 1lvg | DT45: BGgrp | DV45: 2VG | DW45: nee | DX45: Nee | DY45: 11.875 | DZ45: 9.5 | ER45: 0Totale omvang ZIN | EW45: Z482 ZZP 8vg incl.bh excl.db | EX45: V482 VPT 8vg incl.bh excl.db | FB45: 4GGZ-W | FC45: Z243G ZZP 4 ggz wonen incl. BH incl. DB | FD45: Opname | FE45: 4GGZ-WOpname | FF45: 395.8987096 | FG45: 2771.290968 | FL45: 2LVG | FM45: 2
B46: =E45-I38 -> 0 | D46: =IF($D$50>=0,$D$50,IF(SUM($I$38:$I$42)<($M$6+$D$48),$M$6+$D$48-$I$38-$I$39-$I$41-$I$40-$I$42,IF($D$47-$D$49>0,$D$47-$D$49,$D$49-$D$47))) -> 0 | G46: =IF(G47>0,G47,H47) -> 0 | M46: =M6-I32 -> 0 | Q46: =IFERROR(IF(D42= "Gespecialiseerde verpleging",10,IF(D42="extra budget voor behandeling",1,IF(Q24="meerzorg",3,IF(D42="toeslag beademing",2,IF(AND(D42=0,Q24="overig"),3,5))))),0) -> 5 | R46: =IF(Q48=1,V56,IF(Q48=2,V57,IF(Q48=5,0,IF(Q48=6,V54,V53)))) -> 0 | AK46: Z223G ZZP 2 ggz wonen incl. BH incl. DB | AL46: V231G VPT 3 ggz wonen excl. BH incl. DB | AO46: 16 | AP46: K7 | AY46: H802 Dagbehandeling ouderen som en pg | AZ46: H802 | BA46: 71.02324869 | BE46: 7VV | BF46: 756 | BG46: nvt | BH46: 69744 | BI46: 1337.556164 | BL46: 4ZGaud | BM46: =VLOOKUP(BL46,'Ruimte behandeling basis MPT'!$A$2:$H$46,8,FALSE) -> 176.2676371 | BS46: 109 | BT46: Eerst zorgvraag invullen | CJ46: 8VV | CK46: Niet | CL46: nvt | CM46: 1VV | CN46: 750 | CO46: 0 | CP46: 0 | CQ46: 0 | CR46: 0 | CS46: 0 | CT46: 0 | CU46: 0 | CV46: 0 | CW46: 0 | CX46: 0 | CY46: 0 | DS46: 2lvg | DT46: BGgrp | DV46: 3VG | DW46: nee | DX46: Nee | DY46: 15.625 | DZ46: 12.5 | EW46: Z483 ZZP 8vg incl.bh incl.db | EX46: V483 VPT 8vg incl.bh incl.db | FB46: 5GGZ-W | FC46: Z253G ZZP 5 ggz beveiligd wonen incl. BH incl. DB | FD46: Opname | FE46: 5GGZ-WOpname | FF46: 464.7394472 | FG46: 3253.17613 | FL46: 3LVG | FM46: 2
D47: =I35 -> 0 | F47: verschil | G47: =T20-I33 -> 0 | H47: =I33-T20 -> 0 | I47: =IF($G$55=1,$N$44-$G$47,$N$44) ->  | M47: =T20-I33 -> 0 | Q47: =IFERROR(IF(D42="palliatief terminale zorg",1,IF(D42="Extra overbruggingszorg (urgent of actief plaatsen)",2,0)),0) -> 0 | T47: Ja; Extra kosten thuis | U47: Ja; Extra kosten thuis | V47: =SUM($I$32:$I$33)-$I$38-$I$41 -> 0 | W47: =$M$6*25% -> 0 | X47: =V47-W47 -> 0 | Y47: =IF(X47>0,W47,V47) -> 0 | AK47: Z233G ZZP 3 ggz wonen incl. BH incl. DB | AL47: V241G VPT 4 ggz wonen excl. BH incl. DB | AO47: 17 | AP47: K7 | AY47: H804 Gespecialiseerde dagbehandeling Huntington lg of som | AZ47: H804 | BA47: 89.45487233 | BE47: 8VV | BF47: 757 | BG47: nvt | BH47: 83238 | BI47: 1596.345205 | BL47: 1ZGvis | BM47: =VLOOKUP(BL47,'Ruimte behandeling basis MPT'!$A$2:$H$46,8,FALSE) -> 0 | BS47: 600 | BT47: PGB: Rekenmodule voorleggen aan Zorgkantoor | CJ47: 9vvb | CK47: Niet | CL47: nvt | CM47: 2VV | CN47: 751 | CO47: 0 | CP47: 0 | CQ47: 0 | CR47: 0 | CS47: 0 | CT47: 0 | CU47: 0 | CV47: 0 | CW47: 0 | CX47: 0 | CY47: 0 | DS47: 3lvg | DT47: BGgrp | DV47: 4VG | DW47: nee | DX47: Nee | DY47: 18.75 | DZ47: 15 | EW47: Z513 ZZP 1lvg incl.bh incl.db | EX47: V513 VPT 1lvg incl.bh incl.db | FB47: 1vv | FC47: V015 VPT 1vv excl.bh incl.db | FD47: VPT | FE47: 1vvVPT | FF47: =VLOOKUP(FC47,Tarieven_VPT1,7,FALSE) -> 76.6466195 | FG47: =FF47*7 -> 536.5263365 | FL47: 4LVG | FM47: 2
D48: =IF(I33=0,0,M15) -> 0 | E48: =IF(OR(Q24<>"",Q24<>"Nee"),1,2) -> 1 | F48: geen beh | G48: =IF(T20=0,0,1) -> 0 | I48: =IF(M10-I47>0,E45,I47) ->  | M48: =E45-T1 -> 0 | P48: Palliatief terminale zorg | Q48: =SUM(Q46:Q47) -> 5 | T48: Ja; Extra kosten thuis | V48: =SUM($I$32:$I$33)-$I$38-$I$41 -> 0 | W48: =$M$6*25% -> 0 | X48: =V48-W48 -> 0 | Y48: =IF(X48>0,W48,V48) -> 0 | AK48: Z243G ZZP 4 ggz wonen incl. BH incl. DB | AL48: V251G VPT 5 ggz beveiligd wonen excl. BH incl. DB | AO48: 18 | AP48: K7 | AY48: H811 Dagbesteding VG licht | AZ48: H811 | BA48: 40.44134186 | BE48: 9vvb | BF48: 191 | BG48: nvt | BH48: 53377 | BI48: 1023.668493 | BL48: 2ZGvis | BM48: =VLOOKUP(BL48,'Ruimte behandeling basis MPT'!$A$2:$H$46,8,FALSE) -> 0 | BS48: 601 | BT48: PGB: Rekenmodule voorleggen aan Zorgkantoor | CJ48: 10VV | CK48: Niet | CL48: nvt | CM48: 3VV | CN48: 752 | CO48: 0 | CP48: 0 | CQ48: 0 | CR48: 0 | CS48: 0 | CT48: 0 | CU48: 0 | CV48: 0 | CW48: 0 | CX48: 0 | CY48: 0 | DS48: 4lvg | DT48: BGgrp | DV48: 5VG | DW48: nee | DX48: Ja | DY48: 23.125 | DZ48: 18.5 | ER48: Z210G ZZP 1 ggz wonen excl. BH excl. DB | ES48: V210G VPT 1 ggz wonen excl. BH excl. DB | EW48: Z523 ZZP 2lvg incl.bh incl.db | EX48: V523 VPT 2lvg incl.bh incl.db | FB48: 2vv | FC48: V025 VPT 2vv excl.bh incl.db | FD48: VPT | FE48: 2vvVPT | FF48: 101.5552432 | FG48: 710.8867024 | FL48: 5LVG | FM48: 2
D49: =D48+M17+FS8+M8 -> 0 | I49: =IF(M6-I48<0,M6,I48) ->  | M49: =IF(I33=0,1,0) -> 1 | T49: Ja; Extra kosten thuis | V49: =SUM($I$32:$I$33)-$I$38-$I$41 -> 0 | W49: =$M$6*25% -> 0 | X49: =V49-W49 -> 0 | Y49: =IF(X50>0,W50,V50) -> 0 | AK49: Z253G ZZP 5 ggz beveiligd wonen incl. BH incl. DB | AL49: V710 VPT 1zg-auditief excl.bh excl.db | AO49: 19 | AP49: K7 | AY49: H812 Dagbesteding VG midden | AZ49: H812 | BA49: 57.03326909 | BE49: 1LVG | BF49: 780 | BG49: nvt | BH49: 32506 | BI49: 623.4027397 | BL49: 3ZGvis | BM49: =VLOOKUP(BL49,'Ruimte behandeling basis MPT'!$A$2:$H$46,8,FALSE) -> 98.29100918 | BS49: 602 | BT49: PGB: Rekenmodule voorleggen aan Zorgkantoor | CJ49: 1LVG | CK49: Niet | CL49: nvt | CM49: 4VV | CN49: 753 | CO49: 0 | CP49: 0 | CQ49: 0 | CR49: 0 | CS49: 0 | CT49: 0 | CU49: 0 | CV49: 0 | CW49: 0 | CX49: 0 | CY49: 0 | DS49: 5lvg | DT49: BGgrp | DV49: 6VG | DW49: nee | DX49: Nee | DY49: 23.75 | DZ49: 19 | ER49: Z211G ZZP 1 ggz wonen excl. BH incl. DB | ES49: V211G VPT 1 ggz wonen excl. BH incl. DB | EW49: Z533 ZZP 3lvg incl.bh incl.db | EX49: V533 VPT 3lvg incl.bh incl.db | FB49: 3vv | FC49: V033 VPT 3vv incl.bh incl.db | FD49: VPT | FE49: 3vvVPT | FF49: 158.0977463 | FG49: 1106.684224 | FL49: 1SGLVG | FM49: 2
D50: =IF(B43="overschrijding",D49-D47,D47-D49-I40-I42) -> 0 | E50: =IF($E$20=E19,3,0) -> 3 | I50: =IF($T$20-$I$33>0,$I$33,$T$20) -> 0 | M50: =IF(M46<0,1,0) -> 0 | T50: Ja; Extra kosten thuis | U50: betaalde arbeid | V50: =SUM($I$32:$I$33)-$I$38-$I$41 -> 0 | W50: =$M$6*25% -> 0 | X50: =V50-W50 -> 0 | Y50: =IF(X51>0,W51,V51) -> 0 | AK50: Z211G ZZP 1 ggz wonen excl. BH incl. DB | AL50: V740 VPT 4zg-auditief excl.bh excl.db | AO50: 20 | AP50: K8 | AY50: H813 Dagbesteding VG zwaar | AZ50: H813 | BA50: 97.33567819 | BE50: 2LVG | BF50: 781 | BG50: nvt | BH50: 46572 | BI50: 893.1616438 | BL50: 4ZGvis | BM50: =VLOOKUP(BL50,'Ruimte behandeling basis MPT'!$A$2:$H$46,8,FALSE) -> 144.9171718 | BS50: 603 | BT50: PGB: Rekenmodule voorleggen aan Zorgkantoor | CJ50: 2LVG | CK50: Niet | CL50: nvt | CM50: 5VV | CN50: 754 | CO50: 0 | CP50: 0 | CQ50: 0 | CR50: 0 | CS50: 0 | CT50: 0 | CU50: 0 | CV50: 0 | CW50: 0 | CX50: 0 | CY50: 0 | DS50: 1sglvg | DT50: BGgrp | DV50: 7VG | DW50: nee | DX50: Ja | DY50: 30 | DZ50: 24 | ER50: Z212G ZZP 1 ggz wonen incl. BH excl. DB | ES50: V220G VPT 2 ggz wonen excl. BH excl. DB | EW50: Z543 ZZP 4lvg incl.bh incl.db | EX50: V543 VPT 4lvg incl.bh incl.db | FB50: 4vv | FC50: V043 VPT 4vv incl.bh incl.db | FD50: VPT | FE50: 4vvVPT | FF50: 138.4283608 | FG50: 968.9985254
D51: =IF($E$19=E19,2,0) -> 2 | E51: 3 | G51: =IF(OR(G47>0,G47<0),1,100) -> 100 | I51: =IF(I49-M6=0,I49+I50,I49) ->  | M51: =IF(M47<0,3,4) -> 4 | O51: =I35-M6-FS8-T26 -> 0 | T51: Ja; Extra kosten thuis | U51: Wlz indiceerbaar | V51: =SUM($I$32:$I$33)-$I$38-$I$41 -> 0 | W51: =$M$6*25% -> 0 | X51: =V51-W51 -> 0 | Y51: =Y50 -> 0 | AK51: Z221G ZZP 2 ggz wonen excl. BH incl. DB | AL51: V730 VPT 3zg-auditief excl.bh excl.db | AO51: 21 | AP51: K8 | AY51: H814 Dagbesteding VG kind licht | AZ51: H814 | BA51: 75.75823264 | BE51: 3LVG | BF51: 782 | BG51: nvt | BH51: 55296 | BI51: 1060.471233 | BL51: 5ZGvis | BM51: =VLOOKUP(BL51,'Ruimte behandeling basis MPT'!$A$2:$H$46,8,FALSE) -> 188.6394016 | BS51: 604 | BT51: PGB: Rekenmodule voorleggen aan Zorgkantoor | CJ51: 3LVG | CK51: Niet | CL51: nvt | CM51: 6VV | CN51: 755 | CO51: 0 | CP51: 0 | CQ51: 0 | CR51: 0 | CS51: 0 | CT51: 0 | CU51: 0 | CV51: 0 | CW51: 0 | CX51: 0 | CY51: 0 | DV51: 8VG | DW51: nee | DX51: Ja | DY51: 28.75 | DZ51: 23 | ER51: Z213G ZZP 1 ggz wonen incl. BH incl. DB | ES51: V221G VPT 2 ggz wonen excl. BH incl. DB | EW51: Z553 ZZP 5lvg incl.bh incl.db | EX51: V553 VPT 5lvg incl.bh incl.db | FB51: 5vv | FC51: V053 VPT 5vv incl.bh incl.db | FD51: VPT | FE51: 5vvVPT | FF51: 265.4053514 | FG51: 1857.83746
B52: =IF($E$18=E19,1,0) -> 1 | D52: 2 | E52: 3 | I52: =IF(M8>0,M6-M8,0) -> 0 | M52: =SUM(M49:M51) -> 5 | T52: 10 | U52: Gespecialiseerde verpleging | V52: =$D$111-$I$38-$I$40-$I$39-I40 ->  | AK52: Z231G ZZP 3 ggz wonen excl. BH incl. DB | AL52: V720 VPT 2zg-auditief excl.bh excl.db | AO52: 22 | AP52: K8 | AY52: H815 Dagbesteding VG kind midden | AZ52: H815 | BA52: 93.33748486 | BE52: 4LVG | BF52: 783 | BG52: nvt | BH52: 71738 | BI52: 1375.79726 | BS52: 605 | BT52: Bedrag PGB controleren bij het Zorgkantoor, daarna ZIN aanvragen | CJ52: 4LVG | CK52: Niet | CL52: nvt | CM52: 7VV | CN52: 756 | CO52: 0 | CP52: 0 | CQ52: 0 | CR52: 0 | CS52: 0 | CT52: 0 | CU52: 0 | CV52: 0 | CW52: 0 | CX52: 0 | CY52: 0 | DV52: 1LG | DW52: nee | DX52: Nee | DY52: 11.25 | DZ52: 9 | ER52: Z220G ZZP 2 ggz wonen excl. BH excl. DB | ES52: V230G VPT 3 ggz wonen excl. BH excl. DB | EW52: Z573 ZZP 1sglvg incl.bh incl.db | EX52: V573 VPT 1sglvg incl.bh incl.db | FB52: 6vv | FC52: V063 VPT 6vv incl.bh incl.db | FD52: VPT | FE52: 6vvVPT | FF52: 237.7648057 | FG52: 1664.35364
B53: 1 | D53: 2 | E53: 3 | G53: =IF(G48+G51=2,1,0) -> 0 | I53: =IF(T20-I33>0,I52,T1-FS8) -> 0 | M53: =IF(M52=5,M44,M48) -> 0 | T53: 3 | U53: Extra overbruggingszorg (urgent of actief plaatsen) | V53: =$D$111-$I$38-$I$40-$I$39-I41 ->  | AK53: Z241G ZZP 4 ggz wonen excl. BH incl. DB | AL53: V814 VPT 1zg-visueel excl.bh excl.db | AO53: 23 | AP53: K8 | AY53: H816 Dagbesteding VG kind zwaar | AZ53: H816 | BA53: 139.175277 | BE53: 5LVG | BF53: 784 | BG53: nvt | BH53: 71738 | BI53: 1375.79726 | BS53: 606 | BT53: PGB: Rekenmodule voorleggen aan Zorgkantoor | CJ53: 5LVG | CK53: Niet | CL53: nvt | CM53: 8VV | CN53: 757 | CO53: 0 | CP53: 0 | CQ53: 0 | CR53: 0 | CS53: 0 | CT53: 0 | CU53: 0 | CV53: 0 | CW53: 0 | CX53: 0 | CY53: 0 | DV53: 2LG | DW53: nee | DX53: Nee | DY53: 18.125 | DZ53: 14.5 | ER53: Z221G ZZP 2 ggz wonen excl. BH incl. DB | ES53: V231G VPT 3 ggz wonen excl. BH incl. DB | EW53: Z614 ZZP 1lg excl.db | EX53: V614 VPT 1lg excl.bh excl.db | FB53: 7vv | FC53: V073 VPT 7vv incl.bh incl.db | FD53: VPT | FE53: 7vvVPT | FF53: 325.8639773 | FG53: 2281.047841
B54: 1 | D54: 2 | E54: 3 | G54: =IF(M10-E45>=0,1,0) -> 1 | I54: =IF(M8>0,I53,I51) ->  | M54: =IF(I38+D46>E45,E45-I38,M53) -> 0 | T54: 3 | U54: Palliatief terminale zorg | V54: =$D$111-$I$38-$I$40-$I$39-I41 ->  | AK54: Z251G ZZP 5 ggz beveiligd wonen excl. BH incl. DB | AL54: V824 VPT 2zg-visueel excl.bh excl.db | AO54: 24 | AP54: K8 | AY54: H817 Dagbehandeling VG kind emg | AZ54: H817 | BA54: 161.0521597 | BE54: 1SGLVG | BF54: 790 | BG54: nvt | BH54: 64517 | BI54: 1237.312329 | BS54: 607 | BT54: PGB: Rekenmodule voorleggen aan Zorgkantoor | CJ54: 1SGLVG | CK54: Niet | CL54: nvt | CM54: 9bVV | CN54: 191 | CO54: 0 | CP54: 0 | CQ54: 0 | CR54: 0 | CS54: 0 | CT54: 0 | CU54: 0 | CV54: 0 | CW54: 0 | CX54: 0 | CY54: 0 | DV54: 3LG | DW54: nee | DX54: Nee | DY54: 18.125 | DZ54: 14.5 | ER54: Z222G ZZP 2 ggz wonen incl. BH excl. DB | ES54: V240G VPT 4 ggz wonen excl. BH excl. DB | EW54: Z615 ZZP 1lg incl.db | EX54: V615 VPT 1lg excl.bh incl.db | FB54: 8vv | FC54: V083 VPT 8vv incl.bh incl.db | FD54: VPT | FE54: 8vvVPT | FF54: 419.5834532 | FG54: 2937.084172
B55: 1 | D55: 2 | E55: 3 | G55: =SUM(G53:G54) -> 1 | I55: =IF(L62=2,I50,I54) ->  | M55: =IF(D46+I38>E45,6,0) -> 0 | T55: 3 | U55: Meerzorg | V55: =$D$111-$I$38-$I$40-$I$39-I41 ->  | AB55: =E45-I38-I40 -> 0 | AK55: Z210G ZZP 1 ggz wonen excl. BH excl. DB | AL55: V830 VPT 3zg-visueel excl.bh excl.db | AO55: 25 | AP55: K8 | AY55: H818 Dagactiviteit (begeleiding) VG kind gedrag | AZ55: H818 | BA55: 139.175277 | BS55: 608 | BT55: PGB: Rekenmodule voorleggen aan Zorgkantoor | CM55: 10VV | CN55: 759 | CO55: 0 | CP55: 0 | CQ55: 0 | CR55: 0 | CS55: 0 | CT55: 0 | CU55: 0 | CV55: 0 | CW55: 0 | CX55: 0 | CY55: 0 | DV55: 4LG | DW55: nee | DX55: Nee | DY55: 21.875 | DZ55: 17.5 | ER55: Z223G ZZP 2 ggz wonen incl. BH incl. DB | ES55: V241G VPT 4 ggz wonen excl. BH incl. DB | EW55: Z624 ZZP 2lg excl.db | EX55: V624 VPT 2lg excl.bh excl.db | FB55: 9vvb | FC55: V097 VPT 9bvv incl.bhincl.db | FD55: VPT | FE55: 9vvbVPT | FF55: 280.9793497 | FG55: 1966.855448
B56: 1 | D56: 2 | E56: 3 | F56: =als ->  | I56: =IF(E45-O57>0,O57,I55) ->  | T56: 1 | U56: Extra budget voor behandeling | V56: =IF(W60=3,V59,IF(W60=4,U59,0)) -> 0 | Y56: ja invasieve beademing | Z56: =BQ12 -> 0 | AA56: =IFERROR(VLOOKUP(Q23,Y56:Z57,2),0) -> 0 | AK56: Z220G ZZP 2 ggz wonen excl. BH excl. DB | AL56: V840 VPT 4zg-visueel excl.bh excl.db | AY56: H819 Dagbehandeling VG EMG volwassenen | AZ56: H819 | BA56: 117.4279712 | BS56: 609 | BT56: PGB: Rekenmodule voorleggen aan Zorgkantoor | DV56: 5LG | DW56: nee | DX56: Ja | DY56: 28.75 | DZ56: 23 | ER56: Z230G ZZP 3 ggz wonen excl. BH excl. DB | ES56: V250G VPT 5 ggz beveiligd wonen excl. BH excl. DB | EW56: Z625 ZZP 2lg incl.db | EX56: V625 VPT 2lg excl.bh incl.db | FB56: 10vv | FC56: V103 VPT 10vv incl.bhincl.db | FD56: VPT | FE56: 10vvVPT | FF56: 479.2039491 | FG56: 3354.427644
B57: 1 | D57: 2 | E57: 3 | G57: =IF(T20-I33>=0,1,0) -> 1 | O57: =IF(I33=0,M17,M17-M15) -> 0 | Q57: =E45-I38 -> 0 | T57: 2 | U57: toeslag beademing | V57: =IF(AB55>AA56,AA56,AB55) -> 0 | Y57: ja non-invasieve beademing | Z57: =BQ13 -> 0 | AK57: Z230G ZZP 3 ggz wonen excl. BH excl. DB | AL57: V850 VPT 5zg-visueel excl.bh excl.db | AY57: H820 Dagbehandeling VG kind midden | AZ57: H820 | BA57: 114.64207 | BS57: 610 | BT57: PGB: Rekenmodule voorleggen aan Zorgkantoor | CJ57: =VLOOKUP(G10,CJ7:CL54,2,FALSE) ->  | DV57: 6LG | DW57: nee | DX57: Ja | DY57: 28.75 | DZ57: 23 | ER57: Z231G ZZP 3 ggz wonen excl. BH incl. DB | ES57: V251G VPT 5 ggz beveiligd wonen excl. BH incl. DB | EW57: Z630 ZZP 3lg excl.bh excl.db | EX57: V630 VPT 3lg excl.bh excl.db | FB57: 1vg | FC57: V415 VPT 1vg excl.bh incl.db | FD57: VPT | FE57: 1vgVPT | FF57: 104.4084729 | FG57: 730.8593105
B58: 1 | D58: 2 | E58: 3 | G58: =IF(M6-I35<0,3,4) -> 4 | V58: =M10-I32 -> 0 | W58: =IF(V58<1,1,2) -> 1 | AK58: Z240G ZZP 4 ggz wonen excl. BH excl. DB | AY58: H821 Dagbehandeling VG kind zwaar | AZ58: H821 | BA58: 161.0521597 | BS58: 611 | BT58: PGB: Rekenmodule voorleggen aan Zorgkantoor | CP58: Telling | DV58: 7LG | DW58: nee | DX58: Ja | DY58: 32.5 | DZ58: 26 | ER58: Z232G ZZP 3 ggz wonen incl. BH excl. DB | EW58: Z631 ZZP 3lg excl.bh incl.db | EX58: V631 VPT 3lg excl.bh incl.db | FB58: 2vg | FC58: V425 VPT 2vg excl.bh incl.db | FD58: VPT | FE58: 2vgVPT | FF58: 116.5298185 | FG58: 815.7087292
B59: 1 | D59: 2 | E59: 3 | G59: =G58+G57 -> 5 | T59: =IF(U59<V59,U59,V59) -> 0 | U59: =IF(U60>0,U60,U61) -> 0 | V59: =I33 -> 0 | W59: =IF(V59<1,1,2) -> 1 | AK59: Z250G ZZP 5 ggz beveiligd wonen excl. BH excl. DB | AY59: H822 Dagbehandeling VG kind gedrag | AZ59: H822 | BA59: 191.6646782 | BS59: 612 | BT59: PGB: Rekenmodule voorleggen aan Zorgkantoor | CM59: PV | CN59: =VLOOKUP($G$10,$CM$8:$CX$55,4,FALSE) ->  | CP59: 0 | CQ59: =IFERROR(VLOOKUP(H12,$CM$59:$CN$62,2,FALSE),0) -> 0 | CR59: =IFERROR(VLOOKUP(I14,$CM$59:$CN$62,2,FALSE),0) -> 0 | CS59: =IFERROR(VLOOKUP(J14,$CM$59:$CN$62,2,FALSE),0) -> 0 | DV59: 1ZGvis | DW59: nee | DX59: Nee | DY59: 8.125 | DZ59: 6.5 | ER59: Z233G ZZP 3 ggz wonen incl. BH incl. DB | EW59: Z632 ZZP 3lg incl.bh excl.db | EX59: V632 VPT 3lg incl.bh excl.db | FB59: 3vg | FC59: V433 VPT 3vg incl.bh incl.db | FD59: VPT | FE59: 3vgVPT | FF59: 167.9014924 | FG59: 1175.310447
B60: 1 | D60: 2 | E60: 3 | G60: =IF(G59=4,I45,I44) -> 0 | J60: Geen Zin | L60: =IF(I32=0,1,0) -> 1 | U60: =$M$17-($I$32+$I$33) -> 0 | W60: =SUM(W58:W59) -> 2 | AK60: Z414 ZZP 1vg excl.db | AY60: H831 Dagbesteding LG licht | AZ60: H831 | BA60: 57.84214192 | BS60: 613 | BT60: PGB: Rekenmodule voorleggen aan Zorgkantoor | CJ60: wel | CK60: Niet | CM60: VP | CN60: =VLOOKUP($G$10,$CM$8:$CX$55,6,FALSE) ->  | CP60: =IFERROR(VLOOKUP(G16,$CM$59:$CN$62,2,FALSE),0) -> 0 | CQ60: 0 | CR60: 0 | CS60: 0 | DV60: 2ZGvis | DW60: nee | DX60: Nee | DY60: 14.375 | DZ60: 11.5 | ER60: Z240G ZZP 4 ggz wonen excl. BH excl. DB | EW60: Z633 ZZP 3lg incl.bh incl.db | EX60: V633 VPT 3lg incl.bh incl.db | FB60: 4vg | FC60: V443 VPT 4vg incl.bh incl.db | FD60: VPT | FE60: 4vgVPT | FF60: 195.0879632 | FG60: 1365.615742
B61: 1 | D61: 2 | E61: 3 | J61: BH Pos | L61: =IF($T$20-$I$33>0,1,0) -> 0 | U61: =($I$32+$I$33)-M17 -> 0 | AK61: Z424 ZZP 2vg excl.db | AY61: H832 Dagbesteding LG midden | AZ61: H832 | BA61: 67.84256972 | BS61: 614 | BT61: PGB: Rekenmodule voorleggen aan Zorgkantoor | CJ61: Ja | CK61: Nvt | CM61: Bgind | CN61: =VLOOKUP($G$10,$CM$8:$CX$55,8,FALSE) ->  | CP61: 0 | CQ61: 0 | CR61: 0 | CS61: 0 | DV61: 3ZGvis | DW61: nee | DX61: Nee | DY61: 20 | DZ61: 16 | ER61: Z241G ZZP 4 ggz wonen excl. BH incl. DB | EW61: Z640 ZZP 4lg excl.bh excl.db | EX61: V640 VPT 4lg excl.bh excl.db | FB61: 5vg | FC61: V457 VPT 5vg incl.bh incl.db | FD61: VPT | FE61: 5vgVPT | FF61: 268.5535248 | FG61: 1879.874674
B62: 1 | D62: 2 | E62: 3 | L62: =SUM(L60:L61) -> 1 | AK62: Z415 ZZP 1vg incl.db | AY62: H833 Dagbesteding LG zwaar | AZ62: H833 | BA62: 74.4048791 | BS62: 615 | BT62: PGB: Rekenmodule voorleggen aan Zorgkantoor | CJ62: Nee | CM62: BGgrp | CN62: =VLOOKUP($G$10,$CM$8:$CX$55,10,FALSE) ->  | CP62: 0 | CQ62: 0 | CR62: 0 | CS62: 0 | DV62: 4ZGvis | DW62: nee | DX62: Nee | DY62: 28.75 | DZ62: 23 | ER62: Z242G ZZP 4 ggz wonen incl. BH excl. DB | EW62: Z641 ZZP 4lg excl.bh incl.db | EX62: V641 VPT 4lg excl.bh incl.db | FB62: 6vg | FC62: V463 VPT 6vg incl.bh incl.db | FD62: VPT | FE62: 6vgVPT | FF62: 228.9745173 | FG62: 1602.821621
B63: 1 | D63: 2 | N63: =IF(I33>P65,P65,I33) -> 0 | W63: Logeren | AK63: Z425 ZZP 2vg incl.db | AY63: H834 Dagbesteding LG kind licht | AZ63: H834 | BA63: 82.71218745 | BS63: 616 | BT63: PGB: Rekenmodule voorleggen aan Zorgkantoor | DV63: 5ZGvis | DW63: nee | DX63: Ja | DY63: 32.5 | DZ63: 26 | ER63: Z243G ZZP 4 ggz wonen incl. BH incl. DB | EW63: Z642 ZZP 4lg incl.bh excl.db | EX63: V642 VPT 4lg incl.bh excl.db | FB63: 7vg | FC63: V473 VPT 7vg incl.bh incl.db | FD63: VPT | FE63: 7vgVPT | FF63: 263.9589255 | FG63: 1847.712478
B64: 1 | D64: =IF(E19="",1,0) -> 1 | N64: =IF(AND(I40=0,I33>1),I33,0) -> 0 | W64: =IFERROR(VLOOKUP(D18,Tarieven_ZIN_Logeren,3,0),0) -> 0 | AK64: Z430 ZZP 3vg excl.bh excl.db | AY64: H835 Dagbesteding LG kind midden | AZ64: H835 | BA64: 95.83183822 | BS64: 617 | BT64: PGB: Rekenmodule voorleggen aan Zorgkantoor | DV64: 1ZGaud | DW64: nee | DX64: Nee | DY64: 15.625 | DZ64: 12.5 | ER64: Z250G ZZP 5 ggz beveiligd wonen excl. BH excl. DB | EW64: Z643 ZZP 4lg incl.bh incl.db | EX64: V643 VPT 4lg incl.bh incl.db | FB64: 8vg | FC64: V483 VPT 8vg incl.bh incl.db | FD64: VPT | FE64: 8vgVPT | FF64: 329.2953149 | FG64: 2305.067204
B65: =IF(E18="",1,0) -> 1 | P65: =IF($T$20-$I$33>0,$I$33,$T$20) -> 0 | R65: =IF(B18="Deeltijd_verblijf",$I$6-F18,0) -> 0 | W65: 0 | AK65: Z440 ZZP 4vg excl.bh excl.db | AY65: H836 Dagbesteding LG kind zwaar | AZ65: H836 | BA65: 115.3763385 | BS65: 618 | BT65: PGB: Rekenmodule voorleggen aan Zorgkantoor | DV65: 2ZGaud | DW65: nee | DX65: Nee | DY65: 36.875 | DZ65: 29.5 | ER65: Z251G ZZP 5 ggz beveiligd wonen excl. BH incl. DB | EW65: Z650 ZZP 5lg excl.bh excl.db | EX65: V650 VPT 5lg excl.bh excl.db | FB65: 1GGZ-W | FC65: V211G VPT 1 ggz wonen excl. BH incl. DB | FD65: VPT | FE65: 1GGZ-WVPT | FF65: 160.0639344 | FG65: =FF65*7 -> 1120.447541
N66: =IF(N65=2,N64,N63) -> 0 | R66: =IF(B19="Deeltijd_verblijf",$I$6-F19,0) -> 0 | W66: 0 | AK66: Z454 ZZP 5vg excl.bh excl.db | AY66: H840 Dagbehandeling LG/NAH | AZ66: H840 | BA66: =VLOOKUP(AZ66,Tarieven_ZIN1,2,0) -> 104.6018958 | BS66: 619 | BT66: PGB: Rekenmodule voorleggen aan Zorgkantoor | DV66: 3ZGaud | DW66: nee | DX66: Ja | DY66: 43.75 | DZ66: 35 | EN66: OpnameGGZVerblijfsprestatie | ER66: Z252G ZZP 5 ggz beveiligd wonen incl. BH excl. DB | EW66: Z651 ZZP 5lg excl.bh incl.db | EX66: V651 VPT 5lg excl.bh incl.db | FB66: 2GGZ-W | FC66: V221G VPT 2 ggz wonen excl. BH incl. DB | FD66: VPT | FE66: 2GGZ-WVPT | FF66: 187.8917643 | FG66: 1315.24235
B67: =IF($E$21=E22,4,0) -> 4 | C67: =IF($E$22=E23,5,0) -> 5 | D67: =IF($E$23=E24,6,0) -> 6 | E67: =IF($E$24=E25,7,0) -> 7 | N67: =IF(N66>P65,P65,N66) -> 0 | R67: 0 | W67: 0 | AK67: Z460 ZZP 6vg excl.bh excl.db | BA67: =IFERROR(VLOOKUP(AZ67,Tarieven_ZIN1,2,0),0) -> 0 | BS67: 620 | BT67: PGB: Rekenmodule voorleggen aan Zorgkantoor | DV67: 4ZGaud | DW67: nee | DX67: Nee | DY67: 26.25 | DZ67: 21 | ER67: Z253G ZZP 5 ggz beveiligd wonen incl. BH incl. DB | EW67: Z652 ZZP 5lg incl.bh excl.db | EX67: V652 VPT 5lg incl.bh excl.db | FB67: 3GGZ-W | FC67: V231G VPT 3 ggz wonen excl. BH incl. DB | FD67: VPT | FE67: 3GGZ-WVPT | FF67: 200.4777816 | FG67: 1403.344471
B68: 4 | C68: 5 | D68: 6 | E68: 7 | R68: 0 | W68: 0 | AK68: Z470 ZZP 7vg excl.bh excl.db | AY68: H001G Dagbesteding ggz wonen-1 | AZ68: H001 | BA68: 56.86469019 | BS68: 621 | BT68: PGB: Rekenmodule voorleggen aan Zorgkantoor | DV68: 10VV | DW68: nvt | DX68: Nee | DY68: 35.625 | DZ68: 28.5 | EW68: Z653 ZZP 5lg incl.bh incl.db | EX68: V653 VPT 5lg incl.bh incl.db | FB68: 4GGZ-W | FC68: V241G VPT 4 ggz wonen excl. BH incl. DB | FD68: VPT | FE68: 4GGZ-WVPT | FF68: 243.288597 | FG68: 1703.020179
B69: 4 | C69: 5 | D69: 6 | E69: 7 | H69: =I32+I33 -> 0 | R69: 0 | W69: 0 | AK69: Z480 ZZP 8vg excl.bh excl.db | AY69: H002G Dagbesteding ggz wonen-2 | AZ69: H002 | BA69: 64.9630071 | BS69: 622 | BT69: PGB: Rekenmodule voorleggen aan Zorgkantoor | DV69: 1VV | DW69: nvt | DX69: Nee | DY69: 5.625 | DZ69: 4.5 | EW69: Z660 ZZP 6lg excl.bh excl.db | EX69: V660 VPT 6lg excl.bh excl.db | FB69: 5GGZ-W | FC69: V251G VPT 5 ggz beveiligd wonen excl. BH incl. DB | FD69: VPT | FE69: 5GGZ-WVPT | FF69: 329.7707958 | FG69: 2308.39557
B70: 4 | C70: 5 | D70: 6 | E70: 7 | H70: =IF(H69>M6-M8,1,2) -> 2 | R70: 0 | W70: 0 | AK70: Z431 ZZP 3vg excl.bh incl.db | AY70: H003G Dagbesteding ggz wonen-3 | AZ70: H003 | BA70: 55.6326106 | BS70: 623 | BT70: PGB: Rekenmodule voorleggen aan Zorgkantoor | DV70: 2VV | DW70: nvt | DX70: Nee | DY70: 8.75 | DZ70: 7 | EW70: Z661 ZZP 6lg excl.bh incl.db | EX70: V661 VPT 6lg excl.bh incl.db | FB70: 1lvg | FC70: V513 VPT 1lvg incl.bh incl.db | FD70: VPT | FE70: 1lvgVPT | FF70: 196.5617992 | FG70: 1375.932594
B71: 4 | C71: 5 | D71: 6 | E71: 7 | H71: =IF(I32>M6-M8,5,6) -> 6 | J71: 6 | K71: =M6-M8 -> 0 | R71: 0 | W71: 0 | AK71: Z441 ZZP 4vg excl.bh incl.db | AY71: H004G Dagbesteding ggz wonen-4 | AZ71: H004 | BA71: =VLOOKUP(AZ71,Tarieven_ZIN1,2,0) -> 70.27248989 | BS71: 624 | BT71: PGB: Rekenmodule voorleggen aan Zorgkantoor | DV71: 3VV | DW71: nvt | DX71: Nee | DY71: 13.75 | DZ71: 11 | EW71: Z662 ZZP 6lg incl.bh excl.db | EX71: V662 VPT 6lg incl.bh excl.db | FB71: 2lvg | FC71: V523 VPT 2lvg incl.bh incl.db | FD71: VPT | FE71: 2lvgVPT | FF71: 243.3203508 | FG71: 1703.242456
B72: 4 | C72: 5 | D72: 6 | E72: 7 | J72: 7 | K72: =M6-M8 -> 0 | R72: 0 | W72: 0 | AK72: Z455 ZZP 5vg excl.bh incl.db | AY72: H005G Dagbesteding ggz wonen-5 | AZ72: H005 | BA72: 90.64142936 | BS72: 625 | BT72: PGB: Rekenmodule voorleggen aan Zorgkantoor | DV72: 4VV | DW72: nvt | DX72: Nee | DY72: 15.625 | DZ72: 12.5 | EW72: Z663 ZZP 6lg incl.bh incl.db | EX72: V663 VPT 6lg incl.bh incl.db | FB72: 3lvg | FC72: V533 VPT 3lvg incl.bh incl.db | FD72: VPT | FE72: 3lvgVPT | FF72: 315.928881 | FG72: 2211.502167
B73: 4 | C73: 5 | D73: 6 | E73: 7 | H73: =IF(AND(I33>0,I33-M15>0,I35<(M6+M15)),9,0) -> 0 | J73: 16 | K73: =H69-M15 -> 0 | R73: 0 | W73: 0 | AK73: Z461 ZZP 6vg excl.bh incl.db | AY73: H851 Dagbesteding ZG auditief licht | AZ73: H851 | BA73: 57.87302362 | BS73: 626 | BT73: PGB: Rekenmodule voorleggen aan Zorgkantoor | DV73: 5VV | DW73: nvt | DX73: Nee | DY73: 21.25 | DZ73: 17 | EW73: Z670 ZZP 7lg excl.bh excl.db | EX73: V670 VPT 7lg excl.bh excl.db | FB73: 4lvg | FC73: V543 VPT 4lvg incl.bh incl.db | FD73: VPT | FE73: 4lvgVPT | FF73: 371.0119468 | FG73: 2597.083627
B74: 4 | C74: 5 | D74: 6 | H74: =SUM(H70:H73) -> 8 | J74: 17 | K74: =I35-I34-I41 -> 0 | R74: 0 | W74: 0 | AK74: Z471 ZZP 7vg excl.bh incl.db | AY74: H852 Dagbesteding ZG auditief midden | AZ74: H852 | BA74: 69.77787179 | BS74: 627 | BT74: PGB: Rekenmodule voorleggen aan Zorgkantoor | DV74: 6VV | DW74: nvt | DX74: Nee | DY74: 21.25 | DZ74: 17 | EW74: Z671 ZZP 7lg excl.bh incl.db | EX74: V671 VPT 7lg excl.bh incl.db | FB74: 5lvg | FC74: V553 VPT 5lvg incl.bh incl.db | FD74: VPT | FE74: 5lvgVPT | FF74: 351.7515672 | FG74: 2462.260971
B75: 4 | C75: 5 | J75: 8 | K75: =I32+I33 -> 0 | R75: 0 | W75: 0 | AK75: Z481 ZZP 8vg excl.bh incl.db | AY75: H853 Dagbesteding ZG auditief zwaar | AZ75: H853 | BA75: 83.21234287 | BS75: 628 | BT75: PGB: Rekenmodule voorleggen aan Zorgkantoor | DV75: 7VV | DW75: nvt | DX75: Ja | DY75: 28.75 | DZ75: 23 | EW75: Z672 ZZP 7lg incl.bh excl.db | EX75: V672 VPT 7lg incl.bh excl.db | FB75: 1sglvg | FC75: V573 VPT 1sglvg incl.bh incl.db | FD75: VPT | FE75: =CONCATENATE(FB75,FD75) -> 1sglvgVPT | FF75: 395.6497198 | FG75: 2769.548039
B76: 4 | J76: 9 | K76: =H69-M15 -> 0 | R76: 0 | W76: 0 | AK76: Z432 ZZP 3vg incl.bh excl.db | AY76: H854 Dagbesteding ZG kind auditief licht | AZ76: H854 | BA76: 88.61872981 | BS76: 629 | BT76: PGB: Rekenmodule voorleggen aan Zorgkantoor | DV76: 8VV | DW76: nvt | DX76: Ja | DY76: 35.625 | DZ76: 28.5 | EW76: Z673 ZZP 7lg incl.bh incl.db | EX76: V673 VPT 7lg incl.bh incl.db | FB76: 1lg | FC76: V615 VPT 1lg excl.bh incl.db | FD76: VPT | FE76: 1lgVPT | FF76: 148.6853284 | FG76: 1040.797298
R77: 0 | W77: 0 | AK77: Z442 ZZP 4vg incl.bh excl.db | AY77: H855 Dagbesteding ZG kind auditief midden | AZ77: H855 | BA77: 106.9646448 | BS77: 630 | BT77: PGB: Rekenmodule voorleggen aan Zorgkantoor | DV77: 9vvb | DW77: nvt | DX77: Nee | DY77: 25 | DZ77: 20 | EW77: Z710 ZZP 1zg-auditief excl.bh excl.db | EX77: V710 VPT 1zg-auditief excl.bh excl.db | FB77: 2lg | FC77: V625 VPT 2lg excl.bh incl.db | FD77: VPT | FE77: 2lgVPT | FF77: 177.3177269 | FG77: 1241.224088
R78: 0 | AK78: Z456 ZZP 5vg incl.bh excl.db | AY78: H856 Dagbesteding ZG kind auditief zwaar | AZ78: H856 | BA78: 130.4504393 | BS78: 631 | BT78: PGB: Rekenmodule voorleggen aan Zorgkantoor | DV78: 1LVG | DW78: nvt | DX78: Nee | DY78: 20 | DZ78: 16 | EW78: Z711 ZZP 1zg-auditief excl.bh incl.db | EX78: V711 VPT 1zg-auditief excl.bh incl.db | FB78: 3lg | FC78: V633 VPT 3lg incl.bh incl.db | FD78: VPT | FE78: 3lgVPT | FF78: 183.9928317 | FG78: 1287.949822
B79: =IF($E$25=E26,8,0) -> 8 | C79: =IF($E$26=E27,9,0) -> 9 | D79: =IF($E$27=E28,10,0) -> 10 | E79: =IF($E$28=E29,11,0) -> 11 | R79: 0 | AK79: Z462 ZZP 6vg incl.bh excl.db | AY79: H871 Dagbesteding ZG visueel licht | AZ79: H871 | BA79: 56.4864782 | BS79: 632 | BT79: PGB: Rekenmodule voorleggen aan Zorgkantoor | DV79: 2LVG | DW79: nvt | DX79: Nee | DY79: 24.375 | DZ79: 19.5 | EW79: Z712 ZZP 1zg-auditief incl.bh excl.db | EX79: V712 VPT 1zg-auditief incl.bh excl.db | FB79: 4lg | FC79: V643 VPT 4lg incl.bh incl.db | FD79: VPT | FE79: 4lgVPT | FF79: 229.8983805 | FG79: 1609.288664
B80: 8 | C80: =IF($E$26=E28,9,0) -> 9 | D80: =IF($E$27=E29,10,0) -> 10 | E80: =IF($E$28=E30,11,0) -> 11 | R80: 0 | AK80: Z472 ZZP 7vg incl.bh excl.db | AY80: H872 Dagbesteding ZG visueel midden | AZ80: H872 | BA80: 61.03432064 | BS80: 633 | BT80: PGB: Rekenmodule voorleggen aan Zorgkantoor | DV80: 3LVG | DW80: nvt | DX80: Nee | DY80: 26.875 | DZ80: 21.5 | EW80: Z713 ZZP 1zg-auditief incl.bh incl.db | EX80: V713 VPT 1zg-auditief incl.bh incl.db | FB80: 5lg | FC80: V653 VPT 5lg incl.bh incl.db | FD80: VPT | FE80: 5lgVPT | FF80: 256.5969738 | FG80: 1796.178817
B81: 8 | C81: =IF($E$26=E29,9,0) -> 9 | D81: =IF($E$27=E30,10,0) -> 10 | E81: =IF($E$28=E31,11,0) -> 11 | AK81: Z482 ZZP 8vg incl.bh excl.db | AY81: H873 Dagbesteding ZG visueel zwaar | AZ81: H873 | BA81: 70.17533137 | BS81: 634 | BT81: PGB: Rekenmodule voorleggen aan Zorgkantoor | DV81: 4LVG | DW81: nvt | DX81: Ja | DY81: 31.875 | DZ81: 25.5 | EW81: Z740 ZZP 4zg-auditief excl.bh excl.db | EX81: V740 VPT 4zg-auditief excl.bh excl.db | FB81: 6lg | FC81: V663 VPT 6lg incl.bh incl.db | FD81: VPT | FE81: 6lgVPT | FF81: 322.5111555 | FG81: 2257.578089
B82: 8 | C82: =IF($E$26=E30,9,0) -> 9 | D82: =IF($E$27=E31,10,0) -> 10 | AK82: Z433 ZZP 3vg incl.bh incl.db | AY82: H874 Dagbesteding ZG kind visueel licht | AZ82: H874 | BA82: 74.66762793 | BS82: 635 | BT82: PGB: Rekenmodule voorleggen aan Zorgkantoor | DV82: 5LVG | DW82: nvt | DX82: Ja | DY82: =DZ82*1.25 -> 31.875 | DZ82: 25.5 | EW82: Z741 ZZP 4zg-auditief excl.bh incl.db | EX82: V741 VPT 4zg-auditief excl.bh incl.db | FB82: 7lg | FC82: V673 VPT 7lg incl.bh incl.db | FD82: VPT | FE82: 7lgVPT | FF82: 334.7127855 | FG82: 2342.989499
B83: 8 | C83: =IF($E$26=E31,9,0) -> 9 | AK83: Z443 ZZP 4vg incl.bh incl.db | AY83: H875 Dagbesteding ZG kind visueel midden | AZ83: H875 | BA83: 86.49151072 | BS83: 636 | BT83: PGB: Rekenmodule voorleggen aan Zorgkantoor | DV83: 1SGLVG | DW83: nvt | DX83: Ja | DY83: =DZ83*1.25 -> 34.375 | DZ83: 27.5 | EW83: Z742 ZZP 4zg-auditief incl.bh excl.db | EX83: V742 VPT 4zg-auditief incl.bh excl.db | FB83: 1zgaud | FC83: V713 VPT 1zg-auditief incl.bh incl.db | FD83: VPT | FE83: 1zgaudVPT | FF83: 197.8014917 | FG83: 1384.610442
B84: 8 | AK84: Z457 ZZP 5vg incl.bh incl.db | AY84: H876 Dagbesteding ZG kind visueel zwaar | AZ84: H876 | BA84: 106.1007994 | BS84: 637 | BT84: PGB: Rekenmodule voorleggen aan Zorgkantoor | EW84: Z743 ZZP 4zg-auditief incl.bh incl.db | EX84: V743 VPT 4zg-auditief incl.bh incl.db | FB84: 4zgaud | FC84: V743 VPT 4zg-auditief incl.bh incl.db | FD84: VPT | FE84: =CONCATENATE(FB84,FD86) -> 4zgaudVPT | FF84: 270.9958967 | FG84: 1896.971277
AK85: Z463 ZZP 6vg incl.bh incl.db | AY85: H891 Dagbehandeling LVG | AZ85: H891 | BA85: 150.6762196 | BS85: 638 | BT85: PGB: Rekenmodule voorleggen aan Zorgkantoor | EW85: Z720 ZZP 2zg-auditief excl.bh excl.db | EX85: V720 VPT 2zg-auditief excl.bh excl.db | FB85: 2zgaud | FC85: V723 VPT 2zg-auditief incl.bh incl.db | FD85: VPT | FE85: =CONCATENATE(FB85,FD84) -> 2zgaudVPT | FF85: 390.3206707 | FG85: 2732.244695
AK86: Z473 ZZP 7vg incl.bh incl.db | BA86: =IFERROR(VLOOKUP(AZ86,Tarieven_ZIN1,2,0),0) -> 0 | BS86: 639 | BT86: PGB: Rekenmodule voorleggen aan Zorgkantoor | EW86: Z721 ZZP 2zg-auditief excl.bh incl.db | EX86: V721 VPT 2zg-auditief excl.bh incl.db | FB86: 3zgaud | FC86: V733 VPT 3zg-auditief incl.bh incl.db | FD86: VPT | FE86: =CONCATENATE(FB86,FD85) -> 3zgaudVPT | FF86: 460.894188 | FG86: 3226.259316
B87: =IF($E$29=E30,12,0) -> 12 | C87: =IF(E30=E31,13,0) -> 13 | AK87: Z483 ZZP 8vg incl.bh incl.db | BA87: =IFERROR(VLOOKUP(AZ87,Tarieven_ZIN1,2,0),0) -> 0 | BS87: 500 | BT87: PGB: Rekenmodule voorleggen aan Zorgkantoor | EW87: Z722 ZZP 2zg-auditief incl.bh excl.db | EX87: V722 VPT 2zg-auditief incl.bh excl.db | FB87: 1zgvis | FC87: V815 VPT 1zg-visueel excl.bh incl.db | FD87: VPT | FE87: 1zgvisVPT | FF87: 137.193768 | FG87: 960.3563763
B88: =IF($E$29=E31,12,0) -> 12 | BA88: =IFERROR(VLOOKUP(AZ88,Tarieven_ZIN1,2,0),0) -> 0 | BS88: 501 | BT88: Bedrag PGB controleren bij het Zorgkantoor, daarna ZIN aanvragen | EW88: Z723 ZZP 2zg-auditief incl.bh incl.db | EX88: V723 VPT 2zg-auditief incl.bh incl.db | FB88: 2zgvis | FC88: V825 VPT 2zg-visueel excl.bh incl.db | FD88: VPT | FE88: 2zgvisVPT | FF88: 177.5527994 | FG88: 1242.869596
AK89: Z513 ZZP 1lvg incl.bh incl.db | BA89: =IFERROR(VLOOKUP(AZ89,Tarieven_ZIN1,2,0),0) -> 0 | BS89: 502 | BT89: PGB: Rekenmodule voorleggen aan Zorgkantoor | EW89: Z730 ZZP 3zg-auditief excl.bh excl.db | EX89: V730 VPT 3zg-auditief excl.bh excl.db | FB89: 3zgvis | FC89: V833 VPT 3zg-visueel incl.bh incl.db | FD89: VPT | FE89: 3zgvisVPT | FF89: 226.4773506 | FG89: 1585.341454
F90: Aantal dubbel | G90: =COUNTIF(E93:E106,"dubbel") -> 0 | AK90: Z523 ZZP 2lvg incl.bh incl.db | BA90: =IFERROR(VLOOKUP(AZ90,Tarieven_ZIN1,2,0),0) -> 0 | BS90: 503 | BT90: PGB: Rekenmodule voorleggen aan Zorgkantoor | EW90: Z731 ZZP 3zg-auditief excl.bh incl.db | EX90: V731 VPT 3zg-auditief excl.bh incl.db | FB90: 4zgvis | FC90: V843 VPT 4zg-visueel incl.bh incl.db | FD90: VPT | FE90: 4zgvisVPT | FF90: 298.3430048 | FG90: 2088.401034
AK91: Z533 ZZP 3lvg incl.bh incl.db | AY91: D041 DTV 4VV | AZ91: D041 | BA91: 170.3264792 | BS91: 504 | BT91: PGB: Rekenmodule voorleggen aan Zorgkantoor | EW91: Z732 ZZP 3zg-auditief incl.bh excl.db | EX91: V732 VPT 3zg-auditief incl.bh excl.db | FB91: 5zgvis | FC91: V853 VPT 5zg-visueel incl.bh incl.db | FD91: VPT | FE91: 5zgvisVPT | FF91: 328.4445872 | FG91: =FF91*7 -> 2299.11211
AK92: Z543 ZZP 4lvg incl.bh incl.db | AY92: D051 DTV 5VV | AZ92: D051 | BA92: 295.3160658 | BS92: 505 | BT92: Bedrag PGB controleren bij het Zorgkantoor, daarna ZIN aanvragen | EW92: Z733 ZZP 3zg-auditief incl.bh incl.db | EX92: V733 VPT 3zg-auditief incl.bh incl.db | FD92: 1VV | FE92: =CONCATENATE(FD92,$FH$1) -> 1VVDTV | FF92: 1 | FG92: =FF92*7 -> 7
B93: =IF(AND(B65=0,B52=1),E18,IF(AND(B65=0,B52=0),E18,"geen AGB")) -> geen AGB | C93: 1e | D93: =E18 -> 0 | E93: 1 | F93: =E18 -> 0 | G93: 1 | M93: 1 | AK93: Z553 ZZP 5lvg incl.bh incl.db | AY93: D061 DTV 6VV | AZ93: D061 | BA93: 272.3643404 | BS93: 506 | BT93: PGB: Rekenmodule voorleggen aan Zorgkantoor | EW93: Z814 ZZP 1zg-visueel excl.db | EX93: V814 VPT 1zg-visueel excl.bh excl.db | FD93: 2VV | FE93: =CONCATENATE(FD93,$FH$1) -> 2VVDTV | FF93: 1 | FG93: 7
B94: =IF(AND(D64=1,D51=2),"",IF(AND(D51=0,D64=0),"",E19)) ->  | C94: 2e | D94: 0 | E94: =IF(D94<>D93,E93+1,E93) -> 1 | F94: 0 | G94: =IF(E94=2,2,IF($E$95=3,3,IF($E$96=4,4,IF($E$97=5,5,IF($E$98=6,6,IF($E$99=7,7,IF($E$100=8,8,IF($E$101=9,9,IF($E$102=10,10,IF($E$103=11,11,IF($E$104=12,12,IF($E$105=13,13,IF($E$106=14,14,"onwaar"))))))))))))) -> onwaar | M94: 2 | AY94: D071 DTV 7VV | AZ94: D071 | BA94: 348.1004429 | BS94: 507 | BT94: PGB: Rekenmodule voorleggen aan Zorgkantoor | EW94: Z815 ZZP 1zg-visueel incl.db | EX94: V815 VPT 1zg-visueel excl.bh incl.db | FC94: D031 DTV 3VV | FD94: 3VV | FE94: 3VVDTV | FF94: 1 | FG94: =FF94*7 -> 7
C95: 3e | D95: 0 | E95: =IF(AND(D95<>D94,D95<>D93),E94+1,E94) -> 1 | F95: 0 | G95: =IF($E$96=4,4,IF($E$97=5,5,IF($E$98=6,6,IF($E$99=7,7,IF($E$100=8,8,IF($E$101=9,9,IF($E$102=10,10,IF($E$103=11,11,IF($E$104=12,12,IF($E$105=13,13,IF($E$106=14,14,"onwaar"))))))))))) -> onwaar | M95: 3 | AK95: Z573 ZZP 1sglvg incl.bh incl.db | AY95: D081 DTV 8VV | AZ95: D081 | BA95: 451.1137574 | BS95: 508 | BT95: Bedrag PGB controleren bij het Zorgkantoor, daarna ZIN aanvragen | EW95: Z824 ZZP 2zg-visueel excl.db | EX95: V824 VPT 2zg-visueel excl.bh excl.db | FC95: D041 DTV 4VV | FD95: 4VV | FE95: 4VVDTV | FF95: =VLOOKUP(FC95,Tarieven_ZIN0,3,0) -> 170.3264792 | FG95: =FF95*7 -> 1192.285354
C96: 4e | D96: 0 | E96: =IF(AND(D96<>D95,D96<>D94,D96<>D93),E95+1,E95) -> 1 | F96: 0 | G96: =IF(E96=2,2,IF($E$95=3,3,IF($E$96=4,4,IF($E$97=5,5,IF($E$98=6,6,IF($E$99=7,7,IF($E$100=8,8,IF($E$101=9,9,IF($E$102=10,10,IF($E$103=11,11,IF($E$104=12,12,IF($E$105=13,13,IF($E$106=14,14,"onwaar"))))))))))))) -> onwaar | M96: 4 | AY96: D430 DTV 3VG | AZ96: D430 | BA96: 141.5412308 | BS96: 509 | BT96: PGB: Rekenmodule voorleggen aan Zorgkantoor | EW96: Z825 ZZP 2zg-visueel incl.db | EX96: V825 VPT 2zg-visueel excl.bh incl.db | FC96: D051 DTV 5VV | FD96: 5VV | FE96: 5VVDTV | FF96: =VLOOKUP(FC96,Tarieven_ZIN0,3,0) -> 295.3160658 | FG96: 2067.21246
C97: 5e | D97: 0 | E97: =IF(AND(D97<>D96,D97<>D95,D97<>D94,D97<>D93),E96+1," ") ->  | F97: 0 | G97: onwaar | M97: 5 | AK97: Z614 ZZP 1lg excl.db | AY97: D440 DTV 4VG | AZ97: D440 | BA97: 171.1989576 | BS97: 510 | BT97: PGB: Rekenmodule voorleggen aan Zorgkantoor | EW97: Z830 ZZP 3zg-visueel excl.bh excl.db | EX97: V830 VPT 3zg-visueel excl.bh excl.db | FC97: D061 DTV 6VV | FD97: 6VV | FE97: 6VVDTV | FF97: =VLOOKUP(FC97,Tarieven_ZIN0,3,0) -> 272.3643404 | FG97: 1906.550383
C98: 6e | D98: 0 | E98: =IF(AND(D98<>D97,D98<>D96,D98<>D95,D96<>D94,D96<>D93),E97+1,E97) ->  | F98: 0 | G98: onwaar | M98: 6 | AK98: Z624 ZZP 2lg excl.db | AY98: D454 DTV 5VG | AZ98: D454 | BA98: 206.364305 | BS98: 511 | BT98: PGB: Rekenmodule voorleggen aan Zorgkantoor | EW98: Z832 ZZP 3zg-visueel incl.bh excl.db | EX98: V832 VPT 3zg-visueel incl.bh excl.db | FC98: D071 DTV 7VV | FD98: 7VV | FE98: 7VVDTV | FF98: =VLOOKUP(FC98,Tarieven_ZIN0,3,0) -> 348.1004429 | FG98: 2436.703101
C99: 7e | D99: 0 | E99: =IF(AND(D99<>D98,D99<>D97,D99<>D96,D99<>D95,D99<>D94,D99<>D93),E98+1,E98) ->  | F99: 0 | G99: onwaar | M99: 7 | AK99: Z615 ZZP 1lg incl.db | AY99: D460 DTV 6VG | AZ99: D460 | BA99: 180.4339501 | BS99: 512 | BT99: PGB: Rekenmodule voorleggen aan Zorgkantoor | EW99: Z831 ZZP 3zg-visueel excl.bh incl.db | EX99: V831 VPT 3zg-visueel excl.bh incl.db | FC99: D081 DTV 8VV | FD99: 8VV | FE99: 8VVDTV | FF99: =VLOOKUP(FC99,Tarieven_ZIN0,3,0) -> 451.1137574 | FG99: 3157.796302
C100: 8e | D100: 0 | E100: =IF(AND(D100<>D99,D100<>D98,D100<>D97,D100<>D96,D100<>D95,D100<>D94,D100<>D93),E99+1,E99) ->  | F100: 0 | G100: onwaar | M100: 8 | AK100: Z625 ZZP 2lg incl.db | AY100: D470 DTV 7VG | AZ100: D470 | BA100: 223.6065591 | BS100: 513 | BT100: PGB: Rekenmodule voorleggen aan Zorgkantoor | EW100: Z833 ZZP 3zg-visueel incl.bh incl.db | EX100: V833 VPT 3zg-visueel incl.bh incl.db | FD100: 9VV | FE100: 9VVDTV | FF100: 1 | FG100: 7
C101: 9e | D101: 0 | E101: =IF(AND(D101<>D100,D101<>D99,D101<>D98,D101<>D97,D101<>D96,D101<>D95,D101<>D94,D101<>D93),E100+1,E100) ->  | F101: 0 | G101: onwaar | M101: 9 | AK101: Z630 ZZP 3lg excl.bh excl.db | AY101: D480 DTV 8VG | AZ101: D480 | BA101: 245.3749032 | BS101: 514 | BT101: PGB: Rekenmodule voorleggen aan Zorgkantoor | EW101: Z840 ZZP 4zg-visueel excl.bh excl.db | EX101: V840 VPT 4zg-visueel excl.bh excl.db | FD101: 10VV | FE101: 10VVDTV | FF101: 1 | FG101: 7
C102: 10e | D102: 0 | E102: =IF(AND(D102<>D101,D102<>D100,D102<>D99,D102<>D98,D102<>D97,D102<>D96,D102<>D95,D102<>D94,D102<>D93),E101+1,E101) ->  | F102: 0 | G102: onwaar | M102: 10 | AK102: Z640 ZZP 4lg excl.bh excl.db | AY102: D624 DTV 2LG | AZ102: D624 | BA102: 166.0865506 | BS102: 515 | BT102: PGB: Rekenmodule voorleggen aan Zorgkantoor | EW102: Z841 ZZP 4zg-visueel excl.bh incl.db | EX102: V841 VPT 4zg-visueel excl.bh incl.db | FD102: 1VG | FE102: 1VGDTV | FF102: 1 | FG102: 7
C103: 11e | D103: 0 | F103: 0 | G103: onwaar | M103: 11 | AK103: Z650 ZZP 5lg excl.bh excl.db | AY103: D640 DTV 4LG | AZ103: D640 | BA103: =VLOOKUP(AZ103,Tarieven_ZIN1,2,0) -> 197.0458131 | BS103: 516 | BT103: PGB: Rekenmodule voorleggen aan Zorgkantoor | EW103: Z842 ZZP 4zg-visueel incl.bh excl.db | EX103: V842 VPT 4zg-visueel incl.bh excl.db | FD103: 2VG | FE103: 2VGDTV | FF103: 1 | FG103: 7
C104: 12e | D104: 0 | F104: 0 | G104: onwaar | M104: 12 | AK104: Z660 ZZP 6lg excl.bh excl.db | AY104: D650 DTV 5LG | AZ104: D650 | BA104: 196.8442114 | BS104: 580 | BT104: PGB: Rekenmodule voorleggen aan Zorgkantoor | EW104: Z843 ZZP 4zg-visueel incl.bh incl.db | EX104: V843 VPT 4zg-visueel incl.bh incl.db | FC104: D430 DTV 3VG | FD104: 3VG | FE104: 3VGDTV | FF104: =VLOOKUP(FC104,Tarieven_ZIN0,3,0) -> 141.5412308 | FG104: 990.7886154
C105: 13e | D105: 0 | F105: 0 | G105: onwaar | M105: 13 | AK105: Z670 ZZP 7lg excl.bh excl.db | AY105: D660 DTV 6LG | AZ105: D660 | BA105: 277.4595061 | BS105: 584 | BT105: PGB: Rekenmodule voorleggen aan Zorgkantoor | EW105: Z850 ZZP 5zg-visueel excl.bh excl.db | EX105: V850 VPT 5zg-visueel excl.bh excl.db | FC105: D440 DTV 4VG | FD105: 4VG | FE105: 4VGDTV | FF105: 171.1989576 | FG105: 1198.392703
C106: 14e | D106: 0 | F106: 0 | G106: onwaar | M106: 14 | AK106: Z631 ZZP 3lg excl.bh incl.db | AY106: D670 DTV 7LG | AZ106: D670 | BA106: 298.8078347 | BS106: 585 | BT106: PGB: Rekenmodule voorleggen aan Zorgkantoor | EW106: Z851 ZZP 5zg-visueel excl.bh incl.db | EX106: V851 VPT 5zg-visueel excl.bh incl.db | FC106: D454 DTV 5VG | FD106: 5VG | FE106: 5VGDTV | FF106: 206.364305 | FG106: 1444.550135
AK107: Z641 ZZP 4lg excl.bh incl.db | AY107: H401 DTV 1GGZ-W | AZ107: H401 | BA107: 165.6568227 | BR107: 1 | BS107: =BR107+1000 -> 1001 | BT107: Zorg aanvragen via iWLZ, geen extra toestemming vereist | EW107: Z852 ZZP 5zg-visueel incl.bh excl.db | EX107: V852 VPT 5zg-visueel incl.bh excl.db | FC107: D460 DTV 6VG | FD107: 6VG | FE107: 6VGDTV | FF107: 180.4339501 | FG107: 1263.037651
AK108: Z651 ZZP 5lg excl.bh incl.db | AY108: H402 DTV 2GGZ-W | AZ108: H402 | BA108: 194.1686281 | BR108: 2 | BS108: =BR108+1000 -> 1002 | BT108: Rekenmodule voorleggen aan Zorgkantoor | EW108: Z853 ZZP 5zg-visueel incl.bh incl.db | EX108: V853 VPT 5zg-visueel incl.bh incl.db | FC108: D470 DTV 7VG | FD108: 7VG | FE108: 7VGDTV | FF108: 223.6065591 | FG108: 1565.245913
D109: =IF(M15>I33,I33-M15,0) -> 0 | AK109: Z661 ZZP 6lg excl.bh incl.db | AY109: H403 DTV 3GGZ-W | AZ109: H403 | BA109: 209.0097132 | BR109: 3 | BS109: 1003 | BT109: Rekenmodule voorleggen aan Zorgkantoor | EW109: H900 Dagbesteding vg licht (vg1-vg4) | FC109: D480 DTV 8VG | FD109: 8VG | FE109: 8VGDTV | FF109: 245.3749032 | FG109: 1717.624323
D110: =IF(AND(M15>0,Q24="extra budget voor behandeling"),1,0) -> 0 | AK110: Z671 ZZP 7lg excl.bh incl.db | AY110: H404 DTV 4GGZ-W | AZ110: H404 | BA110: 254.0672082 | BR110: 4 | BS110: 1004 | BT110: Rekenmodule voorleggen aan Zorgkantoor | EW110: H903 Dagbesteding vg midden (vg5) | FD110: 1LVG | FE110: 1LVGDTV | FF110: 1 | FG110: 7
B111: Totaal ingezette zorg | D111: =SUM(I32:I34)-I33 -> 0 | G111: zorg | AK111: Z632 ZZP 3lg incl.bh excl.db | AY111: H405 DTV 5GGZ-W | AZ111: H405 | BA111: 330.7956796 | BR111: 5 | BS111: 1005 | BT111: Zorg aanvragen via iWLZ, geen extra toestemming vereist | EW111: H904 Dagbesteding vg midden (vg6) | FD111: 2LVG | FE111: 2LVGDTV | FF111: 1 | FG111: 7
B112: Totale ruimte | D112: =IF(I33<M15,M10+T26-I33+I42+I39,M10+T26+FS8+I42+I39) ->  | E112: =D112 ->  | G112: ruimte | AK112: Z642 ZZP 4lg incl.bh excl.db | AY112: D720 DTV ZGaud2 | AZ112: D720 | BA112: 340.9207517 | BR112: 6 | BS112: 1006 | BT112: Rekenmodule voorleggen aan Zorgkantoor | EW112: H906 Dagbesteding vg zwaar (vg8) | FD112: 3LVG | FE112: 3LVGDTV | FF112: 1 | FG112: 7
D113: =IF(AND(FS8>0,D122=0),0,D118) ->  | E113: =IF(D113>0,"Restant","Overschrijding") ->  | AK113: Z652 ZZP 5lg incl.bh excl.db | AY113: D730 DTV ZGaud3 | AZ113: D730 | BA113: 383.1466684 | BR113: 7 | BS113: 1007 | BT113: Rekenmodule voorleggen aan Zorgkantoor | EW113: H902 Dagbesteding vg zwaar (vg7) | FD113: 4LVG | FE113: 4LVGDTV | FF113: 1 | FG113: 7
E114: =IF(AND(D113=0,FS8>0),0,IF(E113="overschrijding",D111-E112,D113)) ->  | AK114: Z662 ZZP 6lg incl.bh excl.db | AY114: D740 DTV Zgaud4 | AZ114: D740 | BA114: 223.3251817 | BR114: 8 | BS114: 1008 | BT114: Zorg aanvragen via iWLZ, geen extra toestemming vereist | EW114: H910 Dagbesteding lg licht (lg7) | FD114: 5LVG | FE114: 5LVGDTV | FF114: 1 | FG114: 7
AK115: Z672 ZZP 7lg incl.bh excl.db | AY115: D824 DTV ZGvis2 | AZ115: D824 | BA115: 165.6307702 | BR115: 0 | BS115: 1000 | BT115: Rekenmodule voorleggen aan Zorgkantoor | EW115: H913 Dagbesteding lg midden (lg2 en lg4) | FD115: 1SGLVG | FE115: 1SGLVGDTV | FF115: 1 | FG115: 7
AK116: Z633 ZZP 3lg incl.bh incl.db | AY116: D830 DTV ZGvis3 | AZ116: D830 | BA116: 201.4306461 | BR116: 13 | BS116: 1013 | EW116: H914 Dagbesteding lg midden (lg6) | FD116: 1LG | FE116: 1LGDTV | FF116: 1 | FG116: 7
AK117: Z643 ZZP 4lg incl.bh incl.db | AY117: D840 DTV ZGvis4 | AZ117: D840 | BA117: 251.9288808 | BR117: 85 | BS117: 1085 | BT117: Rekenmodule voorleggen aan Zorgkantoor | EW117: H915 Dagbesteding lg zwaar (lg1 en lg3) | FC117: D624 DTV 2LG | FD117: 2LG | FE117: 2LGDTV | FF117: =VLOOKUP(FC117,Tarieven_ZIN0,3,0) -> 166.0865506 | FG117: 1162.605854
D118: =$E$112-$D$111 ->  | AK118: Z653 ZZP 5lg incl.bh incl.db | AY118: D850 DTV ZGvis5 | AZ118: D850 | BA118: 281.3490069 | BR118: 84 | BS118: 1084 | BT118: Rekenmodule voorleggen aan Zorgkantoor | EW118: H916 Dagbesteding lg zwaar (lg5) | FD118: 3LG | FE118: 3LGDTV | FF118: 1 | FG118: 7
AK119: Z663 ZZP 6lg incl.bh incl.db | AY119: Z999 Logeren GHZ-VG | AZ119: Z999 | BA119: 308.85 | BR119: 83 | BS119: 1083 | BT119: Rekenmodule voorleggen aan Zorgkantoor | EW119: H001G Dagbesteding ggz wonen-1 | FC119: D640 DTV 4LG | FD119: 4LG | FE119: 4LGDTV | FF119: =VLOOKUP(FC119,Tarieven_ZIN0,3,0) -> 197.0458131 | FG119: 1379.320692
AK120: Z673 ZZP 7lg incl.bh incl.db | AY120: Z1000 Logeren GHZ-LG | AZ120: Z1000 | BA120: 345.9798838 | BR120: 80 | BS120: 1080 | BT120: Rekenmodule voorleggen aan Zorgkantoor | EW120: H002G Dagbesteding ggz wonen-2 | FC120: D650 DTV 5LG | FD120: 5LG | FE120: 5LGDTV | FF120: 196.8442114 | FG120: 1377.90948
D121: =D118-FS8 ->  | AK121: Z710 ZZP 1zg-auditief excl.bh excl.db | AY121: Z1001 Logeren GHZ-LVG | AZ121: Z1001 | BA121: 336.7367389 | BR121: 88 | BS121: 1088 | BT121: Zorg aanvragen via iWLZ, geen extra toestemming vereist | EW121: H003G Dagbesteding ggz wonen-3 | FC121: D660 DTV 6LG | FD121: 6LG | FE121: 6LGDTV | FF121: 277.4595061 | FG121: 1942.216542
D122: =IF(OR(D121>2,D121<2),1,0) ->  | AK122: Z720 ZZP 2zg-auditief excl.bh excl.db | AY122: Z1004 Logeren GGZ wonen | AZ122: Z1004 | BA122: 219.6518387 | BR122: 101 | BS122: 1101 | BT122: Eerst zorgvraag invullen | EW122: H004G Dagbesteding ggz wonen-4 | FC122: D670 DTV 7LG | FD122: 7LG | FE122: 7LGDTV | FF122: 298.8078347 | FG122: 2091.654843
AK123: Z730 ZZP 3zg-auditief excl.bh excl.db | AY123: Z1002 Logeren GHZ-ZG | AZ123: Z1002 | BA123: 470.4007442 | BR123: 102 | BS123: 1102 | BT123: Eerst zorgvraag invullen | EW123: H005G Dagbesteding ggz wonen-5 | FC123: H401 DTV 1GGZ-W | FD123: 1GGZ-W | FE123: 1GGZ-WDTV | FF123: 165.6568227 | FG123: 1159.597759
AK124: Z740 ZZP 4zg-auditief excl.bh excl.db | AY124: Z1003 Logeren VV | AZ124: Z1003 | BA124: 278.7921972 | EW124: H920 Dagbesteding zg aud licht (zg aud1 en zg aud4) | FC124: H402 DTV 2GGZ-W | FD124: 2GGZ-W | FE124: 2GGZ-WDTV | FF124: 194.1686281 | FG124: 1359.180397
B125: Ruimte | AK125: Z711 ZZP 1zg-auditief excl.bh incl.db | AY125: Z1006 Logeren GHZ-ZEVMB | AZ125: Z1006 | BA125: 504.4506182 | BR125: 103 | BS125: 1103 | BT125: Eerst zorgvraag invullen | EW125: H921 Dagbesteding zg aud midden (zg aud2) | FC125: H403 DTV 3GGZ-W | FD125: 3GGZ-W | FE125: 3GGZ-WDTV | FF125: 209.0097132 | FG125: 1463.067993
B126: Ruimte ZZP | D126: =$M$6 -> 0 | AK126: Z721 ZZP 2zg-auditief excl.bh incl.db | AY126: V015 VPT 1vv excl.bh incl.db | AZ126: V015 | BA126: =VLOOKUP(AZ126,Tarieven_VPT0,9,FALSE) -> 76.6466195 | BR126: 104 | BS126: 1104 | BT126: Eerst zorgvraag invullen | EW126: H922 Dagbesteding zg aud zwaar (zg aud3) | FC126: H404 DTV 4GGZ-W | FD126: 4GGZ-W | FE126: 4GGZ-WDTV | FF126: 254.0672082 | FG126: 1778.470458
B127: Ruimte EKT | D127: =$FS$8 -> 0 | F127: Ruimte minus uitgegeven | AK127: Z731 ZZP 3zg-auditief excl.bh incl.db | AY127: V025 VPT 2vv excl.bh incl.db | AZ127: V025 | BA127: 101.5552432 | BR127: 105 | BS127: 1105 | BT127: Eerst zorgvraag invullen | EW127: H930 Dagbesteding zg vis licht (zg vis2 en zg vis3) | FC127: H405 DTV 5GGZ-W | FD127: 5GGZ-W | FE127: 5GGZ-WDTV | FF127: 330.7956796 | FG127: 2315.569757
B128: Ruimte behandeling | D128: =IF(E141="ja",$M$15,D133) -> 0 | F128: =D129-D135 -> 0 | AK128: Z741 ZZP 4zg-auditief excl.bh incl.db | AY128: V031 VPT 3vv excl.bh incl.db | AZ128: V031 | BA128: 134.5260147 | BR128: 106 | BS128: 1106 | BT128: Eerst zorgvraag invullen | EW128: H931 Dagbesteding zg vis midden (zg vis1) | FC128: D710 DTV ZGaud1 | FD128: 1ZGAUD | FE128: 1ZGAUDDTV | FF128: 1 | FG128: 7
B129: Totaal ruimte | D129: =SUM($D$126:$D$128) -> 0 | AK129: Z712 ZZP 1zg-auditief incl.bh excl.db | AY129: V041 VPT 4vv excl.bh incl.db | AZ129: V041 | BA129: 126.4621691 | BR129: 107 | BS129: 1107 | BT129: Eerst zorgvraag invullen | EW129: H933 Dagbesteding zg vis zwaar (zg vis4) | FC129: D740 DTV Zgaud4 | FD129: 4ZGAUD | FE129: 4ZGAUDDTV | FF129: =VLOOKUP(FC129,Tarieven_ZIN0,3,0) -> 223.3251817 | FG129: 1563.276272
F130: Uitgegeven minus ruimte | AK130: Z722 ZZP 2zg-auditief incl.bh excl.db | AY130: V051 VPT 5vv excl.bh incl.db | AZ130: V051 | BA130: 250.7509303 | BR130: 108 | BS130: 1108 | BT130: Eerst zorgvraag invullen | EW130: H934 Dagbesteding zg vis zwaar (zg vis5) | FC130: D720 DTV ZGaud2 | FD130: 2ZGAUD | FE130: 2ZGAUDDTV | FF130: =VLOOKUP(FC130,Tarieven_ZIN0,3,0) -> 340.9207517 | FG130: 2386.445262
B131: Uitgegeven | F131: =D135-D129 -> 0 | AK131: Z732 ZZP 3zg-auditief incl.bh excl.db | AY131: V061 VPT 6vv excl.bh incl.db | AZ131: V061 | BA131: 221.8466448 | BR131: 109 | BS131: 1109 | BT131: Eerst zorgvraag invullen | FC131: D730 DTV ZGaud3 | FD131: 3ZGAUD | FE131: 3ZGAUDDTV | FF131: =VLOOKUP(FC131,Tarieven_ZIN0,3,0) -> 383.1466684 | FG131: 2682.026679
B132: ZIN EXCL BH | D132: =$I$32 -> 0 | AK132: Z742 ZZP 4zg-auditief incl.bh excl.db | AY132: V071 VPT 7vv excl.bh incl.db | AZ132: V071 | BA132: 306.1785586 | BR132: 600 | BS132: 1600 | BT132: PGB: Rekenmodule voorleggen aan Zorgkantoor | FC132: D814 DTV ZGvis1 | FD132: 1ZGVIS | FE132: 1ZGVISDTV | FF132: 1 | FG132: 7
B133: ZIN BH | D133: =$I$33 -> 0 | AK133: Z713 ZZP 1zg-auditief incl.bh incl.db | AY133: V081 VPT 8vv excl.bh incl.db | AZ133: V081 | BA133: 404.6379155 | BR133: 601 | BS133: 1601 | BT133: PGB: Rekenmodule voorleggen aan Zorgkantoor | FC133: D824 DTV ZGvis2 | FD133: 2ZGVIS | FE133: 2ZGVISDTV | FF133: =VLOOKUP(FC133,Tarieven_ZIN0,3,0) -> 165.6307702 | FG133: 1159.415391
B134: PGB | D134: =$M$8 -> 0 | AK134: Z723 ZZP 2zg-auditief incl.bh incl.db | AY134: V095 VPT 9bvv excl.bh incl.db | AZ134: V095 | BA134: 218.5115499 | BR134: 602 | BS134: 1602 | BT134: PGB: Rekenmodule voorleggen aan Zorgkantoor | FC134: D830 DTV ZGvis3 | FD134: 3ZGVIS | FE134: 3ZGVISDTV | FF134: =VLOOKUP(FC134,Tarieven_ZIN0,3,0) -> 201.4306461 | FG134: 1410.014522
B135: Totaal uitgegeven | D135: =SUM($D$132:$D$134) -> 0 | AK135: Z733 ZZP 3zg-auditief incl.bh incl.db | AY135: V101 VPT 10vv excl.bh incl.db | AZ135: V101 | BA135: 485.1856532 | BR135: 603 | BS135: 1603 | BT135: PGB: Rekenmodule voorleggen aan Zorgkantoor | FC135: D840 DTV ZGvis4 | FD135: 4ZGVIS | FE135: 4ZGVISDTV | FF135: =VLOOKUP(FC135,Tarieven_ZIN0,3,0) -> 251.9288808 | FG135: 1763.502166
AK136: Z743 ZZP 4zg-auditief incl.bh incl.db | AY136: V033 VPT 3vv incl.bh incl.db | AZ136: V033 | BA136: 158.0977463 | BR136: 604 | BS136: 1604 | BT136: PGB: Rekenmodule voorleggen aan Zorgkantoor | FC136: D850 DTV ZGvis5 | FD136: 5ZGVIS | FE136: 5ZGVISDTV | FF136: =VLOOKUP(FC136,Tarieven_ZIN0,3,0) -> 281.3490069 | FG136: 1969.443049
B137: =IF(D129-D135<0,"Overschrijding","Restant") -> Restant | D137: =IF($B$137="overschrijding",$F$131,$F$128) -> 0 | AK137: Z814 ZZP 1zg-visueel excl.db | AY137: V043 VPT 4vv incl.bh incl.db | AZ137: V043 | BA137: 138.4283608 | BR137: 605 | BS137: 1605 | BT137: Bedrag PGB controleren bij het Zorgkantoor, daarna ZIN aanvragen
AK138: Z824 ZZP 2zg-visueel excl.db | AY138: V053 VPT 5vv incl.bh incl.db | AZ138: V053 | BA138: 265.4053514 | BR138: 606 | BS138: 1606 | BT138: PGB: Rekenmodule voorleggen aan Zorgkantoor
B139: Indien B137 "restant" is, geldt de regel dat de ruimte voor behandeling alleen voor behandeling ingezet wordt. Dus wordt de rekenmethode anders | AK139: Z815 ZZP 1zg-visueel incl.db | AY139: V063 VPT 6vv incl.bh incl.db | AZ139: V063 | BA139: 237.7648057 | BR139: 607 | BS139: 1607 | BT139: PGB: Rekenmodule voorleggen aan Zorgkantoor
AK140: Z825 ZZP 2zg-visueel incl.db | AY140: V073 VPT 7vv incl.bh incl.db | AZ140: V073 | BA140: 325.8639773 | BR140: 608 | BS140: 1608 | BT140: PGB: Rekenmodule voorleggen aan Zorgkantoor
B141: Is behandeling-INZET meer dan de ruimte? | E141: =IF(D127-D133<0,"ja","nee") -> nee | AK141: Z830 ZZP 3zg-visueel excl.bh excl.db | AY141: V083 VPT 8vv incl.bh incl.db | AZ141: V083 | BA141: 419.5834532 | BR141: 609 | BS141: 1609 | BT141: PGB: Rekenmodule voorleggen aan Zorgkantoor
B142: Is er sprake EKT? | E142: =IF(D127>0,"ja","nee") -> nee | AK142: Z840 ZZP 4zg-visueel excl.bh excl.db | AY142: V097 VPT 9bvv incl.bhincl.db | AZ142: V097 | BA142: 280.9793497 | BR142: 610 | BS142: 1610 | BT142: PGB: Rekenmodule voorleggen aan Zorgkantoor
AK143: Z850 ZZP 5zg-visueel excl.bh excl.db | AY143: V103 VPT 10vv incl.bhincl.db | AZ143: V103 | BA143: 479.2039491 | BR143: 611 | BS143: 1611 | BT143: PGB: Rekenmodule voorleggen aan Zorgkantoor
AK144: Z831 ZZP 3zg-visueel excl.bh incl.db | AY144: V414 VPT 1vg excl.bh excl.db | AZ144: V414 | BA144: 59.3778187 | BR144: 612 | BS144: 1612 | BT144: PGB: Rekenmodule voorleggen aan Zorgkantoor
AK145: Z841 ZZP 4zg-visueel excl.bh incl.db | AY145: V424 VPT 2vg excl.bh excl.db | AZ145: V424 | BA145: 73.03734367 | BR145: 613 | BS145: 1613 | BT145: PGB: Rekenmodule voorleggen aan Zorgkantoor
B146: Ruimte | AK146: Z851 ZZP 5zg-visueel excl.bh incl.db | AY146: V415 VPT 1vg excl.bh incl.db | AZ146: V415 | BA146: 104.4084729 | BR146: 614 | BS146: 1614 | BT146: PGB: Rekenmodule voorleggen aan Zorgkantoor
B147: Ruimte ZZP | D147: =$M$6 -> 0 | AK147: Z832 ZZP 3zg-visueel incl.bh excl.db | AY147: V425 VPT 2vg excl.bh incl.db | AZ147: V425 | BA147: 116.5298185 | BR147: 615 | BS147: 1615 | BT147: PGB: Rekenmodule voorleggen aan Zorgkantoor
B148: Ruimte EKT | D148: =$FS$8 -> 0 | AK148: Z842 ZZP 4zg-visueel incl.bh excl.db | AY148: V430 VPT 3vg excl.bh excl.db | AZ148: V430 | BA148: 101.5254241 | BR148: 616 | BS148: 1616 | BT148: PGB: Rekenmodule voorleggen aan Zorgkantoor
B149: Ruimte behandeling | D149: =IF(E141="nee",D133,D128) -> 0 | AK149: Z852 ZZP 5zg-visueel incl.bh excl.db | AY149: V440 VPT 4vg excl.bh excl.db | AZ149: V440 | BA149: 124.6683082 | BR149: 617 | BS149: 1617 | BT149: PGB: Rekenmodule voorleggen aan Zorgkantoor
B150: Totaal ruimte | D150: =SUM(D147:D149) -> 0 | AK150: Z833 ZZP 3zg-visueel incl.bh incl.db | AY150: V454 VPT 5vg excl.bh excl.db | AZ150: V454 | BA150: 168.7537895 | BR150: 618 | BS150: 1618 | BT150: PGB: Rekenmodule voorleggen aan Zorgkantoor
AK151: Z843 ZZP 4zg-visueel incl.bh incl.db | AY151: V460 VPT 6vg excl.bh excl.db | AZ151: V460 | BA151: 131.9793782 | BR151: 619 | BS151: 1619 | BT151: PGB: Rekenmodule voorleggen aan Zorgkantoor
B152: Uitgegeven | AK152: Z853 ZZP 5zg-visueel incl.bh incl.db | AY152: V470 VPT 7vg excl.bh excl.db | AZ152: V470 | BA152: 186.0795359 | BR152: 620 | BS152: 1620 | BT152: PGB: Rekenmodule voorleggen aan Zorgkantoor
B153: ZIN EXCL BH | D153: =$I$32 -> 0 | AY153: V480 VPT 8vg excl.bh excl.db | AZ153: V480 | BA153: 197.4255001 | BR153: 621 | BS153: 1621 | BT153: PGB: Rekenmodule voorleggen aan Zorgkantoor
B154: ZIN BH | D154: =$I$33 -> 0 | AY154: V431 VPT 3vg excl.bh incl.db | AZ154: V431 | BA154: 142.9200261 | BR154: 622 | BS154: 1622 | BT154: PGB: Rekenmodule voorleggen aan Zorgkantoor
B155: PGB | D155: =$M$8 -> 0 | AY155: V441 VPT 4vg excl.bh incl.db | AZ155: V441 | BA155: 165.1986824 | BR155: 623 | BS155: 1623 | BT155: PGB: Rekenmodule voorleggen aan Zorgkantoor
B156: Totaal uitgegeven | D156: =SUM(D153:D155) -> 0 | AY156: V455 VPT 5vg excl.bh incl.db | AZ156: V455 | BA156: 231.5788352 | BR156: 624 | BS156: 1624 | BT156: PGB: Rekenmodule voorleggen aan Zorgkantoor
AY157: V461 VPT 6vg excl.bh incl.db | AZ157: V461 | BA157: 193.2565948 | BR157: 625 | BS157: 1625 | BT157: PGB: Rekenmodule voorleggen aan Zorgkantoor
B158: =IF(D150-D156<0,"Overschrijding","Restant") -> Restant | D158: =IF((D147-D156)<0,0,E158) -> 0 | E158: =IF($B$137="overschrijding",$F$131,$F$128) -> 0 | AY158: V471 VPT 7vg excl.bh incl.db | AZ158: V471 | BA158: =VLOOKUP(AZ158,Tarieven_VPT0,9,FALSE) -> 256.207784 | BR158: 626 | BS158: 1626 | BT158: PGB: Rekenmodule voorleggen aan Zorgkantoor
AY159: V481 VPT 8vg excl.bh incl.db | AZ159: V481 | BA159: 283.702431 | BR159: 627 | BS159: 1627 | BT159: PGB: Rekenmodule voorleggen aan Zorgkantoor
AY160: V432 VPT 3vg incl.bh excl.db | AZ160: V432 | BA160: 125.4105845 | BR160: 628 | BS160: 1628 | BT160: PGB: Rekenmodule voorleggen aan Zorgkantoor
AY161: V442 VPT 4vg incl.bh excl.db | AZ161: V442 | BA161: 165.651721 | BR161: 629 | BS161: 1629 | BT161: PGB: Rekenmodule voorleggen aan Zorgkantoor
AY162: V456 VPT 5vg incl.bh excl.db | AZ162: V456 | BA162: 202.7551779 | BR162: 630 | BS162: 1630 | BT162: PGB: Rekenmodule voorleggen aan Zorgkantoor
AY163: V462 VPT 6vg incl.bh excl.db | AZ163: V462 | BA163: 177.5277394 | BR163: 631 | BS163: 1631 | BT163: PGB: Rekenmodule voorleggen aan Zorgkantoor
AY164: V472 VPT 7vg incl.bh excl.db | AZ164: V472 | BA164: 265.3729714 | BR164: 632 | BS164: 1632 | BT164: PGB: Rekenmodule voorleggen aan Zorgkantoor
AY165: V482 VPT 8vg incl.bh excl.db | AZ165: V482 | BA165: 244.726274 | BR165: 633 | BS165: 1633 | BT165: PGB: Rekenmodule voorleggen aan Zorgkantoor
AY166: V433 VPT 3vg incl.bh incl.db | AZ166: V433 | BA166: 167.9014924 | BR166: 634 | BS166: 1634 | BT166: PGB: Rekenmodule voorleggen aan Zorgkantoor
AY167: V443 VPT 4vg incl.bh incl.db | AZ167: V443 | BA167: 195.0879632 | BR167: 635 | BS167: 1635 | BT167: PGB: Rekenmodule voorleggen aan Zorgkantoor
AY168: V457 VPT 5vg incl.bh incl.db | AZ168: V457 | BA168: 268.5535248 | BR168: 636 | BS168: 1636 | BT168: PGB: Rekenmodule voorleggen aan Zorgkantoor
AY169: V463 VPT 6vg incl.bh incl.db | AZ169: V463 | BA169: 228.9745173 | BR169: 637 | BS169: 1637 | BT169: PGB: Rekenmodule voorleggen aan Zorgkantoor
AY170: V473 VPT 7vg incl.bh incl.db | AZ170: V473 | BA170: 263.9589255 | BR170: 638 | BS170: 1638 | BT170: PGB: Rekenmodule voorleggen aan Zorgkantoor
AY171: V483 VPT 8vg incl.bh incl.db | AZ171: V483 | BA171: 329.2953149 | BR171: 639 | BS171: 1639 | BT171: PGB: Rekenmodule voorleggen aan Zorgkantoor
AY172: V513 VPT 1lvg incl.bh incl.db | AZ172: V513 | BA172: 196.5617992 | BR172: 500 | BS172: =BR172+1000 -> 1500 | BT172: PGB: Rekenmodule voorleggen aan Zorgkantoor
AY173: V523 VPT 2lvg incl.bh incl.db | AZ173: V523 | BA173: 243.3203508 | BR173: 501 | BS173: 1501 | BT173: Bedrag PGB controleren bij het Zorgkantoor, daarna ZIN aanvragen
AY174: V533 VPT 3lvg incl.bh incl.db | AZ174: V533 | BA174: 315.928881 | BR174: 502 | BS174: 1502 | BT174: PGB: Rekenmodule voorleggen aan Zorgkantoor
AY175: V543 VPT 4lvg incl.bh incl.db | AZ175: V543 | BA175: 371.0119468 | BR175: 503 | BS175: 1503 | BT175: PGB: Rekenmodule voorleggen aan Zorgkantoor
AY176: V553 VPT 5lvg incl.bh incl.db | AZ176: V553 | BA176: 351.7515672 | BR176: 504 | BS176: 1504 | BT176: PGB: Rekenmodule voorleggen aan Zorgkantoor
AY177: V573 VPT 1sglvg incl.bh incl.db | AZ177: V573 | BA177: 395.6497198 | BR177: 505 | BS177: 1505 | BT177: Bedrag PGB controleren bij het Zorgkantoor, daarna ZIN aanvragen
AY178: V614 VPT 1lg excl.bh excl.db | AZ178: V614 | BA178: 86.78144802 | BR178: 506 | BS178: 1506 | BT178: PGB: Rekenmodule voorleggen aan Zorgkantoor
AY179: V624 VPT 2lg excl.bh excl.db | AZ179: V624 | BA179: 126.5646114 | BR179: 507 | BS179: 1507 | BT179: PGB: Rekenmodule voorleggen aan Zorgkantoor
AY180: V615 VPT 1lg excl.bh incl.db | AZ180: V615 | BA180: 148.6853284 | BR180: 508 | BS180: 1508 | BT180: Bedrag PGB controleren bij het Zorgkantoor, daarna ZIN aanvragen
AY181: V625 VPT 2lg excl.bh incl.db | AZ181: V625 | BA181: 177.3177269 | BR181: 509 | BS181: 1509 | BT181: PGB: Rekenmodule voorleggen aan Zorgkantoor
AY182: V630 VPT 3lg excl.bh excl.db | AZ182: V630 | BA182: 98.32565896 | BR182: 510 | BS182: 1510 | BT182: PGB: Rekenmodule voorleggen aan Zorgkantoor
AY183: V640 VPT 4lg excl.bh excl.db | AZ183: V640 | BA183: 153.9384471 | BR183: 511 | BS183: 1511 | BT183: PGB: Rekenmodule voorleggen aan Zorgkantoor
AY184: V650 VPT 5lg excl.bh excl.db | AZ184: V650 | BA184: 155.6933083 | BR184: 512 | BS184: 1512 | BT184: PGB: Rekenmodule voorleggen aan Zorgkantoor
AY185: V660 VPT 6lg excl.bh excl.db | AZ185: V660 | BA185: 216.688164 | BR185: 513 | BS185: 1513 | BT185: PGB: Rekenmodule voorleggen aan Zorgkantoor
AY186: V670 VPT 7lg excl.bh excl.db | AZ186: V670 | BA186: 245.377168 | BR186: 514 | BS186: 1514 | BT186: PGB: Rekenmodule voorleggen aan Zorgkantoor
AY187: V631 VPT 3lg excl.bh incl.db | AZ187: V631 | BA187: 163.0490939 | BR187: 515 | BS187: 1515 | BT187: PGB: Rekenmodule voorleggen aan Zorgkantoor
AY188: V641 VPT 4lg excl.bh incl.db | AZ188: V641 | BA188: 206.4122996 | BR188: 516 | BS188: 1516 | BT188: PGB: Rekenmodule voorleggen aan Zorgkantoor
AY189: V651 VPT 5lg excl.bh incl.db | AZ189: V651 | BA189: 217.411785 | BR189: 580 | BS189: 1580 | BT189: PGB: Rekenmodule voorleggen aan Zorgkantoor
AY190: V661 VPT 6lg excl.bh incl.db | AZ190: V661 | BA190: =VLOOKUP(AZ190,Tarieven_VPT0,9,FALSE) -> 266.5913666 | BR190: 584 | BS190: 1584 | BT190: PGB: Rekenmodule voorleggen aan Zorgkantoor
AY191: V671 VPT 7lg excl.bh incl.db | AZ191: V671 | BA191: 296.8294504 | BR191: 585 | BS191: 1585 | BT191: PGB: Rekenmodule voorleggen aan Zorgkantoor
AY192: V632 VPT 3lg incl.bh excl.db | AZ192: V632 | BA192: 123.4922007 | BR192: 1001 | BS192: =BR192+1000 -> 2001 | BT192: Zorg aanvragen via iWLZ, geen extra toestemming vereist
AY193: V642 VPT 4lg incl.bh excl.db | AZ193: V642 | BA193: 193.3746144 | BR193: 1002 | BS193: =BR193+1000 -> 2002 | BT193: Zorg aanvragen via iWLZ, geen extra toestemming vereist
AY194: V652 VPT 5lg incl.bh excl.db | AZ194: V652 | BA194: 196.1714612 | BR194: 1003 | BS194: 2003 | BT194: Zorg aanvragen via iWLZ, geen extra toestemming vereist
AY195: V662 VPT 6lg incl.bh excl.db | AZ195: V662 | BA195: 271.6682518 | BR195: 1004 | BS195: 2004 | BT195: Zorg aanvragen via iWLZ, geen extra toestemming vereist
AY196: V672 VPT 7lg incl.bh excl.db | AZ196: V672 | BA196: 304.0645081 | BR196: 1005 | BS196: 2005 | BT196: Zorg aanvragen via iWLZ, geen extra toestemming vereist
AY197: V633 VPT 3lg incl.bh incl.db | AZ197: V633 | BA197: 183.9928317 | BR197: 1006 | BS197: 2006 | BT197: Zorg aanvragen via iWLZ, geen extra toestemming vereist
AY198: V643 VPT 4lg incl.bh incl.db | AZ198: V643 | BA198: 229.8983805 | BR198: 1007 | BS198: 2007 | BT198: Zorg aanvragen via iWLZ, geen extra toestemming vereist
AY199: V653 VPT 5lg incl.bh incl.db | AZ199: V653 | BA199: 256.5969738 | BR199: 1008 | BS199: 2008 | BT199: Zorg aanvragen via iWLZ, geen extra toestemming vereist
AY200: V663 VPT 6lg incl.bh incl.db | AZ200: V663 | BA200: 322.5111555 | BR200: 1000 | BS200: 2000 | BT200: Zorg aanvragen via iWLZ, geen extra toestemming vereist
... 204 more rows

Sheet Deeltijd verblijf (hidden)
M2: WEEK | N2: DAG | P2: =VLOOKUP(F7,Tarieven_PGB0,15,FALSE) ->  | X2: 1
A3: Aan te vragen deel verblijf | K3: Tarief MPT/PGB | M3: =VLOOKUP(F7,Tarieven_PGB0,15,0) ->  | N3: =M3/7 ->  | X3: 2
K4: Tarief per week vbl | M4: =Rekenblad!FI7*Rekenblad!H1 -> 0 | N4: =M4/7 -> 0 | X4: 3
A5: Wlz sector (Som, PG, VG,LG of ZG) | F5: =Rekenblad!$G$8 -> 0 | K5: Dagbesteding | L5: Per jaar | M5: =VLOOKUP(F7,Tarieven_PGB0,5,FALSE) ->  | N5: =M5/365 ->  | O5: incl vervoer | X5: 3.5
K6: Dagbestedingdeel | L6: 7 | M6: =N5*L6 ->  | X6: 4
A7: Geïndiceerd profiel | F7: =Rekenblad!$G$10 -> 0 | K7: MPT/PGB deel | L7: =7-F9 -> 0 | M7: =L7*N3 ->  | X7: 4.5
K8: Verblijfdeel | L8: =F9 -> 7 | M8: =L8*N4 -> 0
A9: Aantal etmalen verblijf | F9: =IF(Rekenblad!$I$6="",7,Rekenblad!$I$6) -> 7 | K9: Totaal week | L9: =SUM(L7:L8) -> 7 | M9: =SUM(M6:M8) -> 
A12: Aan te vragen Logeren
A14: Wlz sector (Som, PG, VG,LG of ZG) | F14: =Rekenblad!$G$8 -> 0 | K14: Sector | L14: =RIGHT(F16,2) -> 0 | M14: =VLOOKUP(L14,T20:W26,4,0) -> 
K15: Bedrag logeren | M15: =F18*M14 -> 
A16: Geïndiceerd profiel | F16: =Rekenblad!$G$10 -> 0 | K16: Bedrag MPT | M16: =M7 -> 
K17: Totaal week | M17: =SUM(M15:M16) -> 
A18: Aantal etmalen verblijf | F18: =IF(Rekenblad!$I$6="",7,Rekenblad!$I$6) -> 7
T20: LG | U20: Z1000 Logeren GHZ-LG | V20: Z1000 | W20: 0
T21: LVG | U21: Z1001 Logeren GHZ-LVG | V21: Z1001 | W21: 0
T22: IS | U22: Z1002 Logeren GHZ-ZG | V22: Z1002 | W22: 0
T23: VV | U23: Z1003 Logeren VV | V23: Z1003 | W23: 0
T24: VG | U24: Z999 Logeren GHZ-VG | V24: Z999 | W24: 0
T25: Vb | U25: Z1003 Logeren VV | V25: Z1003 | W25: 0
T26: UD | U26: Z1002 Logeren GHZ-ZG | V26: Z1002 | W26: 0
Q44: 9 | R44: Dagdelen
E46: Z015 ZZP 1vv incl.db | G46: =VLOOKUP(E46,Tarieven_ZZP1,7,0) -> 108.4323353 | K46: Z015 ZZP 1vv incl.db | M46: =VLOOKUP(K46,Tarieven_ZZP1,7,0) -> 108.4323353 | N46: =M46*7 -> 759.0263473 | O46: H531 | P46: 0 | Q46: =P46*$Q$44 -> 0 | R46: =Q46+N46 -> 759.0263473 | T46: Z015 ZZP 1vv incl.db
E47: Z025 ZZP 2vv incl.db | G47: 138.995567 | K47: Z025 ZZP 2vv incl.db | M47: 138.995567 | N47: =M47*7 -> 972.9689693 | O47: H531 | P47: 0 | Q47: =P47*$Q$44 -> 0 | R47: =Q47+N47 -> 972.9689693 | T47: Z025 ZZP 2vv incl.db
E48: Z031 ZZP 3vv excl.bh incl.db | G48: 173.1754073 | K48: Z031 ZZP 3vv excl.bh incl.db | M48: 173.1754073 | N48: 1212.227851 | O48: H531 | P48: 0 | Q48: 0 | R48: 1212.227851 | T48: Z031 ZZP 3vv excl.bh incl.db
E49: Z041 ZZP 4vv excl.bh incl.db | G49: 165.7914315 | K49: Z041 ZZP 4vv excl.bh incl.db | M49: 165.7914315 | N49: 1160.54002 | O49: H531 | P49: 0 | Q49: 0 | R49: 1160.54002 | T49: Z041 ZZP 4vv excl.bh incl.db
E50: Z051 ZZP 5vv excl.bh incl.db | G50: 290.6840726 | K50: Z051 ZZP 5vv excl.bh incl.db | M50: 290.6840726 | N50: 2034.788508 | O50: H531 | P50: 0 | Q50: 0 | R50: 2034.788508 | T50: Z051 ZZP 5vv excl.bh incl.db
E51: Z061 ZZP 6vv excl.bh incl.db | G51: 267.7618295 | K51: Z061 ZZP 6vv excl.bh incl.db | M51: 267.7618295 | N51: 1874.332807 | O51: H531 | P51: 0 | Q51: 0 | R51: 1874.332807 | T51: Z061 ZZP 6vv excl.bh incl.db
E52: Z071 ZZP 7vv excl.bh incl.db | G52: 343.3417394 | K52: Z071 ZZP 7vv excl.bh incl.db | M52: 343.3417394 | N52: 2403.392176 | O52: H531 | P52: 0 | Q52: 0 | R52: 2403.392176 | T52: Z071 ZZP 7vv excl.bh incl.db
E53: Z081 ZZP 8vv excl.bh incl.db | G53: 446.1060186 | K53: Z081 ZZP 8vv excl.bh incl.db | M53: 446.1060186 | N53: 3122.74213 | O53: H531 | P53: 0 | Q53: 0 | R53: 3122.74213 | T53: Z081 ZZP 8vv excl.bh incl.db
E54: Z095 ZZP 9bvv excl.bh incl.db | G54: 253.6005795 | K54: Z095 ZZP 9bvv excl.bh incl.db | M54: 253.6005795 | N54: 1775.204056 | O54: H531 | P54: 0 | Q54: 0 | R54: 1775.204056 | T54: Z095 ZZP 9bvv excl.bh incl.db
E55: Z101 ZZP 10vv excl.bh incl.db | G55: 519.7201782 | K55: Z101 ZZP 10vv excl.bh incl.db | M55: 519.7201782 | N55: 3638.041248 | O55: H531 | P55: 0 | Q55: 0 | R55: 3638.041248 | T55: Z101 ZZP 10vv excl.bh incl.db
E56: Z414 ZZP 1vg excl.db | G56: 89.65839427 | K56: Z414 ZZP 1vg excl.db | M56: 89.65839427 | N56: 627.6087599 | O56: H811 | P56: -8 | Q56: =P56*$Q$44 -> -72 | R56: 555.6087599 | T56: Z415 ZZP 1vg incl.db
E57: Z415 ZZP 1vg incl.db | G57: 139.7168755 | K57: Z424 ZZP 2vg excl.db | M57: 104.2936973 | N57: 730.0558811 | O57: H811 | P57: -7 | Q57: -63 | R57: 667.0558811 | T57: Z425 ZZP 2vg incl.db
E58: Z424 ZZP 2vg excl.db | G58: 104.2936973 | K58: Z430 ZZP 3vg excl.bh excl.db | M58: 137.9126595 | N58: 965.3886162 | O58: H811 | P58: -6 | Q58: -54 | R58: 911.3886162 | T58: Z431 ZZP 3vg excl.bh incl.db
E59: Z425 ZZP 2vg incl.db | G59: 155.3539774 | K59: Z440 ZZP 4vg excl.bh excl.db | M59: 167.5703863 | N59: 1172.992704 | O59: H811 | P59: -5 | Q59: -45 | R59: 1127.992704 | T59: Z441 ZZP 4vg excl.bh incl.db
E60: Z430 ZZP 3vg excl.bh excl.db | G60: 137.9126595 | K60: Z454 ZZP 5vg excl.bh excl.db | M60: 202.1192754 | N60: 1414.834928 | O60: H812 | P60: -4 | Q60: -36 | R60: 1378.834928 | T60: Z455 ZZP 5vg excl.bh incl.db
E61: Z431 ZZP 3vg excl.bh incl.db | G61: 185.5017964 | K61: Z460 ZZP 6vg excl.bh excl.db | M61: 176.5994106 | N61: 1236.195874 | O61: H812 | P61: -3 | Q61: -27 | R61: 1209.195874 | T61: Z461 ZZP 6vg excl.bh incl.db
E62: Z440 ZZP 4vg excl.bh excl.db | G62: 167.5703863 | K62: Z470 ZZP 7vg excl.bh excl.db | M62: 219.3615295 | N62: 1535.530706 | O62: H813 | P62: -2 | Q62: -18 | R62: 1517.530706 | T62: Z471 ZZP 7vg excl.bh incl.db
E63: Z441 ZZP 4vg excl.bh incl.db | G63: 215.5549022 | K63: Z480 ZZP 8vg excl.bh excl.db | M63: 240.1425497 | N63: 1680.997848 | O63: H813 | P63: -1 | Q63: -9 | R63: 1671.997848 | T63: Z481 ZZP 8vg excl.bh incl.db
E64: Z454 ZZP 5vg excl.bh excl.db | G64: 202.1192754 | K64: Z513 ZZP 1lvg incl.bh incl.db | M64: 236.0054211 | N64: 1652.037947 | O64: nvt | P64: 0 | Q64: 0 | R64: 1652.037947 | T64: Z513 ZZP 1lvg incl.bh incl.db
E65: Z455 ZZP 5vg excl.bh incl.db | G65: 264.9443212 | K65: Z523 ZZP 2lvg incl.bh incl.db | M65: 282.7639726 | N65: 1979.347808 | O65: nvt | P65: 0 | Q65: 0 | R65: 1979.347808 | T65: Z523 ZZP 2lvg incl.bh incl.db
E66: Z460 ZZP 6vg excl.bh excl.db | G66: 176.5994106 | K66: Z533 ZZP 3lvg incl.bh incl.db | M66: 369.0921102 | N66: 2583.644771 | O66: nvt | P66: 0 | Q66: 0 | R66: 2583.644771 | T66: Z533 ZZP 3lvg incl.bh incl.db
E67: Z461 ZZP 6vg excl.bh incl.db | G67: 238.2741674 | K67: Z543 ZZP 4lvg incl.bh incl.db | M67: 424.175176 | N67: 2969.226232 | O67: nvt | P67: 0 | Q67: 0 | R67: 2969.226232 | T67: Z543 ZZP 4lvg incl.bh incl.db
E68: Z470 ZZP 7vg excl.bh excl.db | G68: 219.3615295 | K68: Z553 ZZP 5lvg incl.bh incl.db | M68: 404.9147964 | N68: 2834.403575 | O68: nvt | P68: 0 | Q68: 0 | R68: 2834.403575 | T68: Z553 ZZP 5lvg incl.bh incl.db
E69: Z471 ZZP 7vg excl.bh incl.db | G69: 289.4897776 | K69: Z573 ZZP 1sglvg incl.bh incl.db | M69: 473.5166335 | N69: 3314.616434 | O69: nvt | P69: 0 | Q69: 0 | R69: 3314.616434 | T69: Z573 ZZP 1sglvg incl.bh incl.db
E70: Z480 ZZP 8vg excl.bh excl.db | G70: 240.1425497 | K70: Z614 ZZP 1lg excl.db | M70: 127.5685379 | N70: 892.9797656 | O70: H833 | P70: 0 | Q70: 0 | R70: 892.9797656 | T70: Z615 ZZP 1lg incl.db
E71: Z481 ZZP 8vg excl.bh incl.db | G71: 326.4194806 | K71: Z624 ZZP 2lg excl.db | M71: 162.338196 | N71: 1136.367372 | O71: H832 | P71: 0 | Q71: 0 | R71: 1136.367372 | T71: Z625 ZZP 2lg incl.db
E72: Z513 ZZP 1lvg incl.bh incl.db | G72: 236.0054211 | K72: Z630 ZZP 3lg excl.bh excl.db | M72: 134.3953251 | N72: 940.7672759 | O72: H833 | P72: 0 | Q72: 0 | R72: 940.7672759 | T72: Z631 ZZP 3lg excl.bh incl.db
E73: Z523 ZZP 2lvg incl.bh incl.db | G73: 282.7639726 | K73: Z640 ZZP 4lg excl.bh excl.db | M73: 193.2974586 | N73: 1353.08221 | O73: H832 | P73: 0 | Q73: 0 | R73: 1353.08221 | T73: Z641 ZZP 4lg excl.bh incl.db
E74: Z533 ZZP 3lvg incl.bh incl.db | G74: 369.0921102 | K74: Z650 ZZP 5lg excl.bh excl.db | M74: 192.4282504 | N74: 1346.997753 | O74: H832 | P74: 0 | Q74: 0 | R74: 1346.997753 | T74: Z651 ZZP 5lg excl.bh incl.db
E75: Z543 ZZP 4lvg incl.bh incl.db | G75: 424.175176 | K75: Z660 ZZP 6lg excl.bh excl.db | M75: 272.3302075 | N75: 1906.311452 | O75: H832 | P75: 0 | Q75: 0 | R75: 1906.311452 | T75: Z661 ZZP 6lg excl.bh incl.db
E76: Z553 ZZP 5lvg incl.bh incl.db | G76: 404.9147964 | K76: Z670 ZZP 7lg excl.bh excl.db | M76: 293.6575799 | N76: 2055.603059 | O76: H831 | P76: 0 | Q76: 0 | R76: 2055.603059 | T76: Z671 ZZP 7lg excl.bh incl.db
E77: Z573 ZZP 1sglvg incl.bh incl.db | G77: 473.5166335 | K77: Z710 ZZP 1zg-auditief excl.bh excl.db | M77: 182.5178693 | N77: 1277.625085 | O77: H851 | P77: 0 | Q77: 0 | R77: 1277.625085 | T77: Z711 ZZP 1zg-auditief excl.bh incl.db
E78: Z614 ZZP 1lg excl.db | G78: =VLOOKUP(E78,Tarieven_ZZP1,7,0) -> 127.5685379 | K78: Z740 ZZP 4zg-auditief excl.bh excl.db | M78: 218.8756301 | N78: 1532.129411 | O78: H851 | P78: 0 | Q78: 0 | R78: 1532.129411 | T78: Z741 ZZP 4zg-auditief excl.bh incl.db
E79: Z615 ZZP 1lg incl.db | G79: 186.9968015 | K79: Z720 ZZP 2zg-auditief excl.bh excl.db | M79: 336.4712001 | N79: 2355.298401 | O79: H852 | P79: 0 | Q79: 0 | R79: 2355.298401 | T79: Z721 ZZP 2zg-auditief excl.bh incl.db
E80: Z624 ZZP 2lg excl.db | G80: 162.338196 | K80: Z730 ZZP 3zg-auditief excl.bh excl.db | M80: 378.9213597 | N80: 2652.449518 | O80: H853 | P80: 0 | Q80: 0 | R80: 2652.449518 | T80: Z731 ZZP 3zg-auditief excl.bh incl.db
E81: Z625 ZZP 2lg incl.db | G81: 216.4875305 | K81: Z814 ZZP 1zg-visueel excl.db | M81: 113.0339852 | N81: 791.2378963 | O81: H872 | P81: 0 | Q81: 0 | R81: 791.2378963 | T81: Z815 ZZP 1zg-visueel incl.db
E82: Z630 ZZP 3lg excl.bh excl.db | G82: 134.3953251 | K82: Z824 ZZP 2zg-visueel excl.db | M82: 161.1812186 | N82: 1128.26853 | O82: H871 | P82: 0 | Q82: 0 | R82: 1128.26853 | T82: Z825 ZZP 2zg-visueel incl.db
E83: Z631 ZZP 3lg excl.bh incl.db | G83: 194.79021 | K83: Z830 ZZP 3zg-visueel excl.bh excl.db | M83: 196.9810945 | N83: 1378.867661 | O83: H871 | P83: 0 | Q83: 0 | R83: 1378.867661 | T83: Z831 ZZP 3zg-visueel excl.bh incl.db
E84: Z640 ZZP 4lg excl.bh excl.db | G84: 193.2974586 | K84: Z840 ZZP 4zg-visueel excl.bh excl.db | M84: 247.440618 | N84: 1732.084326 | O84: H873 | P84: 0 | Q84: 0 | R84: 1732.084326 | T84: Z841 ZZP 4zg-visueel excl.bh incl.db
E85: Z641 ZZP 4lg excl.bh incl.db | G85: 245.8071889 | K85: Z850 ZZP 5zg-visueel excl.bh excl.db | M85: 276.1368883 | N85: 1932.958218 | O85: H873 | P85: 0 | Q85: 0 | R85: 1932.958218 | T85: Z851 ZZP 5zg-visueel excl.bh incl.db
E86: Z650 ZZP 5lg excl.bh excl.db | G86: 192.4282504
E87: Z651 ZZP 5lg excl.bh incl.db | G87: 254.1467271
E88: Z660 ZZP 6lg excl.bh excl.db | G88: 272.3302075
E89: Z661 ZZP 6lg excl.bh incl.db | G89: 323.1404331
E90: Z670 ZZP 7lg excl.bh excl.db | G90: 293.6575799
E91: Z671 ZZP 7lg excl.bh incl.db | G91: 343.6121847
E92: Z710 ZZP 1zg-auditief excl.bh excl.db | G92: 182.5178693
E93: Z711 ZZP 1zg-auditief excl.bh incl.db | G93: 224.125165
E94: Z740 ZZP 4zg-auditief excl.bh excl.db | G94: 218.8756301
E95: Z741 ZZP 4zg-auditief excl.bh incl.db | G95: 286.1317657
E96: Z720 ZZP 2zg-auditief excl.bh excl.db | G96: 336.4712001
E97: Z721 ZZP 2zg-auditief excl.bh incl.db | G97: 389.9913795
E98: Z730 ZZP 3zg-auditief excl.bh excl.db | G98: 378.9213597
E99: Z731 ZZP 3zg-auditief excl.bh incl.db | G99: 424.9490904
E100: Z814 ZZP 1zg-visueel excl.db | G100: 113.0339852
E101: Z815 ZZP 1zg-visueel incl.db | G101: 172.3319466
E102: Z824 ZZP 2zg-visueel excl.db | G102: 161.1812186
E103: Z825 ZZP 2zg-visueel incl.db | G103: 212.6909779
E104: Z830 ZZP 3zg-visueel excl.bh excl.db | G104: 196.9810945
E105: Z831 ZZP 3zg-visueel excl.bh incl.db | G105: 247.1002945
E106: Z840 ZZP 4zg-visueel excl.bh excl.db | G106: 247.440618
E107: Z841 ZZP 4zg-visueel excl.bh incl.db | G107: 312.2164446
E108: Z850 ZZP 5zg-visueel excl.bh excl.db | G108: 276.1368883
E109: Z851 ZZP 5zg-visueel excl.bh incl.db | G109: 340.7530307

Sheet Werkwijze rekenmodule
A1: A. Werkwijze inclusief veranderingen ten opzichte van huidige versie i.v.m DTV
A2: 1. In de rekenmodule iWlz is bij Aan te vragen zorg nu "Deeltijd verblijf icm zorg thuis" toegevoegd
A3: 2. Als voor deeltijdverblijf gekozen wordt, dan wordt het totale doelmatigheidsbedrag weergegeven voor het totaal aan DTV en zorg thuis. De doelmatigheid DTV wordt getoetst tegen deze totale ruimte. Deze ruimte is afhankelijk van de verdeling van het aantal etmalen DTV en zorg thuis (3 ½, 4, 4 ½).
A4: 3. De rekenmodule toont het 100% basisbudget voor zorg thuis. Dit wordt voor DTV gebruikt om de aan te vragen percentages te berekenen. Zowel DTV als de zorg thuis wordt uitgedrukt als percentage van het reguliere basisbudget voor zorg thuis (MPT/pgb budget).
A5: 4. De rekenmodule toont de verdeling van percentages over de betrokken AGB codes en over de zorgtoewijzing Opname Ja en Opname Nee.
A6: 5. De aanbieder die de zorg thuis levert krijgt het percentage toegewezen voor de zorg thuis (DTV opname Nee). De aanbieder die het verblijf levert, krijgt de toewijzing voor verblijf (DTV opname Ja). Als 1 aanbieder zowel de zorg thuis als het verblijf levert (bijv. week op week af bij zelfde aanbieder) dan krijgt de verblijfsaanbieder het totale percentage toegewezen via DTV opname Ja. Vanuit de toewijzing DTV opname Ja levert de verblijfsaanbieder ook de zorg thuis.
A7: 6. De rekenmodule toont of de kosten van BH, BHGRP en/of BGGRP het basisbudget voor BH en BGGRP overschrijdt. Hiermee kan gecontroleerd worden of de overschrijding van EKT aangevraagd kan worden als maatwerktoeslag "Overig - Extra Behandeling" of dat meerzorg aangevraagd moet worden. Het basisbudget BGGRP komt uit de PGB tarieventabel.
A9: B. Rekenregels alle leveringsvormen
A10: 1. Per leveringsvorm Verblijf, VPT, MPT /PGB toont de rekenmodule of er sprake is van (on)doelmatige zorg.
A11: a. Verblijf: percentages worden berekend op basis van het ZZP tarief incl. BG incl. BH (tarieven uit NZa beleidsregel ZZP). Toeslagen worden niet via iWlz aangevraagd, en niet in percentage berekend. Percentages worden alleen gebruikt om aan te geven dat er verdeling is over verblijf en dagbesteding. Voor verblijf is er geen toetsing op doelmatigheid.
A12: b. VPT : het VPT tarief incl. BGG incl. BH (tarieven uit NZa beleidsregel VPT). Toeslagen worden niet via iWlz aangevraagd, en niet in percentage berekend.
A13: c. DTV: de totale ruimte voor DTV wordt als volgt berekend. Het DTV tarief maal het aantal etmalen DTV, plus het pgb tarief (incl vervoer) maal het aantal etmalen thuis. Het DTV tarief is altijd exclusief BH. Voor de V&V zijn de DTV prestaties inclusief BGGRP. Alle BH (V&V en GZ) en de BGGRP (GZ), ook tijdens het verblijf, wordt als zorg thuis gedeclareerd. En wordt niet gecorrigeerd voor het aantal etmalen thuis. De ruimte voor BH is hetzelfde als voor MPT en VPT. Het basisbudget voor BGGRP (GZ) komt uit de ZZPtabel voor pgb en is gelijk aan de pgb ruimte voor BGGRP. Zie ook punt 6. hierboven.
A14: d. MPT/pgb: het pgb tarief incl. vervoer (PGB tarieven per ZZP uit ZINL tabel). Dus zonder BH.
A15: 2. Het extra budget dat bovenop de 100% berekend wordt, betreft alleen vormen van extra budget of bijzondere situaties die deelbaar zijn over meerdere aanbieders en/of over MPT en pgb.
A16: a. Verblijf en VPT: geen extra budget van toepassing. 100% is maximum percentage.
A17: b. DTV: extra budget wordt alleen berekend over het zorg thuis deel en niet over het DTV deel. Voor zorg thuis gelden dezelfde bijzondere situaties (extra budget) als voor MPT
A18: c. MPT: EKT, PTZ, invasieve en noninvasieve beademing, meerzorg, (extra) BH, GVP, Overig. BH mag niet gedeeld worden met pgb. Zie verder het Voorschrift voor de werkwijze rondom toeslagen thuis inclusief de 2 nieuwe maatwerktoeslagen ivm dure BGGRP, BH en BHGRP
A19: d. MPT/Pgb combinatie: EKT, PTZ, invasieve en noninvasieve beademing, meerzorg, GVP, Overig. Zie verder het Voorschrift voor de werkwijze rondom toeslagen thuis inclusief de 2 nieuwe maatwerktoeslagen ivm dure BGGRP, BH en BHGRP. De toeslagen Woontoeslag, Persoonlijk assistentiebudget, kleinschalige woonvoorziening worden niet meegenomen in de pgb ruimte
A20: 3. De volgende bedragen worden überhaupt niet in de berekening van het percentage meegenomen: dit betreft de bedragen die niet deelbaar zijn over meerdere aanbieders of over ZIN en pgb, of toeslagen die via een andere aparte prestatie (bijv. meerzorg intramuraal) gedeclareerd worden.
A21: a. Verblijf en VPT: de aparte toeslagprestaties die bovenop het standaardtarief gedeclareerd kunnen worden. Bijv. vervoer, meerzorg
A22: b. DTV: de aparte toeslagprestaties die bovenop het standaardtarief DTV gedeclareerd kunnen worden. Bijv. vervoer, meerzorg
A23: c. MPT: geen uitzondering. BH en ademhalingsondersteuning zijn meegenomen in percentage omdat ze deelbaar zijn over meerdere aanbieders.
A24: d. Pgb: de aparte toeslagen die niet voor MPT van toepassing zijn. Dit betreft budgetgarantie, toeslag wooninitiatief, persoonlijke assistentiebudget en de herberekening op basis van het aanvaarbaarheidspercentage.
A25: 4. Voor alle in de rekenmodule gebruikte NZa tarieven rekent de rekenmodule met 97% van het landelijk tarief.
A26: 5. Voor DTV toont de rekenmodule alle NZa prestaties die als DTV gedeclareerd mogen worden (NZa beleidsregel ZZP). Deze prestaties zijn altijd excl BGG en excl BH. De zorg thuis en alle BGGRP en BH wordt altijd gedeclareerd als extramurale prestaties (beleidsregel modulaire zorg), ook de BGGRP en BH die tijdens het verblijf gedeclareerd. Deze zijn onderdeel van MPT (BGGRP, BH en BHGRP) en pgb (alleen BGGRP) percentage.
A27: 6. Voor alle leveringsvormen wordt voor de berekening van het percentage uitgegaan van 100% van het basisbudget behorend bij het geïndiceerde ZZP, en dus niet van het sectorvreemde ZZP.
A28: 7. Het budget dat extra beschikbaar is voor BH naast zorg thuis en DTV is gemaximeerd op het verschil tussen het tarief voor het VPT inclusief BH minus het tarief voor het VPT exclusief BH. Betreft de VPT tarieven excl dagbesteding (NZa beleidsregel VPT).
A29: 8. De EKT wordt berekend over het basisbudget voor zorg thuis (exclusief BH). Indien er BH (altijd natura) wordt geleverd, dan wordt EKT ook over het BH budget berekend. Het maximale percentage EKT over het basisbudget is 125% (excl BH). Voor DTV wordt de EKT berekend over het basisbudget voor het zorg thuis deel, dus inclusief het weekbudget voor BH en BGGRP.
A30: 8. De hoogte van de toeslagen invasieve en non-invasieve ademhalingsondersteuning voor zorg thuis zijn gemaximeerd op de intramurale toeslag invasieve of noninvasieve ademhalingsondersteuning (NZa beleidsregels ZZP).
A31: 9. Er zijn 3 afwijkingen tussen berekenen van doelmatigheid in de rekenmodule en bij de monitoring achteraf van de totale gedeclareerde kosten van zorg thuis. Vervoer wordt (nog) niet meegenomen in het percentage in de rekenmodule. Dit geldt ook voor het extra etmaal logeren dat op vertrekdatum mag worden gedeclareerd, en ook voor de dagbesteding die in specifieke gevallen bovenop het logeren mag worden gedeclareerd. Hierdoor kunnen percentages afwijken van werkelijke kosten.

Sheet Meerzorg onderbouwing
A1: Onderbouwing extreme zorgzwaarte
B2: Uren zorg (PV, VP en Bgind) | F2: =P5 -> 0 | G2: per week | O2: PV | P2: =SUMIF(Rekenblad!$B$17:$B$31,"PV",Rekenblad!$F$17:$F$31) -> 0 | R2: BGgrp | S2: =SUMIF(Rekenblad!$B$17:$B$31,"BGgrp",Rekenblad!$F$17:$F$31) -> 0 | V2: =F5-K5 -> 0
B3: Uren dagbesteding | F3: =S2 -> 0 | G3: per week | O3: VP | P3: =SUMIF(Rekenblad!$B$17:$B$31,"VP",Rekenblad!$F$17:$F$31) -> 0 | R3: BHgrp | S3: =SUMIF(Rekenblad!$B$17:$B$31,"BHgrp",Rekenblad!$F$17:$F$31) -> 0
B4: Uren behandeling | F4: =S5 -> 0 | G4: per week | O4: Bgind | P4: =SUMIF(Rekenblad!$B$17:$B$31,"BGind",Rekenblad!$F$17:$F$31) -> 0 | R4: Bhind | S4: =SUMIF(Rekenblad!$B$17:$B$31,"BHind",Rekenblad!$F$17:$F$31) -> 0 | T4: =S4/60 -> 0 | V4: =IF(V2<=0,1,2) -> 1
B5: Totale inzet uren | F5: =SUM(F2:F4) -> 0 | H5: Gemiddeld uren uit het ZZP | K5: =Rekenblad!EC6/7*(7-Rekenblad!I6) -> 0 | L5: (uren *25%) | P5: =SUM(P2:P4)/60 -> 0 | S5: =T4+S3 -> 0 | V5: =IF(Rekenblad!Q24="meerzorg",5,6) -> 6
V6: =SUM(V4:V5) -> 7
A7: Reden extreme zorgzwaarte
D8: Gedragsproblematiek | G8: CCE advies moet worden aangevraagd door zorgaanbieder | N8: =IF(B8="X",1,0) -> 0
D9: Somatische problematiek | N9: =IF(B9="X",1,0) -> 0 | Q9: =SUM(N8:N9) -> 0 | R9: =IF(Q9=0,"X","") -> X
A12: Is er sprake van een kortdurende of langdurige noodzaak tot meerzorg | N12: =IF(B13="X",1,0) -> 0
D13: Kortdurend (max 6 maanden) ( alleen mogelijk bij VG) | N13: =IF(B14="X",1,0) -> 0 | Q13: =SUM(N12:N14) -> 0 | R13: =IF(Q13=0,"X","") -> X
D14: Regulier VV en GGZ | N14: =IF(B15="X",1,0) -> 0
D15: Regulier VG
A18: Omschrijving extreme zorgzwaarte | S18: 0
S19: 1
S20: =Q9 -> 0
S21: =SUM(S18:S20) -> 1
A35: Professionele blik: omschrijving problematiek/beperkingen vanuit oogpunt van de professional
A54: Gestelde doelen waaraan gewerkt wordt
F108: (Overig, vul hier tekst in)

Sheet PGB tarieven
A1: Bijlage H. Tarieventabel persoonsgebonden budget-Wlz 2022
A3: ZZP | B3: ZZP | I3: Totaal jaarbasis | J3: Vervoer | M3: Totaal jaarbasis | O3: Totaal weekbasis
B4: code
A6: VV | D6: BGGRP
A7: 1VV | B7: 750 | D7: 0 | E7: 0 | I7: 17352 | J7: =IF(D7=0,0,E7-D7) -> 0 | M7: =I7 -> 17352 | O7: =M7/365*7 -> 332.7780822 | P7: =D7 -> 0 | Q7: =P7/365 -> 0 | S7: =M7-D7 -> 17352 | T7: =S7/365*7 -> 332.7780822
A8: 2VV | B8: 751 | D8: 0 | E8: 0 | I8: 25160 | J8: 0 | M8: 25160 | O8: 482.5205479 | P8: 0 | Q8: 0 | S8: 25160 | T8: 482.5205479
A9: 3VV | B9: 752 | D9: 0 | E9: 0 | I9: 30628 | J9: 0 | M9: 30628 | O9: 587.3863014 | P9: 0 | Q9: 0 | S9: 30628 | T9: 587.3863014
A10: 4VV | B10: 753 | D10: 0 | E10: 0 | I10: 41037 | J10: 0 | M10: 41037 | O10: 787.0109589 | P10: 0 | Q10: 0 | S10: 41037 | T10: 787.0109589
A11: 5VV | B11: 754 | D11: 0 | E11: 0 | I11: 55678 | J11: 0 | M11: 55678 | O11: 1067.79726 | P11: 0 | Q11: 0 | S11: 55678 | T11: 1067.79726
A12: 6VV | B12: 755 | D12: 0 | E12: 0 | I12: 55678 | J12: 0 | M12: 55678 | O12: 1067.79726 | P12: 0 | Q12: 0 | S12: 55678 | T12: 1067.79726
A13: 7VV | B13: 756 | D13: 0 | E13: 0 | I13: 69744 | J13: 0 | M13: 69744 | O13: 1337.556164 | P13: 0 | Q13: 0 | S13: 69744 | T13: 1337.556164
A14: 8VV | B14: 757 | D14: 0 | E14: 0 | I14: 83238 | J14: 0 | M14: 83238 | O14: 1596.345205 | P14: 0 | Q14: 0 | S14: 83238 | T14: 1596.345205
A15: 9VVb | B15: 191 | D15: 0 | E15: 0 | I15: 53377 | J15: 0 | M15: 53377 | O15: 1023.668493 | P15: 0 | Q15: 0 | S15: 53377 | T15: 1023.668493
A16: 10VV | B16: 759 | D16: 0 | E16: 0 | I16: 90677 | J16: 0 | M16: 90677 | O16: 1739.010959 | P16: 0 | Q16: 0 | S16: 90677 | T16: 1739.010959
A17: 1GGZ-W | D17: 11605 | E17: 12991 | I17: 47229 | J17: 1386 | M17: 47229 | O17: 905.7616438 | P17: 11605 | Q17: =P17/365 -> 31.79452055 | S17: 35624 | T17: 683.2
A18: 2GGZ-W | D18: 11605 | E18: 12991 | I18: 51214 | J18: 1386 | M18: 51214 | O18: 982.1863014 | P18: 11605 | Q18: 31.79452055 | S18: 39609 | T18: 759.6246575
A19: 3GGZ-W | D19: 14505 | E19: 16243 | I19: 57063 | J19: 1738 | M19: 57063 | O19: 1094.358904 | P19: 14505 | Q19: 39.73972603 | S19: 42558 | T19: 816.1808219
A20: 4GGZ-W | D20: 11605 | E20: 12991 | I20: 68093 | J20: 1386 | M20: 68093 | O20: 1305.893151 | P20: 11605 | Q20: 31.79452055 | S20: 56488 | T20: 1083.331507
A21: 5GGZ-W | D21: 14505 | E21: 16243 | I21: 95041 | J21: 1738 | M21: 95041 | O21: 1822.70411 | P21: 14505 | Q21: =P21/365 -> 39.73972603 | S21: 80536 | T21: =S21/365*7 -> 1544.526027
A22: 1LVG | B22: 780 | D22: 2900 | E22: 3249 | I22: 32506 | J22: 349 | M22: 32506 | O22: 623.4027397 | P22: 2900 | Q22: 7.945205479 | S22: 29606 | T22: 567.7863014
A23: 2LVG | B23: 781 | D23: 2900 | E23: 3249 | I23: 46572 | J23: 349 | M23: 46572 | O23: 893.1616438 | P23: 2900 | Q23: 7.945205479 | S23: 43672 | T23: 837.5452055
A24: 3LVG | B24: 782 | D24: 2900 | E24: 3249 | I24: 55296 | J24: 349 | M24: 55296 | O24: 1060.471233 | P24: 2900 | Q24: 7.945205479 | S24: 52396 | T24: 1004.854795
A25: 4LVG | B25: 783 | D25: 5802 | E25: 6496 | I25: 71738 | J25: 694 | M25: 71738 | O25: 1375.79726 | P25: 5802 | Q25: 15.89589041 | S25: 65936 | T25: 1264.526027
A26: 5LVG | B26: 784 | D26: 5802 | E26: 6496 | I26: 71738 | J26: 694 | M26: 71738 | O26: 1375.79726 | P26: 5802 | Q26: 15.89589041 | S26: 65936 | T26: 1264.526027
A27: 1SGLVG | B27: 790 | D27: 8703 | E27: 9746 | I27: 64517 | J27: 1043 | M27: 64517 | O27: 1237.312329 | P27: 8703 | Q27: 23.84383562 | S27: 55814 | T27: 1070.405479
A28: 1VG | B28: 800 | D28: 14505 | E28: 16243 | I28: 38446 | J28: 1738 | M28: 38446 | O28: 737.3205479 | P28: 14505 | Q28: 39.73972603 | S28: 23941 | T28: 459.1424658
A29: 2VG | B29: 802 | D29: 14505 | E29: 16243 | I29: 45500 | J29: 1738 | M29: 45500 | O29: 872.6027397 | P29: 14505 | Q29: 39.73972603 | S29: 30995 | T29: 594.4246575
A30: 3VG | B30: 804 | D30: 17405 | E30: 19142 | I30: 51865 | J30: 1737 | M30: 51865 | O30: 994.6712329 | P30: 17405 | Q30: 47.68493151 | S30: 34460 | T30: 660.8767123
A31: 4VG | B31: 806 | D31: 17405 | E31: 19142 | I31: 56926 | J31: 1737 | M31: 56926 | O31: 1091.731507 | P31: 17405 | Q31: 47.68493151 | S31: 39521 | T31: 757.9369863
A32: 5VG | B32: 808 | D32: 20307 | E32: 22045 | I32: 72596 | J32: 1738 | M32: 72596 | O32: 1392.252055 | P32: 20307 | Q32: 55.63561644 | S32: 52289 | T32: 1002.80274
A33: 6VG | B33: 810 | D33: 23208 | E33: 24947 | I33: 68270 | J33: 1739 | M33: 68270 | O33: 1309.287671 | P33: 23208 | Q33: 63.58356164 | S33: 45062 | T33: 864.2027397
A34: 7VG | B34: 812 | D34: 26110 | E34: 27847 | I34: 90626 | J34: 1737 | M34: 90626 | O34: 1738.032877 | P34: 26110 | Q34: 71.53424658 | S34: 64516 | T34: 1237.293151
A35: 8VG | B35: 814 | D35: 20307 | E35: 22045 | I35: 79872 | J35: 1738 | M35: 79872 | O35: 1531.791781 | P35: 20307 | Q35: 55.63561644 | S35: 59565 | T35: 1142.342466
A36: 1LG | B36: 820 | D36: 17405 | E36: 19142 | I36: 49915 | J36: 1737 | M36: 49915 | O36: 957.2739726 | P36: 17405 | Q36: 47.68493151 | S36: 32510 | T36: 623.4794521
A37: 2LG | B37: 822 | D37: 17405 | E37: 19142 | I37: 59646 | J37: 1737 | M37: 59646 | O37: 1143.89589 | P37: 17405 | Q37: 47.68493151 | S37: 42241 | T37: 810.1013699
A38: 3LG | B38: 824 | D38: 20307 | E38: 22045 | I38: 55495 | J38: 1738 | M38: 55495 | O38: 1064.287671 | P38: 20307 | Q38: 55.63561644 | S38: 35188 | T38: 674.8383562
A39: 4LG | B39: 826 | D39: 17405 | E39: 19142 | I39: 59646 | J39: 1737 | M39: 59646 | O39: 1143.89589 | P39: 17405 | Q39: 47.68493151 | S39: 42241 | T39: 810.1013699
A40: 5LG | B40: 828 | D40: 20307 | E40: 22045 | I40: 70870 | J40: 1738 | M40: 70870 | O40: 1359.150685 | P40: 20307 | Q40: 55.63561644 | S40: 50563 | T40: 969.7013699
A41: 6LG | B41: 830 | D41: 17405 | E41: 19142 | I41: 77836 | J41: 1737 | M41: 77836 | O41: 1492.745205 | P41: 17405 | Q41: 47.68493151 | S41: 60431 | T41: 1158.950685
A42: 7LG | B42: 832 | D42: 14505 | E42: 16243 | I42: 81948 | J42: 1738 | M42: 81948 | O42: 1571.605479 | P42: 14505 | Q42: 39.73972603 | S42: 67443 | T42: 1293.427397
A43: 1ZGvis | B43: 840 | D43: 17405 | E43: 19142 | I43: 41345 | J43: 1737 | M43: 41345 | O43: 792.9178082 | P43: 17405 | Q43: 47.68493151 | S43: 23940 | T43: 459.1232877
A44: 2ZGvis | B44: 842 | D44: 14505 | E44: 16243 | I44: 52511 | J44: 1738 | M44: 52511 | O44: 1007.060274 | P44: 14505 | Q44: 39.73972603 | S44: 38006 | T44: 728.8821918
A45: 3ZGvis | B45: 844 | D45: 14505 | E45: 16243 | I45: 61477 | J45: 1738 | M45: 61477 | O45: 1179.010959 | P45: 14505 | Q45: 39.73972603 | S45: 46972 | T45: 900.8328767
A46: 4ZGvis | B46: 846 | D46: 20307 | E46: 22045 | I46: 83199 | J46: 1738 | M46: 83199 | O46: 1595.59726 | P46: 20307 | Q46: 55.63561644 | S46: 62892 | T46: 1206.147945
A47: 5ZGvis | B47: 848 | D47: 20307 | E47: 22045 | I47: 90254 | J47: 1738 | M47: 90254 | O47: 1730.89863 | P47: 20307 | Q47: 55.63561644 | S47: 69947 | T47: 1341.449315
A48: 1ZGaud | B48: 850 | D48: 23208 | E48: 24947 | I48: 57670 | J48: 1739 | M48: 57670 | O48: 1106 | P48: 23208 | Q48: 63.58356164 | S48: 34462 | T48: 660.9150685
A49: 2ZGaud | B49: 852 | D49: 26110 | E49: 27847 | I49: 103498 | J49: 1737 | M49: 103498 | O49: 1984.893151 | P49: 26110 | Q49: 71.53424658 | S49: 77388 | T49: 1484.153425
A50: 3ZGaud | B50: 854 | D50: 26110 | E50: 27847 | I50: 122590 | J50: 1737 | M50: 122590 | O50: 2351.041096 | P50: 26110 | Q50: 71.53424658 | S50: 96480 | T50: 1850.30137
A51: 4ZGaud | B51: 856 | D51: 20307 | E51: 22045 | I51: 77991 | J51: 1738 | M51: 77991 | O51: 1495.717808 | P51: 20307 | Q51: 55.63561644 | S51: 57684 | T51: =S51/365*7 -> 1106.268493

Sheet Tarieven ZIN prestaties
A1: F125 Dagbesteding lza | B1: F125 | C1: 12.86429862 | I1: Komt het profiel voor in PGB range met DB? | M1: =IFERROR(VLOOKUP(Rekenblad!G10,I2:J45,2,0),"") -> 
A2: H001G Dagbesteding ggz wonen-1 | B2: H001 | C2: 56.86469019 | I2: 1vg | J2: ja
A3: H002G Dagbesteding ggz wonen-2 | B3: H002 | C3: 64.9630071 | I3: 2vg | J3: ja
A4: H003G Dagbesteding ggz wonen-3 | B4: H003 | C4: 55.6326106 | I4: 3vg | J4: ja
A5: H004G Dagbesteding ggz wonen-4 | B5: H004 | C5: 70.27248989 | I5: 4vg | J5: ja
A6: H005G Dagbesteding ggz wonen-5 | B6: H005 | C6: 90.64142936 | I6: 5vg | J6: ja
A7: H104 Verpleging | B7: H104 | C7: 77.49755872 | I7: 6vg | J7: ja
A8: H106 Verpleging speciaal | B8: H106 | C8: 97.20278154 | I8: 7vg | J8: ja
A9: H117 Huishoudelijke hulp | B9: H117 | C9: 35.11885276 | I9: 8vg | J9: ja
A10: H118 Verpleging speciaal aan kinderen tot 18 jaar incl. beschikbaarheid | B10: H118 | C10: 126.9254499 | I10: 1lg | J10: ja
A11: H119 Verpleging speciaal aan kinderen tot 18 jaar exclusief beschikbaarheid | B11: H119 | C11: 97.23340657 | I11: 2lg | J11: ja
A12: H120 Pv Speciaal | B12: H120 | C12: 77.49755872 | I12: 3lg | J12: ja
A13: H126 Persoonlijke verzorging | B13: H126 | C13: 59.59443524 | I13: 4lg | J13: ja
A14: H127 Pv incl. beschikbaarheid | B14: H127 | C14: 63.82606213 | I14: 5lg | J14: ja
A15: H128 Verpleging incl. beschikbaarheid | B15: H128 | C15: 83.01765061 | I15: 6lg | J15: ja
A16: H132 Nachtverzorging | B16: H132 | C16: 55.88366045 | I16: 7lg | J16: ja
A17: H138 Thuiszorgtechnologie ten behoeve van persoonlijke verzorging | B17: H138 | C17: 59.59443524 | I17: 1zgvis | J17: ja
A18: H139 Thuizorgtechnologie ten behoeve van verpleging | B18: H139 | C18: 77.49755872 | I18: 2zgvis | J18: ja
A19: H150 Begeleiding incl. beschikbaarheid | B19: H150 | C19: 71.51515612 | I19: 3zgvis | J19: ja
A20: H152 Begeleiding speciaal 1 (nah) | B20: H152 | C20: 106.2394757 | I20: 4zgvis | J20: ja
A21: H153 Begeleiding speciaal 2 (psy) | B21: H153 | C21: 114.1442198 | I21: 5zgvis | J21: ja
A22: H180 Nachtverpleging | B22: H180 | C22: 105.3811686 | I22: 1zgaud | J22: ja
A23: H300 Begeleiding | B23: H300 | C23: 66.77621956 | I23: 2zgaud | J23: ja
A24: H301 Begeleiding zg visueel | B24: H301 | C24: 118.3101118 | I24: 3zgaud | J24: ja
A25: H302 Begeleiding speciaal 2 (visueel) | B25: H302 | C25: 145.3955146 | I25: 4zgaud | J25: ja
A26: H303 Begeleiding zg auditief | B26: H303 | C26: 98.79671289 | I26: 1vv | J26: nee
A27: H304 Begeleiding speciaal 2 (auditief) | B27: H304 | C27: 125.9245012 | I27: 2vv | J27: nee
A28: H306 Thuiszorgtechnologie ten behoeve van begeleiding | B28: H306 | C28: 66.74558546 | I28: 3vv | J28: nee
A29: H325 Behandeling lvg | B29: H325 | C29: 138.6603745 | I29: 4vv | J29: nee
A30: H329 Behandeling gedragswetenschapper | B30: H329 | C30: 136.7324551 | I30: 5vv | J30: nee
A31: H330 Behandeling paramedisch | B31: H330 | C31: 97.12515804 | I31: 6vv | J31: nee
A32: H331 Behandeling Families First lvg | B32: H331 | C32: 143.5420335 | I32: 7vv | J32: nee
A33: H332 Behandeling zg visueel | B33: H332 | C33: 157.0959127 | I33: 8vv | J33: nee
A34: H333 Behandeling zg auditief | B34: H333 | C34: 139.2354808 | I34: 9vv | J34: nee
A35: H334 Behandeling IOG (j)lvg | B35: H334 | C35: 124.7584864 | I35: 10vv | J35: nee
A36: H335 Behandeling som, pg, vg, lg, zg (SO) | B36: H335 | C36: 170.5591538 | I36: 1LVG | J36: nee
A37: H336 Behandeling som, pg, vg, lg, zg (AVG) | B37: H336 | C37: 170.5591538 | I37: 2LVG | J37: nee
A38: H337 Reiskosten prestatie behandeling (H332 en H333) | B38: H337 | C38: 25.3534147 | I38: 3LVG | J38: nee
A39: H338 Behandeling sglvg | B39: H338 | C39: 314.2821498 | I39: 4LVG | J39: nee
A40: H531 Dagbesteding basis | B40: H531 | C40: 42.6576454 | I40: 1SGLVG | J40: nee
A41: H533 Dagbesteding psychogeriatrisch | B41: H533 | C41: 61.27477191 | I41: 1GGZ-W | J41: ja
A42: H800 Dagbesteding somatisch ondersteunend | B42: H800 | C42: 59.06905572 | I42: 2GGZ-W | J42: ja
A43: H802 Dagbehandeling ouderen som en pg | B43: H802 | C43: 71.02324869 | I43: 3GGZ-W | J43: ja
A44: H804 Gespecialiseerde dagbehandeling Huntington lg of som | B44: H804 | C44: 89.45487233 | I44: 4GGZ-W | J44: ja
A45: H811 Dagbesteding vg licht | B45: H811 | C45: 40.44134186 | I45: 5GGZ-W | J45: nee
A46: H812 Dagbesteding vg midden | B46: H812 | C46: 57.03326909
A47: H813 Dagbesteding vg zwaar | B47: H813 | C47: 97.33567819
A48: H814 Dagbesteding vg kind licht | B48: H814 | C48: 75.75823264
A49: H815 Dagbesteding vg kind midden | B49: H815 | C49: 93.33748486
A50: H816 Dagbesteding vg kind zwaar | B50: H816 | C50: 139.175277
A51: H817 Dagbehandeling vg kind emg | B51: H817 | C51: 161.0521597
A52: H818 Dagbesteding vg kind gedrag | B52: H818 | C52: 139.175277
A53: H819 Dagbehandeling vg emg volwassenen | B53: H819 | C53: 117.4279712
A54: H820 Dagbehandeling vg kind midden | B54: H820 | C54: 114.64207
A55: H821 Dagbehandeling vg kind zwaar | B55: H821 | C55: 161.0521597
A56: H822 Dagbehandeling vg kind gedrag | B56: H822 | C56: 191.6646782
A57: H831 Dagbesteding lg licht | B57: H831 | C57: 57.84214192
A58: H832 Dagbesteding lg midden | B58: H832 | C58: 67.84256972
A59: H833 Dagbesteding lg zwaar | B59: H833 | C59: 74.4048791
A60: H834 Dagbesteding lg kind licht | B60: H834 | C60: 82.71218745
A61: H835 Dagbesteding lg kind midden | B61: H835 | C61: 95.83183822
A62: H836 Dagbesteding lg kind zwaar | B62: H836 | C62: 115.3763385
A63: H840 Dagbehandeling LG/NAH | B63: H840 | C63: 104.6018958
A64: H851 Dagbesteding zg auditief licht | B64: H851 | C64: 57.87302362
A65: H852 Dagbesteding zg auditief midden | B65: H852 | C65: 69.77787179
A66: H853 Dagbesteding zg auditief zwaar | B66: H853 | C66: 83.21234287
A67: H854 Dagbesteding zg kind auditief licht | B67: H854 | C67: 88.61872981
A68: H855 Dagbesteding zg kind auditief midden | B68: H855 | C68: 106.9646448
A69: H856 Dagbesteding zg kind auditief zwaar | B69: H856 | C69: 130.4504393
A70: H871 Dagbesteding zg visueel licht | B70: H871 | C70: 56.4864782
A71: H872 Dagbesteding zg visueel midden | B71: H872 | C71: 61.03432064
A72: H873 Dagbesteding zg visueel zwaar | B72: H873 | C72: 70.17533137
A73: H874 Dagbesteding zg kind visueel licht | B73: H874 | C73: 74.66762793
A74: H875 Dagbesteding zg kind visueel midden | B74: H875 | C74: 86.49151072
A75: H876 Dagbesteding zg kind visueel zwaar | B75: H876 | C75: 106.1007994
A76: H891 Dagbehandeling lvg | B76: H891 | C76: 150.6762196
A77: D041 DTV 4VV | B77: D041 | C77: 170.3264792
A78: D051 DTV 5VV | B78: D051 | C78: 295.3160658
A79: D061 DTV 6VV | B79: D061 | C79: 272.3643404
A80: D071 DTV 7VV | B80: D071 | C80: 348.1004429
A81: D081 DTV 8VV | B81: D081 | C81: 451.1137574
A82: D430 DTV 3VG | B82: D430 | C82: 141.5412308
A83: D440 DTV 4VG | B83: D440 | C83: 171.1989576
A84: D454 DTV 5VG | B84: D454 | C84: 206.364305
A85: D460 DTV 6VG | B85: D460 | C85: 180.4339501
A86: D470 DTV 7VG | B86: D470 | C86: 223.6065591
A87: D480 DTV 8VG | B87: D480 | C87: 245.3749032
A88: D624 DTV 2LG | B88: D624 | C88: 166.0865506
A89: D640 DTV 4LG | B89: D640 | C89: 197.0458131
A90: D650 DTV 5LG | B90: D650 | C90: 196.8442114
A91: D660 DTV 6LG | B91: D660 | C91: 277.4595061
A92: D670 DTV 7LG | B92: D670 | C92: 298.8078347
A93: H401 DTV 1ggz-w | B93: H401 | C93: 165.6568227
A94: H402 DTV 2ggz-w | B94: H402 | C94: 194.1686281
A95: H403 DTV 3ggz-w | B95: H403 | C95: 209.0097132
A96: H404 DTV 4ggz-w | B96: H404 | C96: 254.0672082
A97: H405 DTV 5ggz-w | B97: H405 | C97: 330.7956796
A98: D720 DTV ZGaud2 | B98: D720 | C98: 340.9207517
A99: D730 DTV ZGaud3 | B99: D730 | C99: 383.1466684
A100: D740 DTV ZGaud4 | B100: D740 | C100: 223.3251817
A101: D824 DTV ZGvis2 | B101: D824 | C101: 165.6307702
A102: D830 DTV ZGvis3 | B102: D830 | C102: 201.4306461
A103: D840 DTV ZGvis4 | B103: D840 | C103: 251.9288808
A104: D850 DTV ZGvis5 | B104: D850 | C104: 281.3490069
A105: Z1000 Logeren ghz-lg | B105: Z1000 | C105: 345.9798838
A106: Z1001 Logeren ghz-lvg | B106: Z1001 | C106: 336.7367389
A107: Z1002 Logeren ghz-zg | B107: Z1002 | C107: 470.4007442
A108: Z1003 Logeren vv | B108: Z1003 | C108: 278.7921972
A109: Z1004 Logeren ggz wonen | B109: Z1004 | C109: 219.6518387
A110: Z1006 Logeren ghz-zevmb | B110: Z1006 | C110: 504.4506182
A111: Z999 Logeren GHZ-VG | B111: Z999 | C111: 308.85

Sheet Tarieven VPT
A1: Bijlage 4 bij BR/REG-22125b Beleidsregel prestatiebeschrijvingen en tarieven zorgzwaartepakketten en volledig pakket thuis 2022 | E1: ( a ) | F1: ( b ) | G1: ( c ) | H1: ( d ) | I1: ( e ) | J1: (a+b+c+d+e)
A2: Onderbouwing beleidsregelwaarde per prestatie | I2: Kapitaallasten dagbesteding kind ghz-
I3: dagbehandeling vg emg -
B4: Code | C4: Prestatie | E4: Loon | F4: Materieel | G4: NHC | H4: NIC | I4: toeslag gespecialiseerde behandelzorg | J4: BRW totaal
A6: VPT 1vv excl.bh incl.db | B6: V015 | C6: ZZP 1vv excl.bh incl.db | D6: V015 VPT 1vv excl.bh incl.db | E6: 47.7130149 | F6: 24.85621049 | G6: 3.309527625 | H6: 0.7678664862 | I6: 0 | J6: 76.6466195
A7: VPT 2vv excl.bh incl.db | B7: V025 | C7: ZZP 2vv excl.bh incl.db | D7: V025 VPT 2vv excl.bh incl.db | E7: 69.81646261 | F7: 27.66138648 | G7: 3.309527625 | H7: 0.7678664862 | I7: 0 | J7: 101.5552432
A8: VPT 3vv excl.bh incl.db | B8: V031 | C8: ZZP 3vv excl.bh incl.db | D8: V031 VPT 3vv excl.bh incl.db | E8: 98.30683864 | F8: 32.07854257 | G8: 3.372767007 | H8: 0.7678664862 | I8: 0 | J8: 134.5260147
A9: VPT 4vv excl.bh incl.db | B9: V041 | C9: ZZP 4vv excl.bh incl.db | D9: V041 VPT 4vv excl.bh incl.db | E9: 89.31372699 | F9: 33.00780865 | G9: 3.372767007 | H9: 0.7678664862 | I9: 0 | J9: 126.4621691
A10: VPT 5vv excl.bh incl.db | B10: V051 | C10: ZZP 5vv excl.bh incl.db | D10: V051 VPT 5vv excl.bh incl.db | E10: 198.5433579 | F10: 47.10118917 | G10: 4.468916284 | H10: 0.6374670221 | I10: 0 | J10: 250.7509303
A11: VPT 6vv excl.bh incl.db | B11: V061 | C11: ZZP 6vv excl.bh incl.db | D11: V061 VPT 6vv excl.bh incl.db | E11: 172.520378 | F11: 43.80882753 | G11: 4.879972263 | H11: 0.6374670221 | I11: 0 | J11: 221.8466448
A12: VPT 7vv excl.bh incl.db | B12: V071 | C12: ZZP 7vv excl.bh incl.db | D12: V071 VPT 7vv excl.bh incl.db | E12: 248.8916002 | F12: 51.76951916 | G12: 4.879972263 | H12: 0.6374670221 | I12: 0 | J12: 306.1785586
A13: VPT 8vv excl.bh incl.db | B13: V081 | C13: ZZP 8vv excl.bh incl.db | D13: V081 VPT 8vv excl.bh incl.db | E13: 333.1504748 | F13: 66.21176611 | G13: 4.879972263 | H13: 0.3957022847 | I13: 0 | J13: 404.6379155
A14: VPT 9bvv excl.bh incl.db | B14: V095 | C14: ZZP 9bvv excl.bh incl.db | D14: V095 VPT 9bvv excl.bh incl.db | E14: 167.5898203 | F14: 46.52816439 | G14: 4.00516082 | H14: 0.3884043881 | I14: 0 | J14: 218.5115499
A15: VPT 10vv excl.bh incl.db | B15: V101 | C15: ZZP 10vv excl.bh incl.db | D15: V101 VPT 10vv excl.bh incl.db | E15: 399.0179895 | F15: 80.65022434 | G15: 4.879972263 | H15: 0.6374670221 | I15: 0 | J15: 485.1856532
A17: VPT 3vv incl.bh incl.db | B17: V033 | C17: ZZP 3vv incl.bh incl.db | D17: V033 VPT 3vv incl.bh incl.db | E17: 113.863749 | F17: 40.01765865 | G17: 3.372767007 | H17: 0.8435716327 | I17: 0 | J17: 158.0977463
A18: VPT 4vv incl.bh incl.db | B18: V043 | C18: ZZP 4vv incl.bh incl.db | D18: V043 VPT 4vv incl.bh incl.db | E18: 104.2774752 | F18: 29.93454695 | G18: 3.372767007 | H18: 0.8435716327 | I18: 0 | J18: 138.4283608
A19: VPT 5vv incl.bh incl.db | B19: V053 | C19: ZZP 5vv incl.bh incl.db | D19: V053 VPT 5vv incl.bh incl.db | E19: 210.9759813 | F19: 49.21536243 | G19: 4.468916284 | H19: 0.7450913245 | I19: 0 | J19: 265.4053514
A20: VPT 6vv incl.bh incl.db | B20: V063 | C20: ZZP 6vv incl.bh incl.db | D20: V063 VPT 6vv incl.bh incl.db | E20: 187.7928169 | F20: 44.34692522 | G20: 4.879972263 | H20: 0.7450913245 | I20: 0 | J20: 237.7648057
A21: VPT 7vv incl.bh incl.db | B21: V073 | C21: ZZP 7vv incl.bh incl.db | D21: V073 VPT 7vv incl.bh incl.db | E21: 266.3926962 | F21: 53.84621749 | G21: 4.879972263 | H21: 0.7450913245 | I21: 0 | J21: 325.8639773
A22: VPT 8vv incl.bh incl.db | B22: V083 | C22: ZZP 8vv incl.bh incl.db | D22: V083 VPT 8vv incl.bh incl.db | E22: 345.3252093 | F22: 68.90914003 | G22: 4.879972263 | H22: 0.4691315747 | I22: 0 | J22: 419.5834532
A23: VPT 9bvv incl.bhincl.db | B23: V097 | C23: ZZP 9bvv incl.bhincl.db | D23: V097 VPT 9bvv incl.bhincl.db | E23: 225.0409813 | F23: 51.46769352 | G23: 4.00516082 | H23: 0.4655140828 | I23: 0 | J23: 280.9793497
A24: VPT 10vv incl.bhincl.db | B24: V103 | C24: ZZP 10vv incl.bhincl.db | D24: V103 VPT 10vv incl.bhincl.db | E24: 392.4883671 | F24: 81.09051848 | G24: 4.879972263 | H24: 0.7450913245 | I24: 0 | J24: 479.2039491
A26: VPT 1 ggz wonen met intensieve begeleiding excl. BH excl. DB - modulair bekostigingsmodel | B26: V210 | D26: V210G VPT 1 ggz wonen excl. BH excl. DB | E26: 91.2317791 | F26: 30.18467331 | G26: 0 | H26: 0 | I26: 0 | J26: 121.4164524
A27: VPT 2 ggz wonen met intensieve begeleiding en verzorging excl. BH excl. DB - modulair bekostigingsmodel | B27: V220 | D27: V220G VPT 2 ggz wonen excl. BH excl. DB | E27: 109.6562944 | F27: 36.28055329 | G27: 0 | H27: 0 | I27: 0 | J27: 145.9368477
A28: VPT 3 ggz wonen met intensieve begeleiding en gedragsregulering excl. BH excl. DB - modulair bekostigingsmodel | B28: V230 | D28: V230G VPT 3 ggz wonen excl. BH excl. DB | E28: 119.4374277 | F28: 39.51670978 | G28: 0 | H28: 0 | I28: 0 | J28: 158.9541375
A29: VPT 4 ggz wonen met intensieve begeleiding en intensieve verpleging en verzorging excl. BH excl. DB - modulair bekostigingsmodel | B29: V240 | D29: V240G VPT 4 ggz wonen excl. BH excl. DB | E29: 150.2625503 | F29: 49.71541755 | G29: 0 | H29: 0 | I29: 0 | J29: 199.9779679
A30: VPT 5 ggz beveiligd wonen vanwege extreme gedragsproblematiek met zeer intensieve begeleiding excl. BH excl. DB - modulair bekostigingsmodel | B30: V250 | D30: V250G VPT 5 ggz beveiligd wonen excl. BH excl. DB | E30: 200.4213611 | F30: 66.31081154 | G30: 0 | H30: 0 | I30: 0 | J30: 266.7321727
A32: VPT 1 ggz wonen met intensieve begeleiding excl. BH incl. DB - modulair bekostigingsmodel | B32: V211 | D32: V211G VPT 1 ggz wonen excl. BH incl. DB | E32: 113.7663108 | F32: 37.640381 | G32: 8.082635277 | H32: 0.5746073466 | I32: 0 | J32: 160.0639344
A33: VPT 2 ggz wonen met intensieve begeleiding en verzorging excl. BH incl. DB - modulair bekostigingsmodel | B33: V221 | D33: V221G VPT 2 ggz wonen excl. BH incl. DB | E33: 133.3991356 | F33: 44.13603865 | G33: 9.781982711 | H33: 0.5746073466 | I33: 0 | J33: 187.8917643
A34: VPT 3 ggz wonen met intensieve begeleiding en gedragsregulering excl. BH incl. DB - modulair bekostigingsmodel | B34: V231 | D34: V231G VPT 3 ggz wonen excl. BH incl. DB | E34: 143.6388974 | F34: 47.52393557 | G34: 8.740341314 | H34: 0.5746073466 | I34: 0 | J34: 200.4777816
A35: VPT 4 ggz wonen met intensieve begeleiding en intensieve verpleging en verzorging excl. BH incl. DB - modulair bekostigingsmodel | B35: V241 | D35: V241G VPT 4 ggz wonen excl. BH incl. DB | E35: 175.0196659 | F35: 57.90648271 | G35: 9.787840979 | H35: 0.5746073466 | I35: 0 | J35: 243.288597
A36: VPT 5 ggz beveiligd wonen vanwege extreme gedragsproblematiek met zeer intensieve begeleiding excl. BH incl. DB - modulair bekostigingsmodel | B36: V251 | D36: V251G VPT 5 ggz beveiligd wonen excl. BH incl. DB | E36: 238.112295 | F36: 78.78112108 | G36: 12.30277234 | H36: 0.5746073466 | I36: 0 | J36: 329.7707958
A38: VPT 1vg excl.bh excl.db | B38: V414 | C38: ZZP 1vg excl.bh excl.db | D38: V414 VPT 1vg excl.bh excl.db | E38: 37.58940144 | F38: 21.78841726 | G38: 0 | H38: 0 | I38: 0 | J38: 59.3778187
A39: VPT 2vg excl.bh excl.db | B39: V424 | C39: ZZP 2vg excl.bh excl.db | D39: V424 VPT 2vg excl.bh excl.db | E39: 52.14766167 | F39: 20.889682 | G39: 0 | H39: 0 | I39: 0 | J39: 73.03734367
A40: VPT 1vg excl.bh incl.db | B40: V415 | C40: ZZP 1vg excl.bh incl.db | D40: V415 VPT 1vg excl.bh incl.db | E40: 75.91042537 | F40: 19.29975915 | G40: 8.084100919 | H40: 1.11418749 | I40: 0 | J40: 104.4084729
A41: VPT 2vg excl.bh incl.db | B41: V425 | C41: ZZP 2vg excl.bh incl.db | D41: V425 VPT 2vg excl.bh incl.db | E41: 80.68141665 | F41: 26.65011339 | G41: 8.084100919 | H41: 1.11418749 | I41: 0 | J41: 116.5298185
A42: VPT 3vg excl.bh excl.db | B42: V430 | C42: ZZP 3vg excl.bh excl.db | D42: V430 VPT 3vg excl.bh excl.db | E42: 78.75717668 | F42: 22.76824741 | G42: 0 | H42: 0 | I42: 0 | J42: 101.5254241
A43: VPT 4vg excl.bh excl.db | B43: V440 | C43: ZZP 4vg excl.bh excl.db | D43: V440 VPT 4vg excl.bh excl.db | E43: 99.78938106 | F43: 24.87892719 | G43: 0 | H43: 0 | I43: 0 | J43: 124.6683082
A44: VPT 5vg excl.bh excl.db | B44: V454 | C44: ZZP 5vg excl.bh excl.db | D44: V454 VPT 5vg excl.bh excl.db | E44: 136.7439005 | F44: 32.00988897 | G44: 0 | H44: 0 | I44: 0 | J44: 168.7537895
A45: VPT 6vg excl.bh excl.db | B45: V460 | C45: ZZP 6vg excl.bh excl.db | D45: V460 VPT 6vg excl.bh excl.db | E45: 104.5302991 | F45: 27.44907909 | G45: 0 | H45: 0 | I45: 0 | J45: 131.9793782
A46: VPT 7vg excl.bh excl.db | B46: V470 | C46: ZZP 7vg excl.bh excl.db | D46: V470 VPT 7vg excl.bh excl.db | E46: 153.1824135 | F46: 32.89712234 | G46: 0 | H46: 0 | I46: 0 | J46: 186.0795359
A47: VPT 8vg excl.bh excl.db | B47: V480 | C47: ZZP 8vg excl.bh excl.db | D47: V480 VPT 8vg excl.bh excl.db | E47: 161.8502774 | F47: 35.57522271 | G47: 0 | H47: 0 | I47: 0 | J47: 197.4255001
A49: VPT 3vg excl.bh incl.db | B49: V431 | C49: ZZP 3vg excl.bh incl.db | D49: V431 VPT 3vg excl.bh incl.db | E49: 105.8175225 | F49: 27.90421517 | G49: 8.084100919 | H49: 1.11418749 | I49: 0 | J49: 142.9200261
A50: VPT 4vg excl.bh incl.db | B50: V441 | C50: ZZP 4vg excl.bh incl.db | D50: V441 VPT 4vg excl.bh incl.db | E50: 127.8202636 | F50: 28.18013041 | G50: 8.084100919 | H50: 1.11418749 | I50: 0 | J50: 165.1986824
A51: VPT 5vg excl.bh incl.db | B51: V455 | C51: ZZP 5vg excl.bh incl.db | D51: V455 VPT 5vg excl.bh incl.db | E51: 178.6309709 | F51: 42.51568649 | G51: 9.622925866 | H51: 0.8092519663 | I51: 0 | J51: 231.5788352
A52: VPT 6vg excl.bh incl.db | B52: V461 | C52: ZZP 6vg excl.bh incl.db | D52: V461 VPT 6vg excl.bh incl.db | E52: 148.3479626 | F52: 34.40608467 | G52: 9.622925866 | H52: 0.8796217025 | I52: 0 | J52: 193.2565948
A53: VPT 7vg excl.bh incl.db | B53: V471 | C53: ZZP 7vg excl.bh incl.db | D53: V471 VPT 7vg excl.bh incl.db | E53: 200.0122803 | F53: 45.7750542 | G53: 9.622925866 | H53: 0.7975236769 | I53: 0 | J53: 256.207784
A54: VPT 8vg excl.bh incl.db | B54: V481 | C54: ZZP 8vg excl.bh incl.db | D54: V481 VPT 8vg excl.bh incl.db | E54: 224.1470392 | F54: 47.07847402 | G54: 11.66766586 | H54: 0.8092519663 | I54: 0 | J54: 283.702431
A56: VPT 3vg incl.bh excl.db | B56: V432 | C56: ZZP 3vg incl.bh excl.db | D56: V432 VPT 3vg incl.bh excl.db | E56: 94.48423452 | F56: 30.92634996 | G56: 0 | H56: 0 | I56: 0 | J56: 125.4105845
A57: VPT 4vg incl.bh excl.db | B57: V442 | C57: ZZP 4vg incl.bh excl.db | D57: V442 VPT 4vg incl.bh excl.db | E57: 130.8855249 | F57: 34.7661961 | G57: 0 | H57: 0 | I57: 0 | J57: 165.651721
A58: VPT 5vg incl.bh excl.db | B58: V456 | C58: ZZP 5vg incl.bh excl.db | D58: V456 VPT 5vg incl.bh excl.db | E58: 152.6776496 | F58: 50.07752833 | G58: 0 | H58: 0 | I58: 0 | J58: 202.7551779
A59: VPT 6vg incl.bh excl.db | B59: V462 | C59: ZZP 6vg incl.bh excl.db | D59: V462 VPT 6vg incl.bh excl.db | E59: 139.8534976 | F59: 37.67424182 | G59: 0 | H59: 0 | I59: 0 | J59: 177.5277394
A60: VPT 7vg incl.bh excl.db | B60: V472 | C60: ZZP 7vg incl.bh excl.db | D60: V472 VPT 7vg incl.bh excl.db | E60: 213.9993034 | F60: 51.37366798 | G60: 0 | H60: 0 | I60: 0 | J60: 265.3729714
A61: VPT 8vg incl.bh excl.db | B61: V482 | C61: ZZP 8vg incl.bh excl.db | D61: V482 VPT 8vg incl.bh excl.db | E61: 200.1372794 | F61: 44.58899461 | G61: 0 | H61: 0 | I61: 0 | J61: 244.726274
A63: VPT 3vg incl.bh incl.db | B63: V433 | C63: ZZP 3vg incl.bh incl.db | D63: V433 VPT 3vg incl.bh incl.db | E63: 121.6489241 | F63: 37.05427995 | G63: 8.084100919 | H63: 1.11418749 | I63: 0 | J63: 167.9014924
A64: VPT 4vg incl.bh incl.db | B64: V443 | C64: ZZP 4vg incl.bh incl.db | D64: V443 VPT 4vg incl.bh incl.db | E64: 144.9216923 | F64: 40.96798248 | G64: 8.084100919 | H64: 1.11418749 | I64: 0 | J64: 195.0879632
A65: VPT 5vg incl.bh incl.db | B65: V457 | C65: ZZP 5vg incl.bh incl.db | D65: V457 VPT 5vg incl.bh incl.db | E65: 207.5465663 | F65: 50.57478065 | G65: 9.622925866 | H65: 0.8092519663 | I65: 0 | J65: 268.5535248
A66: VPT 6vg incl.bh incl.db | B66: V463 | C66: ZZP 6vg incl.bh incl.db | D66: V463 VPT 6vg incl.bh incl.db | E66: 172.3971955 | F66: 46.07477419 | G66: 9.622925866 | H66: 0.8796217025 | I66: 0 | J66: 228.9745173
A67: VPT 7vg incl.bh incl.db | B67: V473 | C67: ZZP 7vg incl.bh incl.db | D67: V473 VPT 7vg incl.bh incl.db | E67: 193.2137633 | F67: 60.32471263 | G67: 9.622925866 | H67: 0.7975236769 | I67: 0 | J67: 263.9589255
A68: VPT 8vg incl.bh incl.db | B68: V483 | C68: ZZP 8vg incl.bh incl.db | D68: V483 VPT 8vg incl.bh incl.db | E68: 258.2740525 | F68: 58.54434459 | G68: 11.66766586 | H68: 0.8092519663 | I68: 0 | J68: 329.2953149
A70: VPT 1lvg incl.bh incl.db | B70: V513 | C70: ZZP 1lvg incl.bh incl.db | D70: V513 VPT 1lvg incl.bh incl.db | E70: 156.4120665 | F70: 40.14973274 | G70: 0 | H70: 0 | I70: 0 | J70: 196.5617992
A71: VPT 2lvg incl.bh incl.db | B71: V523 | C71: ZZP 2lvg incl.bh incl.db | D71: V523 VPT 2lvg incl.bh incl.db | E71: 196.9806916 | F71: 46.33965922 | G71: 0 | H71: 0 | I71: 0 | J71: 243.3203508
A72: VPT 3lvg incl.bh incl.db | B72: V533 | C72: ZZP 3lvg incl.bh incl.db | D72: V533 VPT 3lvg incl.bh incl.db | E72: 260.6425989 | F72: 55.28628211 | G72: 0 | H72: 0 | I72: 0 | J72: 315.928881
A73: VPT 4lvg incl.bh incl.db | B73: V543 | C73: ZZP 4lvg incl.bh incl.db | D73: V543 VPT 4lvg incl.bh incl.db | E73: 312.979545 | F73: 58.03240181 | G73: 0 | H73: 0 | I73: 0 | J73: 371.0119468
A74: VPT 5lvg incl.bh incl.db | B74: V553 | C74: ZZP 5lvg incl.bh incl.db | D74: V553 VPT 5lvg incl.bh incl.db | E74: 293.9814589 | F74: 57.77010835 | G74: 0 | H74: 0 | I74: 0 | J74: 351.7515672
A76: VPT 1sglvg incl.bh incl.db | B76: V573 | C76: ZZP 1sglvg incl.bh incl.db | D76: V573 VPT 1sglvg incl.bh incl.db | E76: 303.4354163 | F76: 92.21430353 | G76: 0 | H76: 0 | I76: 0 | J76: 395.6497198
A78: VPT 1lg excl.bh excl.db | B78: V614 | C78: ZZP 1lg excl.bh excl.db | D78: V614 VPT 1lg excl.bh excl.db | E78: 68.21751483 | F78: 18.56393319 | G78: 0 | H78: 0 | I78: 0 | J78: 86.78144802
A79: VPT 2lg excl.bh excl.db | B79: V624 | C79: ZZP 2lg excl.bh excl.db | D79: V624 VPT 2lg excl.bh excl.db | E79: 100.8639813 | F79: 25.70063009 | G79: 0 | H79: 0 | I79: 0 | J79: 126.5646114
A80: VPT 1lg excl.bh incl.db | B80: V615 | C80: ZZP 1lg excl.bh incl.db | D80: V615 VPT 1lg excl.bh incl.db | E80: 109.9163627 | F80: 29.14845886 | G80: 8.084100919 | H80: 1.536405907 | I80: 0 | J80: 148.6853284
A81: VPT 2lg excl.bh incl.db | B81: V625 | C81: ZZP 2lg excl.bh incl.db | D81: V625 VPT 2lg excl.bh incl.db | E81: 137.7213694 | F81: 29.97585062 | G81: 8.084100919 | H81: 1.536405907 | I81: 0 | J81: 177.3177269
A82: VPT 3lg excl.bh excl.db | B82: V630 | C82: ZZP 3lg excl.bh excl.db | D82: V630 VPT 3lg excl.bh excl.db | E82: 73.95836406 | F82: 24.3672949 | G82: 0 | H82: 0 | I82: 0 | J82: 98.32565896
A83: VPT 4lg excl.bh excl.db | B83: V640 | C83: ZZP 4lg excl.bh excl.db | D83: V640 VPT 4lg excl.bh excl.db | E83: 123.5971398 | F83: 30.34130727 | G83: 0 | H83: 0 | I83: 0 | J83: 153.9384471
A84: VPT 5lg excl.bh excl.db | B84: V650 | C84: ZZP 5lg excl.bh excl.db | D84: V650 VPT 5lg excl.bh excl.db | E84: 120.4258081 | F84: 35.26750028 | G84: 0 | H84: 0 | I84: 0 | J84: 155.6933083
A85: VPT 6lg excl.bh excl.db | B85: V660 | C85: ZZP 6lg excl.bh excl.db | D85: V660 VPT 6lg excl.bh excl.db | E85: 178.5949494 | F85: 38.09321461 | G85: 0 | H85: 0 | I85: 0 | J85: 216.688164
A86: VPT 7lg excl.bh excl.db | B86: V670 | C86: ZZP 7lg excl.bh excl.db | D86: V670 VPT 7lg excl.bh excl.db | E86: 205.6383374 | F86: 39.73883058 | G86: 0 | H86: 0 | I86: 0 | J86: 245.377168
A88: VPT 3lg excl.bh incl.db | B88: V631 | C88: ZZP 3lg excl.bh incl.db | D88: V631 VPT 3lg excl.bh incl.db | E88: 122.0224252 | F88: 31.40616191 | G88: 8.084100919 | H88: 1.536405907 | I88: 0 | J88: 163.0490939
A89: VPT 4lg excl.bh incl.db | B89: V641 | C89: ZZP 4lg excl.bh incl.db | D89: V641 VPT 4lg excl.bh incl.db | E89: 165.9096626 | F89: 30.88213009 | G89: 8.084100919 | H89: 1.536405907 | I89: 0 | J89: 206.4122996
A90: VPT 5lg excl.bh incl.db | B90: V651 | C90: ZZP 5lg excl.bh incl.db | D90: V651 VPT 5lg excl.bh incl.db | E90: 166.6642192 | F90: 40.30484811 | G90: 9.633465763 | H90: 0.8092519663 | I90: 0 | J90: 217.411785
A91: VPT 6lg excl.bh incl.db | B91: V661 | C91: ZZP 6lg excl.bh incl.db | D91: V661 VPT 6lg excl.bh incl.db | E91: 219.8436665 | F91: 34.27078223 | G91: 11.66766586 | H91: 0.8092519663 | I91: 0 | J91: 266.5913666
A92: VPT 7lg excl.bh incl.db | B92: V671 | C92: ZZP 7lg excl.bh incl.db | D92: V671 VPT 7lg excl.bh incl.db | E92: 239.5044212 | F92: 44.84811137 | G92: 11.66766586 | H92: 0.8092519663 | I92: 0 | J92: 296.8294504
A94: VPT 3lg incl.bh excl.db | B94: V632 | C94: ZZP 3lg incl.bh excl.db | D94: V632 VPT 3lg incl.bh excl.db | E94: 92.14329883 | F94: 31.34890189 | G94: 0 | H94: 0 | I94: 0 | J94: 123.4922007
A95: VPT 4lg incl.bh excl.db | B95: V642 | C95: ZZP 4lg incl.bh excl.db | D95: V642 VPT 4lg incl.bh excl.db | E95: 153.8813786 | F95: 39.4932358 | G95: 0 | H95: 0 | I95: 0 | J95: 193.3746144
A96: VPT 5lg incl.bh excl.db | B96: V652 | C96: ZZP 5lg incl.bh excl.db | D96: V652 VPT 5lg incl.bh excl.db | E96: 155.7079944 | F96: 40.46346681 | G96: 0 | H96: 0 | I96: 0 | J96: 196.1714612
A97: VPT 6lg incl.bh excl.db | B97: V662 | C97: ZZP 6lg incl.bh excl.db | D97: V662 VPT 6lg incl.bh excl.db | E97: 222.5545068 | F97: 49.11374499 | G97: 0 | H97: 0 | I97: 0 | J97: 271.6682518
A98: VPT 7lg incl.bh excl.db | B98: V672 | C98: ZZP 7lg incl.bh excl.db | D98: V672 VPT 7lg incl.bh excl.db | E98: 250.9827831 | F98: 53.081725 | G98: 0 | H98: 0 | I98: 0 | J98: 304.0645081
A100: VPT 3lg incl.bh incl.db | B100: V633 | C100: ZZP 3lg incl.bh incl.db | D100: V633 VPT 3lg incl.bh incl.db | E100: 131.546293 | F100: 42.82603193 | G100: 8.084100919 | H100: 1.536405907 | I100: 0 | J100: 183.9928317
A101: VPT 4lg incl.bh incl.db | B101: V643 | C101: ZZP 4lg incl.bh incl.db | D101: V643 VPT 4lg incl.bh incl.db | E101: 176.8262974 | F101: 43.45157623 | G101: 8.084100919 | H101: 1.536405907 | I101: 0 | J101: 229.8983805
A102: VPT 5lg incl.bh incl.db | B102: V653 | C102: ZZP 5lg incl.bh incl.db | D102: V653 VPT 5lg incl.bh incl.db | E102: 193.6360838 | F102: 52.51817224 | G102: 9.633465763 | H102: 0.8092519663 | I102: 0 | J102: 256.5969738
A103: VPT 6lg incl.bh incl.db | B103: V663 | C103: ZZP 6lg incl.bh incl.db | D103: V663 VPT 6lg incl.bh incl.db | E103: 251.90028 | F103: 58.13395768 | G103: 11.66766586 | H103: 0.8092519663 | I103: 0 | J103: 322.5111555
A104: VPT 7lg incl.bh incl.db | B104: V673 | C104: ZZP 7lg incl.bh incl.db | D104: V673 VPT 7lg incl.bh incl.db | E104: 265.628426 | F104: 56.60744168 | G104: 11.66766586 | H104: 0.8092519663 | I104: 0 | J104: 334.7127855
A106: VPT 1zg-auditief excl.bh excl.db | B106: V710 | C106: ZZP 1zg-auditief excl.bh excl.db | D106: V710 VPT 1zg-auditief excl.bh excl.db | E106: 118.7530232 | F106: 28.74436675 | G106: 0 | H106: 0 | I106: 0 | J106: 147.49739
A107: VPT 2zg-auditief excl.bh excl.db | B107: V720 | C107: ZZP 2zg-auditief excl.bh excl.db | D107: V720 VPT 2zg-auditief excl.bh excl.db | E107: 247.327534 | F107: 54.10224921 | G107: 0 | H107: 0 | I107: 0 | J107: 301.4297832
A108: VPT 3zg-auditief excl.bh excl.db | B108: V730 | C108: ZZP 3zg-auditief excl.bh excl.db | D108: V730 VPT 3zg-auditief excl.bh excl.db | E108: 281.7981585 | F108: 63.47522271 | G108: 0 | H108: 0 | I108: 0 | J108: 345.2733813
A109: VPT 4zg-auditief excl.bh excl.db | B109: V740 | C109: ZZP 4zg-auditief excl.bh excl.db | D109: V740 VPT 4zg-auditief excl.bh excl.db | E109: 134.8181395 | F109: 42.99546406 | G109: 0 | H109: 0 | I109: 0 | J109: 177.8136036
A111: VPT 1zg-auditief excl.bh incl.db | B111: V711 | C111: ZZP 1zg-auditief excl.bh incl.db | D111: V711 VPT 1zg-auditief excl.bh incl.db | E111: 136.4423856 | F111: 43.37018538 | G111: 8.084100919 | H111: 1.208013805 | I111: 0 | J111: 189.1046857
A112: VPT 2zg-auditief excl.bh incl.db | B112: V721 | C112: ZZP 2zg-auditief excl.bh incl.db | D112: V721 VPT 2zg-auditief excl.bh incl.db | E112: 277.2286596 | F112: 68.42918819 | G112: 8.084100919 | H112: 1.208013805 | I112: 0 | J112: 354.9499625
A113: VPT 3zg-auditief excl.bh incl.db | B113: V731 | C113: ZZP 3zg-auditief excl.bh incl.db | D113: V731 VPT 3zg-auditief excl.bh incl.db | E113: 297.8689839 | F113: 82.59064851 | G113: 9.633465763 | H113: 1.208013805 | I113: 0 | J113: 391.3011119
A114: VPT 4zg-auditief excl.bh incl.db | B114: V741 | C114: ZZP 4zg-auditief excl.bh incl.db | D114: V741 VPT 4zg-auditief excl.bh incl.db | E114: 179.1674452 | F114: 57.36604388 | G114: 8.084100919 | H114: 1.208013805 | I114: 0 | J114: 245.8256038
A116: VPT 1zg-auditief incl.bh excl.db | B116: V712 | C116: ZZP 1zg-auditief incl.bh excl.db | D116: V712 VPT 1zg-auditief incl.bh excl.db | E116: 121.7727412 | F116: 17.84307931 | G116: 0 | H116: 0 | I116: 0 | J116: 139.6158205
A117: VPT 2zg-auditief incl.bh excl.db | B117: V722 | C117: ZZP 2zg-auditief incl.bh excl.db | D117: V722 VPT 2zg-auditief incl.bh excl.db | E117: 278.9367653 | F117: 27.9573933 | G117: 0 | H117: 0 | I117: 0 | J117: 306.8941586
A118: VPT 3zg-auditief incl.bh excl.db | B118: V732 | C118: ZZP 3zg-auditief incl.bh excl.db | D118: V732 VPT 3zg-auditief incl.bh excl.db | E118: 318.2076108 | F118: 34.72601158 | G118: 0 | H118: 0 | I118: 0 | J118: 352.9336223
A119: VPT 4zg-auditief incl.bh excl.db | B119: V742 | C119: ZZP 4zg-auditief incl.bh excl.db | D119: V742 VPT 4zg-auditief incl.bh excl.db | E119: 153.8366354 | F119: 49.15805916 | G119: 0 | H119: 0 | I119: 0 | J119: 202.9946946
A121: VPT 1zg-auditief incl.bh incl.db | B121: V713 | C121: ZZP 1zg-auditief incl.bh incl.db | D121: V713 VPT 1zg-auditief incl.bh incl.db | E121: 166.8867141 | F121: 21.62266292 | G121: 8.084100919 | H121: 1.208013805 | I121: 0 | J121: 197.8014917
A122: VPT 2zg-auditief incl.bh incl.db | B122: V723 | C122: ZZP 2zg-auditief incl.bh incl.db | D122: V723 VPT 2zg-auditief incl.bh incl.db | E122: 330.2976638 | F122: 50.73089212 | G122: 8.084100919 | H122: 1.208013805 | I122: 0 | J122: 390.3206707
A123: VPT 3zg-auditief incl.bh incl.db | B123: V733 | C123: ZZP 3zg-auditief incl.bh incl.db | D123: V733 VPT 3zg-auditief incl.bh incl.db | E123: 392.4113971 | F123: 57.64131132 | G123: 9.633465763 | H123: 1.208013805 | I123: 0 | J123: 460.894188
A124: VPT 4zg-auditief incl.bh incl.db | B124: V743 | C124: ZZP 4zg-auditief incl.bh incl.db | D124: V743 VPT 4zg-auditief incl.bh incl.db | E124: 198.1777856 | F124: 63.52599635 | G124: 8.084100919 | H124: 1.208013805 | I124: 0 | J124: 270.9958967
A126: VPT 1zg-visueel excl.bh excl.db | B126: V814 | C126: ZZP 1zg-visueel excl.bh excl.db | D126: V814 VPT 1zg-visueel excl.bh excl.db | E126: 52.59947034 | F126: 25.29633634 | G126: 0 | H126: 0 | I126: 0 | J126: 77.89580668
A127: VPT 2zg-visueel excl.bh excl.db | B127: V824 | C127: ZZP 2zg-visueel excl.bh excl.db | D127: V824 VPT 2zg-visueel excl.bh excl.db | E127: 93.27188499 | F127: 32.77115513 | G127: 0 | H127: 0 | I127: 0 | J127: 126.0430401
A128: VPT 1zg-visueel excl.bh incl.db | B128: V815 | C128: ZZP 1zg-visueel excl.bh incl.db | D128: V815 VPT 1zg-visueel excl.bh incl.db | E128: 96.63246241 | F128: 31.26919091 | G128: 8.084100919 | H128: 1.208013805 | I128: 0 | J128: 137.193768
A129: VPT 2zg-visueel excl.bh incl.db | B129: V825 | C129: ZZP 2zg-visueel excl.bh incl.db | D129: V825 VPT 2zg-visueel excl.bh incl.db | E129: 131.9863295 | F129: 36.27435521 | G129: 8.084100919 | H129: 1.208013805 | I129: 0 | J129: 177.5527994
A130: VPT 3zg-visueel excl.bh excl.db | B130: V830 | C130: ZZP 3zg-visueel excl.bh excl.db | D130: V830 VPT 3zg-visueel excl.bh excl.db | E130: 125.999306 | F130: 35.84361001 | G130: 0 | H130: 0 | I130: 0 | J130: 161.842916
A131: VPT 4zg-visueel excl.bh excl.db | B131: V840 | C131: ZZP 4zg-visueel excl.bh excl.db | D131: V840 VPT 4zg-visueel excl.bh excl.db | E131: 169.7876666 | F131: 41.85237035 | G131: 0 | H131: 0 | I131: 0 | J131: 211.640037
A132: VPT 5zg-visueel excl.bh excl.db | B132: V850 | C132: ZZP 5zg-visueel excl.bh excl.db | D132: V850 VPT 5zg-visueel excl.bh excl.db | E132: 190.1643735 | F132: 44.83607102 | G132: 0 | H132: 0 | I132: 0 | J132: 235.0004445
A134: VPT 3zg-visueel excl.bh incl.db | B134: V831 | C134: ZZP 3zg-visueel excl.bh incl.db | D134: V831 VPT 3zg-visueel excl.bh incl.db | E134: 163.5185111 | F134: 39.15149016 | G134: 8.084100919 | H134: 1.208013805 | I134: 0 | J134: 211.962116
A135: VPT 4zg-visueel excl.bh incl.db | B135: V841 | C135: ZZP 4zg-visueel excl.bh incl.db | D135: V841 VPT 4zg-visueel excl.bh incl.db | E135: 219.1233227 | F135: 46.46160117 | G135: 9.622925866 | H135: 1.208013805 | I135: 0 | J135: 276.4158636
A136: VPT 5zg-visueel excl.bh incl.db | B136: V851 | C136: ZZP 5zg-visueel excl.bh incl.db | D136: V851 VPT 5zg-visueel excl.bh incl.db | E136: 236.775754 | F136: 49.96515319 | G136: 11.66766586 | H136: 1.208013805 | I136: 0 | J136: 299.6165868
A138: VPT 3zg-visueel incl.bh excl.db | B138: V832 | C138: ZZP 3zg-visueel incl.bh excl.db | D138: V832 VPT 3zg-visueel incl.bh excl.db | E138: 136.0284089 | F138: 39.85607985 | G138: 0 | H138: 0 | I138: 0 | J138: 175.8844887
A139: VPT 4zg-visueel incl.bh excl.db | B139: V842 | C139: ZZP 4zg-visueel incl.bh excl.db | D139: V842 VPT 4zg-visueel incl.bh excl.db | E139: 187.8617631 | F139: 44.48072699 | G139: 0 | H139: 0 | I139: 0 | J139: 232.3424901
A140: VPT 5zg-visueel incl.bh excl.db | B140: V852 | C140: ZZP 5zg-visueel incl.bh excl.db | D140: V852 VPT 5zg-visueel incl.bh excl.db | E140: 215.9594852 | F140: 45.98944523 | G140: 0 | H140: 0 | I140: 0 | J140: 261.9489305
A142: VPT 3zg-visueel incl.bh incl.db | B142: V833 | C142: ZZP 3zg-visueel incl.bh incl.db | D142: V833 VPT 3zg-visueel incl.bh incl.db | E142: 174.1344993 | F142: 43.05073661 | G142: 8.084100919 | H142: 1.208013805 | I142: 0 | J142: 226.4773506
A143: VPT 4zg-visueel incl.bh incl.db | B143: V843 | C143: ZZP 4zg-visueel incl.bh incl.db | D143: V843 VPT 4zg-visueel incl.bh incl.db | E143: 237.8643478 | F143: 49.64771729 | G143: 9.622925866 | H143: 1.208013805 | I143: 0 | J143: 298.3430048
A144: VPT 5zg-visueel incl.bh incl.db | B144: V853 | C144: ZZP 5zg-visueel incl.bh incl.db | D144: V853 VPT 5zg-visueel incl.bh incl.db | E144: 263.7852063 | F144: 51.78370124 | G144: 11.66766586 | H144: 1.208013805 | I144: 0 | J144: 328.4445872
A146: Dagbesteding ggz wonen-1 | B146: H001G | D146: H001G Dagbesteding ggz wonen-1 | E146: 36.2228046 | F146: 11.98460265 | G146: 8.082634056 | H146: 0.5746488918 | I146: 0 | J146: 56.86469019
A147: Dagbesteding ggz wonen-2 | B147: H002G | D147: H002G Dagbesteding ggz wonen-2 | E147: 41.02959747 | F147: 13.57672949 | G147: 9.782031248 | H147: 0.5746488918 | I147: 0 | J147: 64.9630071
A148: Dagbesteding ggz wonen-3 | B148: H003G | D148: H003G Dagbesteding ggz wonen-3 | E148: 34.80288404 | F148: 11.51477802 | G148: 8.74029964 | H148: 0.5746488918 | I148: 0 | J148: 55.6326106
A149: Dagbesteding ggz wonen-4 | B149: H004G | D149: H004G Dagbesteding ggz wonen-4 | E149: 45.01604881 | F149: 14.8939091 | G149: 9.787883096 | H149: 0.5746488918 | I149: 0 | J149: 70.27248989
A150: Dagbesteding ggz wonen-5 | B150: H005G | D150: H005G Dagbesteding ggz wonen-5 | E150: 55.96149641 | F150: 18.51528713 | G150: 15.58999693 | H150: 0.5746488918 | I150: 0 | J150: 90.64142936
A152: Dagbesteding vg licht (vg1 en vg4) | B152: H900 | C152: Dagbesteding vg licht (vg1 en vg4) | D152: H900 Dagbesteding vg licht (vg1 en vg4) | E152: 22.31965467 | F152: 5.198657374 | G152: 6.302858344 | H152: 0.8689710124 | I152: 0 | J152: 34.6901414
A153: Dagbesteding vg midden (vg5) | B153: H903 | C153: Dagbesteding vg midden (vg5) | D153: H903 Dagbesteding vg midden (vg5) | E153: 35.18737853 | F153: 8.792234378 | G153: 7.50440659 | H153: 0.811475186 | I153: 0 | J153: 52.29549468
A154: Dagbesteding vg midden (vg6) | B154: H904 | C154: Dagbesteding vg midden (vg6) | D154: H904 Dagbesteding vg midden (vg6) | E154: 35.18737853 | F154: 8.792234378 | G154: 7.50440659 | H154: 0.8820382456 | I154: 0 | J154: 52.36605774
A155: Dagbesteding vg midden (vg8) | B155: H906 | C155: Dagbesteding vg midden (vg8) | D155: H906 Dagbesteding vg midden (vg8) | E155: 62.62362146 | F155: 21.29115131 | G155: 9.095931021 | H155: 0.6311473669 | I155: 0 | J155: 93.64185115
A156: Dagbesteding vg zwaar (vg7) | B156: H902 | C156: Dagbesteding vg zwaar (vg7) | D156: H902 Dagbesteding vg zwaar (vg7) | E156: 62.62362146 | F156: 21.29115131 | G156: 7.50440659 | H156: 0.799714676 | I156: 0 | J156: 92.21889403
A157: Dagbesteding lg licht (lg7) | B157: H910 | C157: Dagbesteding lg licht (lg7) | D157: H910 Dagbesteding lg licht (lg7) | E157: 32.85526735 | F157: 6.455197052 | G157: 11.69928555 | H157: 0.811475186 | I157: 0 | J157: 51.82122514
A158: Dagbesteding lg midden (lg2 en lg4) | B158: H913 | C158: Dagbesteding lg midden (lg2 en lg4) | D158: H913 Dagbesteding lg midden (lg2 en lg4) | E158: 41.42122854 | F158: 7.784524381 | G158: 8.105180713 | H158: 1.540626802 | I158: 0 | J158: 58.85156043
A159: Dagbesteding lg midden (lg6) | B159: H914 | C159: Dagbesteding lg midden (lg6) | D159: H914 Dagbesteding lg midden (lg6) | E159: 41.42122854 | F159: 7.784524381 | G159: 11.69928555 | H159: 0.811475186 | I159: 0 | J159: 61.71651366
A160: Dagbesteding lg zwaar (lg1 en lg3) | B160: H915 | C160: Dagbesteding lg zwaar (lg1 en lg3) | D160: H915 Dagbesteding lg zwaar (lg1 en lg3) | E160: 47.52026865 | F160: 8.172302257 | G160: 8.105180713 | H160: 1.540626802 | I160: 0 | J160: 65.33837842
A161: Dagbesteding lg zwaar (lg5) | B161: H916 | C161: Dagbesteding lg zwaar (lg5) | D161: H916 Dagbesteding lg zwaar (lg5) | E161: 47.52026865 | F161: 8.172302257 | G161: 9.665085454 | H161: 0.811475186 | I161: 0 | J161: 66.16913155
A162: Dagbesteding zg aud licht (zg aud1 en zg aud4) | B162: H920 | C162: Dagbesteding zg aud licht (zg aud1 en zg aud4) | D162: H920 Dagbesteding zg aud licht (zg aud1 en zg aud4) | E162: 32.47224779 | F162: 11.37208666 | G162: 6.302858344 | H162: 0.9421475187 | I162: 0 | J162: 51.08934031
A163: Dagbesteding zg aud midden (zg aud2) | B163: H921 | C163: Dagbesteding zg aud midden (zg aud2) | D163: H921 Dagbesteding zg aud midden (zg aud2) | E163: 45.56379282 | F163: 10.27311912 | G163: 6.302858344 | H163: 0.9421475187 | I163: 0 | J163: 63.0819178
A164: Dagbesteding zg aud zwaar (zg aud3) | B164: H922 | C164: Dagbesteding zg aud zwaar (zg aud3) | D164: H922 Dagbesteding zg aud zwaar (zg aud3) | E164: 57.05357093 | F164: 11.97153381 | G164: 7.514946487 | H164: 0.9421475187 | I164: 0 | J164: 77.48219874
A165: Dagbesteding zg vis licht (zg vis2 en zg vis3) | B165: H930 | C165: Dagbesteding zg vis licht (zg vis2 en zg vis3) | D165: H930 Dagbesteding zg vis licht (zg vis2 en zg vis3) | E165: 34.92307403 | F165: 7.785429309 | G165: 6.302858344 | H165: 0.9421475187 | I165: 0 | J165: 49.9535092
A166: Dagbesteding zg vis midden (zg vis1) | B166: H931 | C166: Dagbesteding zg vis midden (zg vis1) | D166: H931 Dagbesteding zg vis midden (zg vis1) | E166: 37.452268 | F166: 9.765966653 | G166: 6.302858344 | H166: 0.9421475187 | I166: 0 | J166: 54.46324051
A167: Dagbesteding zg vis zwaar (zg vis4) | B167: H933 | C167: Dagbesteding zg vis zwaar (zg vis4) | D167: H933 Dagbesteding zg vis zwaar (zg vis4) | E167: 47.28459085 | F167: 9.056777073 | G167: 7.50440659 | H167: 0.9421475187 | I167: 0 | J167: 64.78792203
A168: Dagbesteding zg vis zwaar (zg vis5) | B168: H934 | C168: Dagbesteding zg vis zwaar (zg vis5) | D168: H934 Dagbesteding zg vis zwaar (zg vis5) | E168: 47.28459085 | F168: 9.056777073 | G168: 9.095931021 | H168: 0.9421475187 | I168: 0 | J168: 66.37944646

Sheet Tarieven ZZP
A1: Bijlage 4 bij BR/REG-22125b Beleidsregel prestatiebeschrijvingen en tarieven zorgzwaartepakketten en volledig pakket thuis 2022 | E1: ( a ) | F1: ( b ) | G1: ( c ) | H1: ( d ) | I1: ( e ) | J1: (a+b+c+d+e)
A2: Onderbouwing beleidsregelwaarde per prestatie | I2: Kapitaallasten dagbesteding kind ghz-
I3: dagbehandeling vg emg -
B4: Code | C4: Prestatie | E4: Loon | F4: Materieel | G4: NHC | H4: NIC | I4: toeslag gespecialiseerde behandelzorg | J4: BRW totaal
B6: Z015 | C6: ZZP 1vv incl.db | D6: Z015 ZZP 1vv incl.db | E6: 50.92953688 | F6: 26.51533151 | G6: 28.48934131 | H6: 2.498125635 | I6: 0 | J6: 108.4323353
B7: Z025 | C7: ZZP 2vv incl.db | D7: Z025 ZZP 2vv incl.db | E7: 76.21489309 | F7: 30.35978103 | G7: 29.92276729 | H7: 2.498125635 | I7: 0 | J7: 138.995567
B8: Z031 | C8: ZZP 3vv excl.bh incl.db | D8: Z031 ZZP 3vv excl.bh incl.db | E8: 103.997799 | F8: 34.01634219 | G8: 32.66314048 | H8: 2.498125635 | I8: 0 | J8: 173.1754073
B9: Z041 | C9: ZZP 4vv excl.bh incl.db | D9: Z041 ZZP 4vv excl.bh incl.db | E9: 94.65694321 | F9: 35.49892676 | G9: 33.13743584 | H9: 2.498125635 | I9: 0 | J9: 165.7914315
B10: Z051 | C10: ZZP 5vv excl.bh incl.db | D10: Z051 ZZP 5vv excl.bh incl.db | E10: 203.8466865 | F10: 50.57309883 | G10: 32.64178719 | H10: 3.622500129 | I10: 0 | J10: 290.6840726
B11: Z061 | C11: ZZP 6vv excl.bh incl.db | D11: Z061 ZZP 6vv excl.bh incl.db | E11: 183.807225 | F11: 47.76422004 | G11: 32.55746801 | H11: 3.632916487 | I11: 0 | J11: 267.7618295
B12: Z071 | C12: ZZP 7vv excl.bh incl.db | D12: Z071 ZZP 7vv excl.bh incl.db | E12: 249.8207111 | F12: 56.28656761 | G12: 33.6117312 | H12: 3.622729483 | I12: 0 | J12: 343.3417394
B13: Z081 | C13: ZZP 8vv excl.bh incl.db | D13: Z081 ZZP 8vv excl.bh incl.db | E13: 339.4270103 | F13: 67.4637345 | G13: 34.6440941 | H13: 4.571179636 | I13: 0 | J13: 446.1060186
B14: Z095 | C14: ZZP 9bvv excl.bh incl.db | D14: Z095 ZZP 9bvv excl.bh incl.db | E14: 169.0534097 | F14: 48.02754512 | G14: 31.70346287 | H14: 4.816161781 | I14: 0 | J14: 253.6005795
B15: Z101 | C15: ZZP 10vv excl.bh incl.db | D15: Z101 ZZP 10vv excl.bh incl.db | E15: 399.8230091 | F15: 81.6718346 | G15: 34.61302141 | H15: 3.612313125 | I15: 0 | J15: 519.7201782
B16: Z033 | C16: ZZP 3vv incl.bh incl.db | D16: Z033 ZZP 3vv incl.bh incl.db | E16: 121.8327229 | F16: 40.39519435 | G16: 33.15851563 | H16: 2.744419712 | I16: 0 | J16: 198.1308526
B17: Z043 | C17: ZZP 4vv incl.bh incl.db | D17: Z043 ZZP 4vv incl.bh incl.db | E17: 114.714444 | F17: 40.54581348 | G17: 33.632811 | H17: 2.744419712 | I17: 0 | J17: 191.6374882
B18: Z053 | C18: ZZP 5vv incl.bh incl.db | D18: Z053 ZZP 5vv incl.bh incl.db | E18: 223.1834796 | F18: 54.53754951 | G18: 33.64335089 | H18: 4.222184172 | I18: 0 | J18: 315.5865642
B19: Z063 | C19: ZZP 6vv incl.bh incl.db | D19: Z063 ZZP 6vv incl.bh incl.db | E19: 202.6152545 | F19: 52.73613783 | G19: 34.38114367 | H19: 4.222184172 | I19: 0 | J19: 293.9547202
B20: Z073 | C20: ZZP 7vv incl.bh incl.db | D20: Z073 ZZP 7vv incl.bh incl.db | E20: 279.7422332 | F20: 62.8601856 | G20: 35.43513336 | H20: 4.222184172 | I20: 0 | J20: 382.2597364
B21: Z083 | C21: ZZP 8vv incl.bh incl.db | D21: Z083 ZZP 8vv incl.bh incl.db | E21: 357.5382118 | F21: 75.03036907 | G21: 36.45750336 | H21: 5.395013109 | I21: 0 | J21: 474.4210974
B22: Z097 | C22: ZZP 9bvv incl.bh incl.db | D22: Z097 ZZP 9bvv incl.bh incl.db | E22: 233.7284804 | F22: 56.55848991 | G22: 43.08709851 | H22: 5.7351335 | I22: 0 | J22: 339.1092023
B23: Z103 | C23: ZZP 10vv incl.bh incl.db | D23: Z103 ZZP 10vv incl.bh incl.db | E23: 405.6224688 | F23: 82.1902113 | G23: 36.45750336 | H23: 4.222184172 | I23: 0 | J23: 528.4923676
B24: Z212 | C24: ZZP 1 ggz wonen met intensieve begeleiding incl. BH excl. DB (integraal bekostigingsmodel) | D24: Z212G ZZP 1 ggz wonen incl. BH excl. DB | E24: 114.9580012 | F24: 35.94359408 | G24: 26.27596296 | H24: 5.864144683 | I24: 0 | J24: 183.0417029
B25: Z222 | C25: ZZP 2 ggz wonen met intensieve begeleiding en verzorging incl. BH excl. DB (integraal bekostigingsmodel) | D25: Z222G ZZP 2 ggz wonen incl. BH excl. DB | E25: 116.7130334 | F25: 40.06350012 | G25: 26.27596296 | H25: 5.864144683 | I25: 0 | J25: 188.9166412
B26: Z232 | C26: ZZP 3 ggz wonen met intensieve begeleiding en gedragsregulering incl. BH excl. DB (integraal bekostigingsmodel) | D26: Z232G ZZP 3 ggz wonen incl. BH excl. DB | E26: 121.1829349 | F26: 44.78984545 | G26: 35.73025048 | H26: 5.864144683 | I26: 0 | J26: 207.5671755
B27: Z242 | C27: ZZP 4 ggz wonen met intensieve begeleiding en intensieve verpleging en verzorging incl. BH excl. DB (integraal bekostigingsmodel) | D27: Z242G ZZP 4 ggz wonen incl. BH excl. DB | E27: 260.3295566 | F27: 61.77817844 | G27: 32.41018296 | H27: 5.864144683 | I27: 0 | J27: 360.3820627
B28: Z252 | C28: ZZP 5 ggz beveiligd wonen vanwege extreme gedragsproblematiek met zeer intensieve begeleiding incl. BH excl. DB (integraal bekostigingsmodel) | D28: Z252G ZZP 5 ggz beveiligd wonen incl. BH excl. DB | E28: 294.6332715 | F28: 64.12706687 | G28: 37.05827749 | H28: 5.864144683 | I28: 0 | J28: 401.6827606
B29: Z213 | C29: ZZP 1 ggz wonen met intensieve begeleiding incl. BH incl. DB (integraal bekostigingsmodel) | D29: Z213G ZZP 1 ggz wonen incl. BH incl. DB | E29: 141.7713327 | F29: 41.6782713 | G29: 37.26907542 | H29: 6.438830862 | I29: 0 | J29: 227.1575103
B30: Z223 | C30: ZZP 2 ggz wonen met intensieve begeleiding en verzorging incl. BH incl. DB (integraal bekostigingsmodel) | D30: Z223G ZZP 2 ggz wonen incl. BH incl. DB | E30: 152.5768468 | F30: 44.08738665 | G30: 37.26907542 | H30: 6.438830862 | I30: 0 | J30: 240.3721397
B31: Z233 | C31: ZZP 3 ggz wonen met intensieve begeleiding en gedragsregulering incl. BH incl. DB (integraal bekostigingsmodel) | D31: Z233G ZZP 3 ggz wonen incl. BH incl. DB | E31: 149.8537311 | F31: 47.79512522 | G31: 47.92491119 | H31: 6.438830862 | I31: 0 | J31: 252.0125984
B32: Z243 | C32: ZZP 4 ggz wonen met intensieve begeleiding en intensieve verpleging en verzorging incl. BH incl. DB (integraal bekostigingsmodel) | D32: Z243G ZZP 4 ggz wonen incl. BH incl. DB | E32: 281.3954772 | F32: 65.56753733 | G32: 42.49686428 | H32: 6.438830862 | I32: 0 | J32: 395.8987096
B33: Z253 | C33: ZZP 5 ggz beveiligd wonen vanwege extreme gedragsproblematiek met zeer intensieve begeleiding incl. BH incl. DB (integraal bekostigingsmodel) | D33: Z253G ZZP 5 ggz beveiligd wonen incl. BH incl. DB | E33: 333.834222 | F33: 71.0501968 | G33: 53.41619747 | H33: 6.438830862 | I33: 0 | J33: 464.7394472
B34: Z211 | C34: ZZP 1 ggz wonen met intensieve begeleiding excl. BH incl. DB - modulair bekostigingsmodel | D34: Z211G ZZP 1 ggz wonen excl. BH incl. DB | E34: 120.0989111 | F34: 39.73556617 | G34: 34.63635683 | H34: 5.418469687 | I34: 0 | J34: 199.8893037
B35: Z221 | C35: ZZP 2 ggz wonen met intensieve begeleiding en verzorging excl. BH incl. DB - modulair bekostigingsmodel | D35: Z221G ZZP 2 ggz wonen excl. BH incl. DB | E35: 141.4367362 | F35: 46.7885781 | G35: 37.89115239 | H35: 5.418469687 | I35: 0 | J35: 231.5349363
B36: Z231 | C36: ZZP 3 ggz wonen met intensieve begeleiding en gedragsregulering excl. BH incl. DB - modulair bekostigingsmodel | D36: Z231G ZZP 3 ggz wonen excl. BH incl. DB | E36: 152.564042 | F36: 50.45661119 | G36: 37.43786525 | H36: 5.418469687 | I36: 0 | J36: 245.8769881
B37: Z241 | C37: ZZP 4 ggz wonen met intensieve begeleiding en intensieve verpleging en verzorging excl. BH incl. DB - modulair bekostigingsmodel | D37: Z241G ZZP 4 ggz wonen excl. BH incl. DB | E37: 187.121754 | F37: 61.80883785 | G37: 38.74256734 | H37: 5.418469687 | I37: 0 | J37: 293.0916289
B38: Z251 | C38: ZZP 5 ggz beveiligd wonen vanwege extreme gedragsproblematiek met zeer intensieve begeleiding excl. BH incl. DB - modulair bekostigingsmodel | D38: Z251G ZZP 5 ggz beveiligd wonen excl. BH incl. DB | E38: 254.1638213 | F38: 84.05122219 | G38: 48.69725478 | H38: 5.418469687 | I38: 0 | J38: 392.3307679
B39: Z210 | C39: ZZP 1 ggz wonen met intensieve begeleiding excl. BH excl. DB - modulair bekostigingsmodel | D39: Z210G ZZP 1 ggz wonen excl. BH excl. DB | E39: 97.79369361 | F39: 32.3557287 | G39: 26.55372156 | H39: 4.855511798 | I39: 0 | J39: 161.5586557
B40: Z220 | C40: ZZP 2 ggz wonen met intensieve begeleiding en verzorging excl. BH excl. DB - modulair bekostigingsmodel | D40: Z220G ZZP 2 ggz wonen excl. BH excl. DB | E40: 117.9232092 | F40: 39.00896295 | G40: 28.10916968 | H40: 4.855511798 | I40: 0 | J40: 189.8968536
B41: Z230 | C41: ZZP 3 ggz wonen met intensieve begeleiding en gedragsregulering excl. BH excl. DB - modulair bekostigingsmodel | D41: Z230G ZZP 3 ggz wonen excl. BH excl. DB | E41: 128.6183459 | F41: 42.53400988 | G41: 28.69752394 | H41: 4.855511798 | I41: 0 | J41: 204.7053915
B42: Z240 | C42: ZZP 4 ggz wonen met intensieve begeleiding en intensieve verpleging en verzorging excl. BH excl. DB - modulair bekostigingsmodel | D42: Z240G ZZP 4 ggz wonen excl. BH excl. DB | E42: 162.5939526 | F42: 53.69364291 | G42: 28.95472636 | H42: 4.855511798 | I42: 0 | J42: 250.0978336
B43: Z250 | C43: ZZP 5 ggz beveiligd wonen vanwege extreme gedragsproblematiek met zeer intensieve begeleiding excl. BH excl. DB - modulair bekostigingsmodel | D43: Z250G ZZP 5 ggz beveiligd wonen excl. BH excl. DB | E43: 216.4928963 | F43: 71.58753271 | G43: 33.10725784 | H43: 4.855511798 | I43: 0 | J43: 326.0431986
B44: Z414 | C44: ZZP 1vg excl.db | D44: Z414 ZZP 1vg excl.db | E44: 37.97203519 | F44: 23.18946277 | G44: 26.55000028 | H44: 1.946896035 | I44: 0 | J44: 89.65839427
B45: Z424 | C45: ZZP 2vg excl.db | D45: Z424 ZZP 2vg excl.db | E45: 51.81435925 | F45: 23.98244173 | G45: 26.55000028 | H45: 1.946896035 | I45: 0 | J45: 104.2936973
B46: Z415 | C46: ZZP 1vg incl.db | D46: Z415 ZZP 1vg incl.db | E46: 70.47067823 | F46: 31.55101258 | G46: 34.6341012 | H46: 3.061083525 | I46: 0 | J46: 139.7168755
B47: Z425 | C47: ZZP 2vg incl.db | D47: Z425 ZZP 2vg incl.db | E47: 85.99512348 | F47: 31.66366921 | G47: 34.6341012 | H47: 3.061083525 | I47: 0 | J47: 155.3539774
B48: Z430 | C48: ZZP 3vg excl.bh excl.db | D48: Z430 ZZP 3vg excl.bh excl.db | E48: 81.90104754 | F48: 27.5147156 | G48: 26.55000028 | H48: 1.946896035 | I48: 0 | J48: 137.9126595
B49: Z440 | C49: ZZP 4vg excl.bh excl.db | D49: Z440 ZZP 4vg excl.bh excl.db | E49: 108.4612824 | F49: 30.61220762 | G49: 26.55000028 | H49: 1.946896035 | I49: 0 | J49: 167.5703863
B50: Z454 | C50: ZZP 5vg excl.bh excl.db | D50: Z454 ZZP 5vg excl.bh excl.db | E50: 136.869526 | F50: 33.45615662 | G50: 24.25230276 | H50: 7.541290063 | I50: 0 | J50: 202.1192754
B51: Z460 | C51: ZZP 6vg excl.bh excl.db | D51: Z460 ZZP 6vg excl.bh excl.db | E51: 115.1773386 | F51: 32.17351796 | G51: 24.25230276 | H51: 4.99625127 | I51: 0 | J51: 176.5994106
B52: Z470 | C52: ZZP 7vg excl.bh excl.db | D52: Z470 ZZP 7vg excl.bh excl.db | E52: 153.234963 | F52: 34.33297363 | G52: 24.25230276 | H52: 7.541290063 | I52: 0 | J52: 219.3615295
B53: Z480 | C53: ZZP 8vg excl.bh excl.db | D53: Z480 ZZP 8vg excl.bh excl.db | E53: 162.8031426 | F53: 37.07311345 | G53: 32.69421318 | H53: 7.572080428 | I53: 0 | J53: 240.1425497
B54: Z431 | C54: ZZP 3vg excl.bh incl.db | D54: Z431 ZZP 3vg excl.bh incl.db | E54: 113.3213259 | F54: 34.48528576 | G54: 34.6341012 | H54: 3.061083525 | I54: 0 | J54: 185.5017964
B55: Z441 | C55: ZZP 4vg excl.bh incl.db | D55: Z441 ZZP 4vg excl.bh incl.db | E55: 140.1669802 | F55: 37.69273727 | G55: 34.6341012 | H55: 3.061083525 | I55: 0 | J55: 215.5549022
B56: Z455 | C56: ZZP 5vg excl.bh incl.db | D56: Z455 ZZP 5vg excl.bh incl.db | E56: 178.7565964 | F56: 43.96195414 | G56: 33.87522862 | H56: 8.350542029 | I56: 0 | J56: 264.9443212
B57: Z461 | C57: ZZP 6vg excl.bh incl.db | D57: Z461 ZZP 6vg excl.bh incl.db | E57: 156.7055949 | F57: 41.81747096 | G57: 33.87522862 | H57: 5.875872973 | I57: 0 | J57: 238.2741674
B58: Z471 | C58: ZZP 7vg excl.bh incl.db | D58: Z471 ZZP 7vg excl.bh incl.db | E58: 200.0648298 | F58: 47.21090549 | G58: 33.87522862 | H58: 8.33881374 | I58: 0 | J58: 289.4897776
B59: Z481 | C59: ZZP 8vg excl.bh incl.db | D59: Z481 ZZP 8vg excl.bh incl.db | E59: 225.0999045 | F59: 48.57636475 | G59: 44.36187904 | H59: 8.381332395 | I59: 0 | J59: 326.4194806
B60: Z432 | C60: ZZP 3vg incl.bh excl.db | D60: Z432 ZZP 3vg incl.bh excl.db | E60: 94.49270805 | F60: 32.10590801 | G60: 26.55000028 | H60: 2.498125635 | I60: 0 | J60: 155.646742
B61: Z442 | C61: ZZP 4vg incl.bh excl.db | D61: Z442 ZZP 4vg incl.bh excl.db | E61: 128.6160746 | F61: 36.93918991 | G61: 26.55000028 | H61: 2.498125635 | I61: 0 | J61: 194.6033905
B62: Z456 | C62: ZZP 5vg incl.bh excl.db | D62: Z456 ZZP 5vg incl.bh excl.db | E62: 168.3838991 | F62: 41.40215599 | G62: 28.70013925 | H62: 8.503009791 | I62: 0 | J62: 246.9892042
B63: Z462 | C63: ZZP 6vg incl.bh excl.db | D63: Z462 ZZP 6vg incl.bh excl.db | E63: 139.8619711 | F63: 39.06611587 | G63: 28.70013925 | H63: 6.051797313 | I63: 0 | J63: 213.6800235
B64: Z472 | C64: ZZP 7vg incl.bh excl.db | D64: Z472 ZZP 7vg incl.bh excl.db | E64: 217.1236802 | F64: 48.58435104 | G64: 28.70013925 | H64: 8.503009791 | I64: 0 | J64: 302.9111802
B65: Z482 | C65: ZZP 8vg incl.bh excl.db | D65: Z482 ZZP 8vg incl.bh excl.db | E65: 200.1457529 | F65: 45.76855266 | G65: 37.11097697 | H65: 8.503009791 | I65: 0 | J65: 291.5282923
B66: Z433 | C66: ZZP 3vg incl.bh incl.db | D66: Z433 ZZP 3vg incl.bh incl.db | E66: 124.0985406 | F66: 39.35952855 | G66: 34.6341012 | H66: 3.612313125 | I66: 0 | J66: 201.7044835
B67: Z443 | C67: ZZP 4vg incl.bh incl.db | D67: Z443 ZZP 4vg incl.bh incl.db | E67: 155.466417 | F67: 44.08796023 | G67: 34.6341012 | H67: 3.612313125 | I67: 0 | J67: 237.8007916
B68: Z457 | C68: ZZP 5vg incl.bh incl.db | D68: Z457 ZZP 5vg incl.bh incl.db | E68: 207.5550399 | F68: 51.7543387 | G68: 38.32306511 | H68: 9.312261757 | I68: 0 | J68: 306.9447054
B69: Z463 | C69: ZZP 6vg incl.bh incl.db | D69: Z463 ZZP 6vg incl.bh incl.db | E69: 180.9459851 | F69: 48.73269656 | G69: 38.32306511 | H69: 6.907962437 | I69: 0 | J69: 274.9097092
B70: Z473 | C70: ZZP 7vg incl.bh incl.db | D70: Z473 ZZP 7vg incl.bh incl.db | E70: 274.7271618 | F70: 63.55120075 | G70: 38.32306511 | H70: 9.312261757 | I70: 0 | J70: 385.9136894
B71: Z483 | C71: ZZP 8vg incl.bh incl.db | D71: Z483 ZZP 8vg incl.bh incl.db | E71: 258.282526 | F71: 59.72390265 | G71: 48.77864283 | H71: 9.312261757 | I71: 0 | J71: 376.0973332
B72: Z513 | C72: ZZP 1lvg incl.bh incl.db | D72: Z513 ZZP 1lvg incl.bh incl.db | E72: 156.42054 | F72: 41.33846673 | G72: 34.6341012 | H72: 3.612313125 | I72: 0 | J72: 236.0054211
B73: Z523 | C73: ZZP 2lvg incl.bh incl.db | D73: Z523 ZZP 2lvg incl.bh incl.db | E73: 196.9891651 | F73: 47.52839321 | G73: 34.6341012 | H73: 3.612313125 | I73: 0 | J73: 282.7639726
B74: Z533 | C74: ZZP 3lvg incl.bh incl.db | D74: Z533 ZZP 3lvg incl.bh incl.db | E74: 260.6510724 | F74: 56.47501609 | G74: 45.05805923 | H74: 6.907962437 | I74: 0 | J74: 369.0921102
B75: Z543 | C75: ZZP 4lvg incl.bh incl.db | D75: Z543 ZZP 4lvg incl.bh incl.db | E75: 312.9880185 | F75: 59.2211358 | G75: 45.05805923 | H75: 6.907962437 | I75: 0 | J75: 424.175176
B76: Z553 | C76: ZZP 5lvg incl.bh incl.db | D76: Z553 ZZP 5lvg incl.bh incl.db | E76: 293.9899324 | F76: 58.95884233 | G76: 45.05805923 | H76: 6.907962437 | I76: 0 | J76: 404.9147964
B77: Z573 | C77: ZZP 1sglvg incl.bh incl.db | D77: Z573 ZZP 1sglvg incl.bh incl.db | E77: 321.1816629 | F77: 97.96464956 | G77: 45.05805923 | H77: 9.312261757 | I77: 0 | J77: 473.5166335
B78: Z614 | C78: ZZP 1lg excl.db | D78: Z614 ZZP 1lg excl.db | E78: 69.47522023 | F78: 28.73102831 | G78: 26.56054018 | H78: 2.801749227 | I78: 0 | J78: 127.5685379
B79: Z624 | C79: ZZP 2lg excl.db | D79: Z624 ZZP 2lg excl.db | E79: 101.4607716 | F79: 31.51513504 | G79: 26.56054018 | H79: 2.801749227 | I79: 0 | J79: 162.338196
B80: Z615 | C80: ZZP 1lg incl.db | D80: Z615 ZZP 1lg incl.db | E80: 113.1882762 | F80: 34.82572905 | G80: 34.6446411 | H80: 4.338155134 | I80: 0 | J80: 186.9968015
B81: Z625 | C81: ZZP 2lg incl.db | D81: Z625 ZZP 2lg incl.db | E81: 139.7555431 | F81: 37.74919114 | G81: 34.6446411 | H81: 4.338155134 | I81: 0 | J81: 216.4875305
B82: Z630 | C82: ZZP 3lg excl.bh excl.db | D82: Z630 ZZP 3lg excl.bh excl.db | E82: 74.98649734 | F82: 30.04653838 | G82: 26.56054018 | H82: 2.801749227 | I82: 0 | J82: 134.3953251
B83: Z640 | C83: ZZP 4lg excl.bh excl.db | D83: Z640 ZZP 4lg excl.bh excl.db | E83: 128.2725976 | F83: 35.66257159 | G83: 26.56054018 | H83: 2.801749227 | I83: 0 | J83: 193.2974586
B84: Z650 | C84: ZZP 5lg excl.bh excl.db | D84: Z650 ZZP 5lg excl.bh excl.db | E84: 121.7243489 | F84: 36.7932893 | G84: 26.32811545 | H84: 7.582496786 | I84: 0 | J84: 192.4282504
B85: Z660 | C85: ZZP 6lg excl.bh excl.db | D85: Z660 ZZP 6lg excl.bh excl.db | E85: 188.8218005 | F85: 44.06372249 | G85: 31.87237472 | H85: 7.572309782 | I85: 0 | J85: 272.3302075
B86: Z670 | C86: ZZP 7lg excl.bh excl.db | D86: Z670 ZZP 7lg excl.bh excl.db | E86: 208.3585076 | F86: 45.87534405 | G86: 31.86183482 | H86: 7.561893424 | I86: 0 | J86: 293.6575799
B87: Z631 | C87: ZZP 3lg excl.bh incl.db | D87: Z631 ZZP 3lg excl.bh incl.db | E87: 118.4942322 | F87: 37.31318157 | G87: 34.6446411 | H87: 4.338155134 | I87: 0 | J87: 194.79021
B88: Z641 | C88: ZZP 4lg excl.bh incl.db | D88: Z641 ZZP 4lg excl.bh incl.db | E88: 167.4722569 | F88: 39.35213575 | G88: 34.6446411 | H88: 4.338155134 | I88: 0 | J88: 245.8071889
B89: Z651 | C89: ZZP 5lg excl.bh incl.db | D89: Z651 ZZP 5lg excl.bh incl.db | E89: 167.96276 | F89: 41.83063713 | G89: 35.96158122 | H89: 8.391748752 | I89: 0 | J89: 254.1467271
B90: Z661 | C90: ZZP 6lg excl.bh incl.db | D90: Z661 ZZP 6lg excl.bh incl.db | E90: 224.4047968 | F90: 46.81403403 | G90: 43.54004058 | H90: 8.381561748 | I90: 0 | J90: 323.1404331
B91: Z671 | C91: ZZP 7lg excl.bh incl.db | D91: Z671 ZZP 7lg excl.bh incl.db | E91: 243.4928697 | F91: 48.21866896 | G91: 43.52950068 | H91: 8.371145391 | I91: 0 | J91: 343.6121847
B92: Z632 | C92: ZZP 3lg incl.bh excl.db | D92: Z632 ZZP 3lg incl.bh excl.db | E92: 92.21108708 | F92: 32.54455835 | G92: 26.55000028 | H92: 3.366019048 | I92: 0 | J92: 154.6716648
B93: Z642 | C93: ZZP 4lg incl.bh excl.db | D93: Z642 ZZP 4lg incl.bh excl.db | E93: 153.9322198 | F93: 40.68340088 | G93: 26.55000028 | H93: 3.366019048 | I93: 0 | J93: 224.53164
B94: Z652 | C94: ZZP 5lg incl.bh excl.db | D94: Z652 ZZP 5lg incl.bh excl.db | E94: 155.7757826 | F94: 41.65912328 | G94: 30.74487925 | H94: 8.503009791 | I94: 0 | J94: 236.6827949
B95: Z662 | C95: ZZP 6lg incl.bh excl.db | D95: Z662 ZZP 6lg incl.bh excl.db | E95: 222.6307686 | F95: 50.31214714 | G95: 36.28886501 | H95: 8.503009791 | I95: 0 | J95: 317.7347906
B96: Z672 | C96: ZZP 7lg incl.bh excl.db | D96: Z672 ZZP 7lg incl.bh excl.db | E96: 251.0251508 | F96: 54.26914438 | G96: 36.28886501 | H96: 8.503009791 | I96: 0 | J96: 350.08617
B97: Z633 | C97: ZZP 3lg incl.bh incl.db | D97: Z633 ZZP 3lg incl.bh incl.db | E97: 131.6140812 | F97: 44.02168839 | G97: 34.6341012 | H97: 4.914153245 | I97: 0 | J97: 215.1840241
B98: Z643 | C98: ZZP 4lg incl.bh incl.db | D98: Z643 ZZP 4lg incl.bh incl.db | E98: 186.230429 | F98: 50.03165339 | G98: 34.6341012 | H98: 4.914153245 | I98: 0 | J98: 275.8103369
B99: Z653 | C99: ZZP 5lg incl.bh incl.db | D99: Z653 ZZP 5lg incl.bh incl.db | E99: 193.7038721 | F99: 53.7138287 | G99: 40.36780511 | H99: 9.312261757 | I99: 0 | J99: 297.0977676
B100: Z663 | C100: ZZP 6lg incl.bh incl.db | D100: Z663 ZZP 6lg incl.bh incl.db | E100: 251.9765418 | F100: 59.33235984 | G100: 47.95653088 | H100: 9.312261757 | I100: 0 | J100: 368.5776943
B101: Z673 | C101: ZZP 7lg incl.bh incl.db | D101: Z673 ZZP 7lg incl.bh incl.db | E101: 265.6707937 | F101: 57.79486106 | G101: 47.95653088 | H101: 9.312261757 | I101: 0 | J101: 380.7344474
B102: Z710 | C102: ZZP 1zg-auditief excl.bh excl.db | D102: Z710 ZZP 1zg-auditief excl.bh excl.db | E102: 118.7530232 | F102: 30.14268733 | G102: 26.55000028 | H102: 7.072158488 | I102: 0 | J102: 182.5178693
B103: Z720 | C103: ZZP 2zg-auditief excl.bh excl.db | D103: Z720 ZZP 2zg-auditief excl.bh excl.db | E103: 247.3484715 | F103: 55.50056979 | G103: 26.55000028 | H103: 7.072158488 | I103: 0 | J103: 336.4712001
B104: Z730 | C104: ZZP 3zg-auditief excl.bh excl.db | D104: Z730 ZZP 3zg-auditief excl.bh excl.db | E104: 282.0284719 | F104: 64.88395965 | G104: 24.92658266 | H104: 7.082345492 | I104: 0 | J104: 378.9213597
B105: Z740 | C105: ZZP 4zg-auditief excl.bh excl.db | D105: Z740 ZZP 4zg-auditief excl.bh excl.db | E105: 140.4372406 | F105: 44.8162308 | G105: 26.55000028 | H105: 7.072158488 | I105: 0 | J105: 218.8756301
B106: Z711 | C106: ZZP 1zg-auditief excl.bh incl.db | D106: Z711 ZZP 1zg-auditief excl.bh incl.db | E106: 136.4423856 | F106: 44.76850595 | G106: 34.6341012 | H106: 8.280172293 | I106: 0 | J106: 224.125165
B107: Z721 | C107: ZZP 2zg-auditief excl.bh incl.db | D107: Z721 ZZP 2zg-auditief excl.bh incl.db | E107: 277.2495972 | F107: 69.82750877 | G107: 34.6341012 | H107: 8.280172293 | I107: 0 | J107: 389.9913795
B108: Z731 | C108: ZZP 3zg-auditief excl.bh incl.db | D108: Z731 ZZP 3zg-auditief excl.bh incl.db | E108: 298.0992972 | F108: 83.99938545 | G108: 34.56004843 | H108: 8.290359297 | I108: 0 | J108: 424.9490904
B109: Z741 | C109: ZZP 4zg-auditief excl.bh incl.db | D109: Z741 ZZP 4zg-auditief excl.bh incl.db | E109: 184.2156651 | F109: 59.00182705 | G109: 34.6341012 | H109: 8.280172293 | I109: 0 | J109: 286.1317657
B110: Z712 | C110: ZZP 1zg-auditief incl.bh excl.db | D110: Z712 ZZP 1zg-auditief incl.bh excl.db | E110: 121.7812148 | F110: 18.99529365 | G110: 26.55000028 | H110: 8.045606506 | I110: 0 | J110: 175.3721152
B111: Z722 | C111: ZZP 2zg-auditief incl.bh excl.db | D111: Z722 ZZP 2zg-auditief incl.bh excl.db | E111: 278.9452388 | F111: 29.10960764 | G111: 26.55000028 | H111: 8.045606506 | I111: 0 | J111: 342.6504532
B112: Z732 | C112: ZZP 3zg-auditief incl.bh excl.db | D112: Z732 ZZP 3zg-auditief incl.bh excl.db | E112: 318.2160843 | F112: 35.87822592 | G112: 29.37469265 | H112: 8.045606506 | I112: 0 | J112: 391.5146094
B113: Z742 | C113: ZZP 4zg-auditief incl.bh excl.db | D113: Z742 ZZP 4zg-auditief incl.bh excl.db | E113: 166.3633977 | F113: 53.21712694 | G113: 26.55000028 | H113: 8.045606506 | I113: 0 | J113: 254.1761315
B114: Z713 | C114: ZZP 1zg-auditief incl.bh incl.db | D114: Z713 ZZP 1zg-auditief incl.bh incl.db | E114: 166.8951876 | F114: 22.77487726 | G114: 34.6341012 | H114: 9.2653486 | I114: 0 | J114: 233.5695147
B115: Z723 | C115: ZZP 2zg-auditief incl.bh incl.db | D115: Z723 ZZP 2zg-auditief incl.bh incl.db | E115: 330.3061373 | F115: 51.88310646 | G115: 34.6341012 | H115: 9.2653486 | I115: 0 | J115: 426.0886936
B116: Z733 | C116: ZZP 3zg-auditief incl.bh incl.db | D116: Z733 ZZP 3zg-auditief incl.bh incl.db | E116: 392.4198706 | F116: 58.79352566 | G116: 38.99761852 | H116: 9.2653486 | I116: 0 | J116: 499.4763634
B117: Z743 | C117: ZZP 4zg-auditief incl.bh incl.db | D117: Z743 ZZP 4zg-auditief incl.bh incl.db | E117: 210.1418223 | F117: 67.4027232 | G117: 34.6341012 | H117: 9.2653486 | I117: 0 | J117: 321.4439953
B118: Z814 | C118: ZZP 1zg-visueel excl.db | D118: Z814 ZZP 1zg-visueel excl.db | E118: 52.70415823 | F118: 26.70766819 | G118: 26.55000028 | H118: 7.072158488 | I118: 0 | J118: 113.0339852
B119: Z824 | C119: ZZP 2zg-visueel excl.db | D119: Z824 ZZP 2zg-visueel excl.db | E119: 93.37657287 | F119: 34.18248698 | G119: 26.55000028 | H119: 7.072158488 | I119: 0 | J119: 161.1812186
B120: Z815 | C120: ZZP 1zg-visueel incl.db | D120: Z815 ZZP 1zg-visueel incl.db | E120: 96.7371503 | F120: 32.68052277 | G120: 34.6341012 | H120: 8.280172293 | I120: 0 | J120: 172.3319466
B121: Z825 | C121: ZZP 2zg-visueel incl.db | D121: Z825 ZZP 2zg-visueel incl.db | E121: 132.0910174 | F121: 37.68568706 | G121: 34.6341012 | H121: 8.280172293 | I121: 0 | J121: 212.6909779
B122: Z830 | C122: ZZP 3zg-visueel excl.bh excl.db | D122: Z830 ZZP 3zg-visueel excl.bh excl.db | E122: 126.1039939 | F122: 37.25494186 | G122: 26.55000028 | H122: 7.072158488 | I122: 0 | J122: 196.9810945
B123: Z840 | C123: ZZP 4zg-visueel excl.bh excl.db | D123: Z840 ZZP 4zg-visueel excl.bh excl.db | E123: 170.0495919 | F123: 43.27411856 | G123: 27.03456204 | H123: 7.082345492 | I123: 0 | J123: 247.440618
B124: Z850 | C124: ZZP 5zg-visueel excl.bh excl.db | D124: Z850 ZZP 5zg-visueel excl.bh excl.db | E124: 190.1643735 | F124: 46.23721587 | G124: 32.66314048 | H124: 7.072158488 | I124: 0 | J124: 276.1368883
B125: Z831 | C125: ZZP 3zg-visueel excl.bh incl.db | D125: Z831 ZZP 3zg-visueel excl.bh incl.db | E125: 163.623199 | F125: 40.56282201 | G125: 34.6341012 | H125: 8.280172293 | I125: 0 | J125: 247.1002945
B126: Z841 | C126: ZZP 4zg-visueel excl.bh incl.db | D126: Z841 ZZP 4zg-visueel excl.bh incl.db | E126: 219.385248 | F126: 47.88334938 | G126: 36.65748791 | H126: 8.290359297 | I126: 0 | J126: 312.2164446
B127: Z851 | C127: ZZP 5zg-visueel excl.bh incl.db | D127: Z851 ZZP 5zg-visueel excl.bh incl.db | E127: 236.775754 | F127: 51.36629804 | G127: 44.33080634 | H127: 8.280172293 | I127: 0 | J127: 340.7530307
B128: Z832 | C128: ZZP 3zg-visueel incl.bh excl.db | D128: Z832 ZZP 3zg-visueel incl.bh excl.db | E128: 136.0368824 | F128: 41.01111846 | G128: 26.55000028 | H128: 8.045606506 | I128: 0 | J128: 211.6436076
B129: Z842 | C129: ZZP 4zg-visueel incl.bh excl.db | D129: Z842 ZZP 4zg-visueel incl.bh excl.db | E129: 187.8702366 | F129: 45.63576561 | G129: 31.47213213 | H129: 8.045606506 | I129: 0 | J129: 273.0237409
B130: Z852 | C130: ZZP 5zg-visueel incl.bh excl.db | D130: Z852 ZZP 5zg-visueel incl.bh excl.db | E130: 215.9679588 | F130: 47.14448384 | G130: 37.11097697 | H130: 8.045606506 | I130: 0 | J130: 308.2690261
B131: Z833 | C131: ZZP 3zg-visueel incl.bh incl.db | D131: Z833 ZZP 3zg-visueel incl.bh incl.db | E131: 174.1429728 | F131: 44.20577522 | G131: 34.6341012 | H131: 9.2653486 | I131: 0 | J131: 262.2481978
B132: Z843 | C132: ZZP 4zg-visueel incl.bh incl.db | D132: Z843 ZZP 4zg-visueel incl.bh incl.db | E132: 237.8728214 | F132: 50.80275591 | G132: 41.095058 | H132: 9.2653486 | I132: 0 | J132: 339.0359839
B133: Z853 | C133: ZZP 5zg-visueel incl.bh incl.db | D133: Z853 ZZP 5zg-visueel incl.bh incl.db | E133: 263.7936798 | F133: 52.93873985 | G133: 48.77864283 | H133: 9.2653486 | I133: 0 | J133: 374.7764111
B134: Z995 | C134: Verblijfscomponent niet-geïndiceerde partner vv | D134: Z995 Verblijfscomponent niet-geïndiceerde partner vv | E134: 4.52498212 | F134: 19.6658432 | G134: 28.48934131 | H134: 2.498125635 | I134: 0 | J134: 55.17829227
B135: Z997 | C135: Verblijfscomponent niet-geïndiceerde partner ghz: vg en lg | D135: Z997 Verblijfscomponent niet-geïndiceerde partner ghz: vg en lg | E135: 4.001271351 | F135: 13.66143564 | G135: 45.66937325 | H135: 5.879632011 | I135: 0 | J135: 69.21171225
B136: Z998 | C136: Verblijfscomponent niet-geïndiceerde partner ghz: zg | D136: Z998 Verblijfscomponent niet-geïndiceerde partner ghz: zg | E136: 25.65702752 | F136: 8.313689609 | G136: 47.11333913 | H136: 8.587662089 | I136: 0 | J136: 89.67171834
B137: Z916 | C137: Mutatiedag (vv), niet toegelaten voor behandeling | D137: Z916 Mutatiedag (vv), niet toegelaten voor behandeling | E137: 48.2846982 | F137: 25.86930193 | G137: 28.48934131 | H137: 2.498125635 | I137: 0 | J137: 105.1414671
B138: Z917 | C138: Mutatiedag (vv), toegelaten voor behandeling | D138: Z917 Mutatiedag (vv), toegelaten voor behandeling | E138: 47.74016909 | F138: 26.89808525 | G138: 28.48934131 | H138: 2.498125635 | I138: 0 | J138: 105.6257213
B139: Z110 | C139: Crisiszorg vv met behandeling | D139: Z110 Crisiszorg vv met behandeling | E139: 245.9798613 | F139: 57.02150429 | G139: 35.43513336 | H139: 4.222184172 | I139: 0 | J139: 342.6586831
B140: Z492 | C140: Crisiszorg ghz - categorie licht | D140: Z492 Crisiszorg ghz - categorie licht | E140: 181.7384263 | F140: 59.11543417 | G140: 38.32306511 | H140: 6.906045171 | I140: 0 | J140: 286.0829707
B141: Z493 | C141: Crisiszorg ghz - categorie midden | D141: Z493 Crisiszorg ghz - categorie midden | E141: 364.6435565 | F141: 88.95777823 | G141: 38.32306511 | H141: 6.906045171 | I141: 0 | J141: 498.830445
B142: Z494 | C142: Crisiszorg ghz - categorie zwaar | D142: Z494 Crisiszorg ghz - categorie zwaar | E142: 395.2062901 | F142: 96.41380709 | G142: 63.8401555 | H142: 6.906045171 | I142: 0 | J142: 562.3662979
B143: Z560 | C143: Crisisopvang/spoedzorg lvg | D143: Z560 Crisisopvang/spoedzorg lvg | E143: 321.9163877 | F143: 66.72133949 | G143: 45.05805923 | H143: 6.907962437 | I143: 0 | J143: 440.6037489
B144: Z280 | C144: Klinisch Intensieve Behandeling | D144: Z280 Klinisch Intensieve Behandeling | E144: 479.2873014 | F144: 155.3042672 | G144: 63.68756826 | H144: 9.124609127 | I144: 0 | J144: 707.403746
B145: Z999 | C145: Logeren ghz-vg | D145: Z999 Logeren ghz-vg | E145: 194.3279249 | F145: 62.96840306 | G145: 45.66937325 | H145: 5.879632011 | I145: 0 | J145: 308.8453332
B146: Z1000 | C146: Logeren ghz-lg | D146: Z1000 Logeren ghz-lg | E146: 222.3744976 | F146: 72.05638098 | G146: 45.66937325 | H146: 5.879632011 | I146: 0 | J146: 345.9798838
B147: Z1001 | C147: Logeren ghz-lvg | D147: Z1001 Logeren ghz-lvg | E147: 215.3934373 | F147: 69.79429634 | G147: 45.66937325 | H147: 5.879632011 | I147: 0 | J147: 336.7367389
B148: Z1002 | C148: Logeren ghz-zg | D148: Z1002 Logeren ghz-zg | E148: 313.2098353 | F148: 101.4899076 | G148: 47.11333913 | H148: 8.587662089 | I148: 0 | J148: 470.4007442
B149: Z1003 | C149: Logeren vv | D149: Z1003 Logeren vv | E149: 175.6438022 | F149: 56.91415547 | G149: 42.65496274 | H149: 3.579276774 | I149: 0 | J149: 278.7921972
B150: Z1004 | C150: Logeren ggz wonen | D150: Z1004 Logeren ggz wonen | E150: 138.8925544 | F150: 45.95357474 | G150: 31.1893232 | H150: 3.616386396 | I150: 0 | J150: 219.6518387
B151: Z1006 | C151: Logeren ghz-zevmb | D151: Z1006 Logeren ghz-zevmb | E151: 389.9418984 | F151: 62.9658713 | G151: 45.6649472 | H151: 5.877901269 | I151: 0 | J151: 504.4506182
B152: Z1007 | C152: Beveiligde zorg LZ niveau 2 | D152: Z1007 Beveiligde zorg LZ niveau 2 | E152: 0 | F152: 0 | G152: 0 | H152: 0 | I152: 0 | J152: 701.8263429
B153: Z1008 | C153: Beveiligde zorg LZ niveau 3 | D153: Z1008 Beveiligde zorg LZ niveau 3 | E153: 0 | F153: 0 | G153: 0 | H153: 0 | I153: 0 | J153: 691.2563429
B154: H001G | C154: Dagbesteding ggz wonen-1 | D154: H001G Dagbesteding ggz wonen-1 | E154: 36.2228046 | F154: 11.98460265 | G154: 8.082634056 | H154: 0.5746488918 | I154: 0 | J154: 56.86469019
B155: H002G | C155: Dagbesteding ggz wonen-2 | D155: H002G Dagbesteding ggz wonen-2 | E155: 41.02959747 | F155: 13.57672949 | G155: 9.782031248 | H155: 0.5746488918 | I155: 0 | J155: 64.9630071
B156: H003G | C156: Dagbesteding ggz wonen-3 | D156: H003G Dagbesteding ggz wonen-3 | E156: 34.80288404 | F156: 11.51477802 | G156: 8.74029964 | H156: 0.5746488918 | I156: 0 | J156: 55.6326106
B157: H004G | C157: Dagbesteding ggz wonen-4 | D157: H004G Dagbesteding ggz wonen-4 | E157: 45.01604881 | F157: 14.8939091 | G157: 9.787883096 | H157: 0.5746488918 | I157: 0 | J157: 70.27248989
B158: H005G | C158: Dagbesteding ggz wonen-5 | D158: H005G Dagbesteding ggz wonen-5 | E158: 55.96149641 | F158: 18.51528713 | G158: 15.58999693 | H158: 0.5746488918 | I158: 0 | J158: 90.64142936
B159: H900 | C159: Dagbesteding vg licht (vg1-vg4) | D159: H900 Dagbesteding vg licht (vg1-vg4) | E159: 22.31965467 | F159: 5.198657374 | G159: 6.302858344 | H159: 0.8689710124 | I159: 0 | J159: 34.6901414
B160: H903 | C160: Dagbesteding vg midden (vg5) | D160: H903 Dagbesteding vg midden (vg5) | E160: 35.18737853 | F160: 8.792234378 | G160: 7.50440659 | H160: 0.811475186 | I160: 0 | J160: 52.29549468
B161: H904 | C161: Dagbesteding vg midden (vg6) | D161: H904 Dagbesteding vg midden (vg6) | E161: 35.18737853 | F161: 8.792234378 | G161: 7.50440659 | H161: 0.8820382456 | I161: 0 | J161: 52.36605774
B162: H906 | C162: Dagbesteding vg zwaar (vg8) | D162: H906 Dagbesteding vg zwaar (vg8) | E162: 62.62362146 | F162: 21.29115131 | G162: 9.095931021 | H162: 0.6311473669 | I162: 0 | J162: 93.64185115
B163: H902 | C163: Dagbesteding vg zwaar (vg7) | D163: H902 Dagbesteding vg zwaar (vg7) | E163: 62.62362146 | F163: 21.29115131 | G163: 7.50440659 | H163: 0.799714676 | I163: 0 | J163: 92.21889403
B164: H910 | C164: Dagbesteding lg licht (lg7) | D164: H910 Dagbesteding lg licht (lg7) | E164: 32.85526735 | F164: 6.455197052 | G164: 11.69928555 | H164: 0.811475186 | I164: 0 | J164: 51.82122514
B165: H913 | C165: Dagbesteding lg midden (lg2 en lg4) | D165: H913 Dagbesteding lg midden (lg2 en lg4) | E165: 41.42122854 | F165: 7.784524381 | G165: 8.105180713 | H165: 1.540626802 | I165: 0 | J165: 58.85156043
B166: H914 | C166: Dagbesteding lg midden (lg6) | D166: H914 Dagbesteding lg midden (lg6) | E166: 41.42122854 | F166: 7.784524381 | G166: 11.69928555 | H166: 0.811475186 | I166: 0 | J166: 61.71651366
B167: H915 | C167: Dagbesteding lg zwaar (lg1 en lg3) | D167: H915 Dagbesteding lg zwaar (lg1 en lg3) | E167: 47.52026865 | F167: 8.172302257 | G167: 8.105180713 | H167: 1.540626802 | I167: 0 | J167: 65.33837842
B168: H916 | C168: Dagbesteding lg zwaar (lg5) | D168: H916 Dagbesteding lg zwaar (lg5) | E168: 47.52026865 | F168: 8.172302257 | G168: 9.665085454 | H168: 0.811475186 | I168: 0 | J168: 66.16913155
B169: H920 | C169: Dagbesteding zg aud licht (zg aud1 en zg aud4) | D169: H920 Dagbesteding zg aud licht (zg aud1 en zg aud4) | E169: 32.47224779 | F169: 11.37208666 | G169: 6.302858344 | H169: 0.9421475187 | I169: 0 | J169: 51.08934031
B170: H921 | C170: Dagbesteding zg aud midden (zg aud2) | D170: H921 Dagbesteding zg aud midden (zg aud2) | E170: 45.56379282 | F170: 10.27311912 | G170: 6.302858344 | H170: 0.9421475187 | I170: 0 | J170: 63.0819178
B171: H922 | C171: Dagbesteding zg aud zwaar (zg aud3) | D171: H922 Dagbesteding zg aud zwaar (zg aud3) | E171: 57.05357093 | F171: 11.97153381 | G171: 7.514946487 | H171: 0.9421475187 | I171: 0 | J171: 77.48219874
B172: H930 | C172: Dagbesteding zg vis licht (zg vis2 en zg vis3) | D172: H930 Dagbesteding zg vis licht (zg vis2 en zg vis3) | E172: 34.92307403 | F172: 7.785429309 | G172: 6.302858344 | H172: 0.9421475187 | I172: 0 | J172: 49.9535092
B173: H931 | C173: Dagbesteding zg vis midden (zg vis1) | D173: H931 Dagbesteding zg vis midden (zg vis1) | E173: 37.452268 | F173: 9.765966653 | G173: 6.302858344 | H173: 0.9421475187 | I173: 0 | J173: 54.46324051
B174: H933 | C174: Dagbesteding zg vis zwaar (zg vis4) | D174: H933 Dagbesteding zg vis zwaar (zg vis4) | E174: 47.28459085 | F174: 9.056777073 | G174: 7.50440659 | H174: 0.9421475187 | I174: 0 | J174: 64.78792203
B175: H934 | C175: Dagbesteding zg vis zwaar (zg vis5) | D175: H934 Dagbesteding zg vis zwaar (zg vis5) | E175: 47.28459085 | F175: 9.056777073 | G175: 9.095931021 | H175: 0.9421475187 | I175: 0 | J175: 66.37944646

Sheet Ruimte behandeling basis MPT
A1: Profiel | B1: VPT EX behandeling | C1: Bedrag | D1: VPT incl behandeling | E1: Bedrag | G1: Per dag | H1: Per week
A2: 1VV | B2: V015 | C2: =VLOOKUP(B2,Tarieven_VPT0,9,FALSE) -> 76.6466195 | D2: nvt | E2: =IFERROR(VLOOKUP(D2,Tarieven_VPT0,9,FALSE),0) -> 0 | F2: =E2-C2 -> -76.6466195 | G2: =IF(F2>0,F2,0) -> 0 | H2: =G2*7 -> 0
A3: 2VV | B3: V025 | C3: 101.5552432 | D3: nvt | E3: 0 | F3: =E3-C3 -> -101.5552432 | G3: =IF(F3>0,F3,0) -> 0 | H3: =G3*7 -> 0
A4: 3VV | B4: V031 | C4: 134.5260147 | D4: V033 | E4: 158.0977463 | F4: 23.57173162 | G4: 23.57173162 | H4: 165.0021213
A5: 4VV | B5: V041 | C5: 126.4621691 | D5: V043 | E5: 138.4283608 | F5: 11.96619164 | G5: 11.96619164 | H5: 83.76334147
A6: 5VV | B6: V051 | C6: 250.7509303 | D6: V053 | E6: 265.4053514 | F6: 14.65442104 | G6: 14.65442104 | H6: 102.5809473
A7: 6VV | B7: V061 | C7: 221.8466448 | D7: V063 | E7: 237.7648057 | F7: 15.91816091 | G7: 15.91816091 | H7: 111.4271263
A8: 7VV | B8: V071 | C8: 306.1785586 | D8: V073 | E8: 325.8639773 | F8: 19.68541869 | G8: 19.68541869 | H8: 137.7979308
A9: 8VV | B9: V081 | C9: 404.6379155 | D9: V083 | E9: 419.5834532 | F9: 14.94553767 | G9: 14.94553767 | H9: 104.6187637
A10: 9VVb | B10: V095 | C10: 218.5115499 | D10: V097 | E10: 280.9793497 | F10: 62.46779986 | G10: 62.46779986 | H10: 437.2745991
A11: 10VV | B11: V101 | C11: 485.1856532 | D11: V103 | E11: 479.2039491 | F11: -5.981704049 | G11: 0 | H11: 0
A12: 1VG | B12: V414 | C12: 59.3778187 | D12: nvt | E12: 0 | F12: -59.3778187 | G12: 0 | H12: 0
A13: 2VG | B13: V424 | C13: 73.03734367 | D13: nvt | E13: 0 | F13: -73.03734367 | G13: 0 | H13: 0
A14: 3VG | B14: V430 | C14: 101.5254241 | D14: V432 | E14: 125.4105845 | F14: 23.88516039 | G14: 23.88516039 | H14: 167.1961227
A15: 4VG | B15: V440 | C15: 124.6683082 | D15: V442 | E15: 165.651721 | F15: 40.98341277 | G15: 40.98341277 | H15: 286.8838894
A16: 5VG | B16: V454 | C16: 168.7537895 | D16: V456 | E16: 202.7551779 | F16: 34.00138845 | G16: 34.00138845 | H16: 238.0097192
A17: 6VG | B17: V460 | C17: 131.9793782 | D17: V462 | E17: 177.5277394 | F17: 45.5483612 | G17: 45.5483612 | H17: 318.8385284
A18: 7VG | B18: V470 | C18: 186.0795359 | D18: V472 | E18: 265.3729714 | F18: 79.29343549 | G18: 79.29343549 | H18: 555.0540484
A19: 8VG | B19: V480 | C19: 197.4255001 | D19: V482 | E19: 244.726274 | F19: 47.30077391 | G19: 47.30077391 | H19: 331.1054174
A20: 1LVG | B20: V513 | C20: 196.5617992 | D20: V513 | E20: 196.5617992 | F20: 0 | G20: 0 | H20: 0
A21: 2LVG | B21: V523 | C21: 243.3203508 | D21: V523 | E21: 243.3203508 | F21: 0 | G21: 0 | H21: 0
A22: 3LVG | B22: V533 | C22: 315.928881 | D22: V533 | E22: 315.928881 | F22: 0 | G22: 0 | H22: 0
A23: 4LVG | B23: V543 | C23: 371.0119468 | D23: V543 | E23: 371.0119468 | F23: 0 | G23: 0 | H23: 0
A24: 5LVG | B24: V553 | C24: 351.7515672 | D24: V553 | E24: 351.7515672 | F24: 0 | G24: 0 | H24: 0
A25: 1SGLVG | B25: V573 | C25: 395.6497198 | D25: V573 | E25: 395.6497198 | F25: 0 | G25: 0 | H25: 0
A26: 1LG | B26: V614 | C26: 86.78144802 | D26: nvt | E26: 0 | F26: -86.78144802 | G26: 0 | H26: 0
A27: 2LG | B27: V624 | C27: 126.5646114 | D27: nvt | E27: 0 | F27: -126.5646114 | G27: 0 | H27: 0
A28: 3LG | B28: V630 | C28: 98.32565896 | D28: V632 | E28: 123.4922007 | F28: 25.16654175 | G28: 25.16654175 | H28: 176.1657923
A29: 4LG | B29: V640 | C29: 153.9384471 | D29: V642 | E29: 193.3746144 | F29: 39.43616728 | G29: 39.43616728 | H29: 276.053171
A30: 5LG | B30: V650 | C30: 155.6933083 | D30: V652 | E30: 196.1714612 | F30: 40.47815285 | G30: 40.47815285 | H30: 283.34707
A31: 6LG | B31: V660 | C31: 216.688164 | D31: V662 | E31: 271.6682518 | F31: 54.9800878 | G31: 54.9800878 | H31: 384.8606146
A32: 7LG | B32: V670 | C32: 245.377168 | D32: V672 | E32: 304.0645081 | F32: 58.68734017 | G32: 58.68734017 | H32: 410.8113812
A33: 1GGZ-W | B33: Z210 | C33: =VLOOKUP(B33,Tarieven_ZZP0,9,FALSE) -> 161.5586557 | D33: Z212 | E33: =IFERROR(VLOOKUP(D33,Tarieven_ZZP0,9,FALSE),0) -> 183.0417029 | F33: 21.48304725 | G33: 21.48304725 | H33: 0
A34: 2GGZ-W | B34: Z220 | C34: =VLOOKUP(B34,Tarieven_ZZP0,9,FALSE) -> 189.8968536 | D34: Z222 | E34: =IFERROR(VLOOKUP(D34,Tarieven_ZZP0,9,FALSE),0) -> 188.9166412 | F34: -0.9802124101 | G34: 0 | H34: 0
A35: 3GGZ-W | B35: Z230 | C35: =VLOOKUP(B35,Tarieven_ZZP0,9,FALSE) -> 204.7053915 | D35: Z232 | E35: =IFERROR(VLOOKUP(D35,Tarieven_ZZP0,9,FALSE),0) -> 207.5671755 | F35: 2.86178398 | G35: 2.86178398 | H35: 0
A36: 4GGZ-W | B36: Z240 | C36: =VLOOKUP(B36,Tarieven_ZZP0,9,FALSE) -> 250.0978336 | D36: Z242 | E36: =IFERROR(VLOOKUP(D36,Tarieven_ZZP0,9,FALSE),0) -> 360.3820627 | F36: 110.284229 | G36: 110.284229 | H36: 0
A37: 5GGZ-W | B37: Z250 | C37: =VLOOKUP(B37,Tarieven_ZZP0,9,FALSE) -> 326.0431986 | D37: Z252 | E37: =IFERROR(VLOOKUP(D37,Tarieven_ZZP0,9,FALSE),0) -> 401.6827606 | F37: 75.63956193 | G37: 75.63956193 | H37: 0
A38: 1ZGaud | B38: V710 | C38: =VLOOKUP(B38,Tarieven_VPT0,9,FALSE) -> 147.49739 | D38: V712 | E38: =IFERROR(VLOOKUP(D38,Tarieven_VPT0,9,FALSE),0) -> 139.6158205 | F38: -7.881569451 | G38: 0 | H38: 0
A39: 2ZGaud | B39: V720 | C39: 301.4297832 | D39: V722 | E39: 306.8941586 | F39: 5.464375396 | G39: 5.464375396 | H39: 38.25062777
A40: 3ZGaud | B40: V730 | C40: 345.2733813 | D40: V732 | E40: 352.9336223 | F40: 7.660241075 | G40: 7.660241075 | H40: 53.62168752
A41: 4ZGaud | B41: V740 | C41: 177.8136036 | D41: V742 | E41: 202.9946946 | F41: 25.18109102 | G41: 25.18109102 | H41: 176.2676371
A42: 1ZGvis | B42: V814 | C42: 77.89580668 | D42: nvt | E42: 0 | F42: -77.89580668 | G42: 0 | H42: 0
A43: 2ZGvis | B43: V824 | C43: 126.0430401 | D43: nvt | E43: 0 | F43: -126.0430401 | G43: 0 | H43: 0
A44: 3ZGvis | B44: V830 | C44: 161.842916 | D44: V832 | E44: 175.8844887 | F44: 14.04157274 | G44: 14.04157274 | H44: 98.29100918
A45: 4ZGvis | B45: V840 | C45: 211.640037 | D45: V842 | E45: 232.3424901 | F45: 20.70245312 | G45: 20.70245312 | H45: 144.9171718
A46: 5ZGvis | B46: V850 | C46: 235.0004445 | D46: V852 | E46: 261.9489305 | F46: 26.94848594 | G46: 26.94848594 | H46: 188.6394016
